Department Family,Entity,Date of Payment,Expense Type,Expense Area,Supplier,Voluntary & Community Sector,SME Class,Sole Trader,D-U-N-S Number,Transaction number,PSPES Level 2,Narrative,Postal Code,Amount in Sterling,Grant?,
"Housing, Communities & Local Government",MHCLG,01/06/2018,Current Grants to Non Profit Bodies,Decentralisation and Local Growth,GROUNDWORK UK,Yes,,,739193758,2100283125,,Neighbourhood Planning grant to communities,B1 2RR,"818,400.00",Yes,
"Housing, Communities & Local Government",MHCLG,01/06/2018,Current Grants to Non Profit Bodies,Housing & BSP,BRISTOL CITY COUNCIL,,,,213039763,2100283182,,Rough Sleeping (RS) PBR - Q2 Payment,BSW7 0QB,"35,960.00",Yes,
"Housing, Communities & Local Government",MHCLG,01/06/2018,Current Grants to Non Profit Bodies,Housing & BSP,GLOUCESTER CITY COUNCIL,,Public Bodies,,230841392,2100283183,,Rough Sleeping (RS) PBR - Q2 Payment,GL1 2EQ,"14,800.00",Yes,
"Housing, Communities & Local Government",MHCLG,01/06/2018,Current Grants to Non Profit Bodies,Housing & BSP,GREATER LONDON AUTHORITY,,Large,,,2100283184,,Rough Sleeping (RS) PBR - Q2 Payment,SE1 2AA,"111,400.00",Yes,
"Housing, Communities & Local Government",MHCLG,01/06/2018,Current Grants to Non Profit Bodies,Housing & BSP,GTR MANCHESTER COMBINED AUTHORITY,,Public Bodies,,,2100283186,,Rough Sleeping (RS) PBR - Q2 Payment,M27 8US,"17,300.00",Yes,
"Housing, Communities & Local Government",MHCLG,01/06/2018,Current Grants to Non Profit Bodies,Housing & BSP,LINCOLNSHIRE CC,,Public Bodies,,213279305,2100283185,,Rough Sleeping (RS) PBR - Q2 Payment,LN1 1YQ,"101,960.00",Yes,
"Housing, Communities & Local Government",MHCLG,01/06/2018,Current Grants to Non Profit Bodies,Housing & BSP,NEWCASTLE CITY COUNCIL,,Public Bodies,,210061649,2100283187,,Rough Sleeping (RS) PBR - Q2 Payment,NE1 8PB,"9,860.00",Yes,
"Housing, Communities & Local Government",MHCLG,01/06/2018,Current Grants to Non Profit Bodies,Local Government & Public Services,BIG IDEAS COMM INTEREST COMP,,Micro,,,2100283180,,Commemorating the unrememberd of WW1,N19 4DR,"233,722.95",Yes,
"Housing, Communities & Local Government",MHCLG,01/06/2018,Current Grants to Non Profit Bodies,Local Government & Public Services,INTER FAITH NETWORK FOR THE UK,Yes,Small,,519808690,2100283181,,Inter Faith Network for the UK 2018/19,SW1W 0DH,"96,250.00",Yes,
"Housing, Communities & Local Government",MHCLG,01/06/2018,Current Grants to Non Profit Bodies,Local Government & Public Services,THE LINKING NETWORK,,Micro,,,2100283154,,Schools Linking project,BD1 1NN,"197,400.83",Yes,
"Housing, Communities & Local Government",MHCLG,01/06/2018,ERDF Work in Progress � Capital,Decentralisation and Local Growth,LOUGHBOROUGH UNIVERSITY,,,,,7700002135,,ERDF grant payment,LE11 3TU,"146,283.06",Yes,
"Housing, Communities & Local Government",MHCLG,01/06/2018,ERDF Work in Progress � Capital,Decentralisation and Local Growth,SWMAS LTD,,Small,,,7700002144,,ERDF grant payment,TA6 4FJ,"35,270.13",Yes,
"Housing, Communities & Local Government",MHCLG,01/06/2018,ERDF Work in Progress � Capital,Decentralisation and Local Growth,UNI HOSP B'HAM NHS FOUNDATION TRUST,,Large,,222651193,7700002160,,ERDF grant offset,B16 2GW,"-1,009.79",Yes,
"Housing, Communities & Local Government",MHCLG,01/06/2018,ERDF Work in Progress � Capital,Decentralisation and Local Growth,UNI HOSP B'HAM NHS FOUNDATION TRUST,,Large,,222651193,7700002161,,ERDF grant payment,B16 2GW,"392,347.20",Yes,
"Housing, Communities & Local Government",MHCLG,01/06/2018,ERDF Work in Progress � Capital,Decentralisation and Local Growth,UNIVERSITY OF KEELE,,,,,7700002143,,ERDF grant payment,ST5 5BG,"493,366.52",Yes,
"Housing, Communities & Local Government",MHCLG,01/06/2018,ERDF Work in Progress � Capital,Decentralisation and Local Growth,UNIVERSITY OF PLYMOUTH,,,,,7700002139,,ERDF grant payment,PL4 8AA,"270,000.00",Yes,
"Housing, Communities & Local Government",MHCLG,01/06/2018,ERDF Work in Progress � Resource,Decentralisation and Local Growth,ASTON UNIVERSITY,,Large,,227749751,7700002137,,ERDF grant payment,B4 7ET,"10,343.66",Yes,
"Housing, Communities & Local Government",MHCLG,01/06/2018,ERDF Work in Progress � Resource,Decentralisation and Local Growth,BUSINESS SUPPORT SOLUTIONS,,Small,,,7700002146,,ERDF grant payment,M1 5JW,"187,207.20",Yes,
"Housing, Communities & Local Government",MHCLG,01/06/2018,ERDF Work in Progress � Resource,Decentralisation and Local Growth,CORNWALL COLLEGE,,,,,7700002152,,ERDF grant payment,PL25 4DJ,"171,138.72",Yes,
"Housing, Communities & Local Government",MHCLG,01/06/2018,ERDF Work in Progress � Resource,Decentralisation and Local Growth,CREATIVE KERNOW LTD,,,,,7700002145,,ERDF grant payment,TR15 3AJ,"221,429.82",Yes,
"Housing, Communities & Local Government",MHCLG,01/06/2018,ERDF Work in Progress � Resource,Decentralisation and Local Growth,DURHAM COUNTY COUNCIL,,,,,7700002151,,ERDF grant payment,DH1 5UF,"70,357.50",Yes,
"Housing, Communities & Local Government",MHCLG,01/06/2018,ERDF Work in Progress � Resource,Decentralisation and Local Growth,HETHEL INNOVATION LTD,,,,,7700002148,,ERDF grant payment,NR14 8FB,"42,705.17",Yes,
"Housing, Communities & Local Government",MHCLG,01/06/2018,ERDF Work in Progress � Resource,Decentralisation and Local Growth,LIVERPOOL JOHN MOORES UNIVERSITY,,Large,,,7700002133,,ERDF grant payment,L1 2UA,"70,283.56",Yes,
"Housing, Communities & Local Government",MHCLG,01/06/2018,ERDF Work in Progress � Resource,Decentralisation and Local Growth,LOUGHBOROUGH UNIVERSITY,,,,,7700002135,,ERDF grant payment,LE11 3TU,"48,621.99",Yes,
"Housing, Communities & Local Government",MHCLG,01/06/2018,ERDF Work in Progress � Resource,Decentralisation and Local Growth,NORTH EAST AUTOMOTIVE ALLIANCE (NEA,,,,,7700002138,,ERDF grant payment,SR5 3XB,"36,309.65",Yes,
"Housing, Communities & Local Government",MHCLG,01/06/2018,ERDF Work in Progress � Resource,Decentralisation and Local Growth,NORTH EAST AUTOMOTIVE ALLIANCE (NEA,,,,,7700002150,,ERDF grant payment,SR5 3XB,"43,625.35",Yes,
"Housing, Communities & Local Government",MHCLG,01/06/2018,ERDF Work in Progress � Resource,Decentralisation and Local Growth,SWMAS LTD,,Small,,,7700002144,,ERDF grant payment,TA6 4FJ,"60,938.21",Yes,
"Housing, Communities & Local Government",MHCLG,01/06/2018,ERDF Work in Progress � Resource,Decentralisation and Local Growth,UNI HOSP B'HAM NHS FOUNDATION TRUST,,Large,,222651193,7700002160,,ERDF grant offset,B16 2GW,-5.07,Yes,
"Housing, Communities & Local Government",MHCLG,01/06/2018,ERDF Work in Progress � Resource,Decentralisation and Local Growth,UNI HOSP B'HAM NHS FOUNDATION TRUST,,Large,,222651193,7700002161,,ERDF grant payment,B16 2GW,"123,328.12",Yes,
"Housing, Communities & Local Government",MHCLG,01/06/2018,ERDF Work in Progress � Resource,Decentralisation and Local Growth,UNIVERSITY OF KEELE,,,,,7700002143,,ERDF grant payment,ST5 5BG,"137,533.57",Yes,
"Housing, Communities & Local Government",MHCLG,01/06/2018,ERDF Work in Progress � Resource,Decentralisation and Local Growth,UNIVERSITY OF PLYMOUTH,,,,,7700002139,,ERDF grant payment,PL4 8AA,"18,449.72",Yes,
"Housing, Communities & Local Government",MHCLG,01/06/2018,ERDF Work in Progress � Resource,Decentralisation and Local Growth,UNIVERSITY OF PLYMOUTH,,,,,7700002142,,ERDF grant payment,PL4 8AA,"5,371.58",Yes,
"Housing, Communities & Local Government",MHCLG,01/06/2018,ERDF Work in Progress � Resource,Decentralisation and Local Growth,WARWICKSHIRE COUNTY COUNCIL,,,,,7700002136,,ERDF grant payment,CV34 4SX,"88,932.39",Yes,
"Housing, Communities & Local Government",MHCLG,01/06/2018,ERDF Work in Progress � Resource,Decentralisation and Local Growth,WARWICKSHIRE COUNTY COUNCIL,,,,,7700002141,,ERDF grant offset,CV34 4SX,"-1,456.93",Yes,
"Housing, Communities & Local Government",MHCLG,01/06/2018,ERDF Work in Progress � Resource,Decentralisation and Local Growth,WARWICKSHIRE COUNTY COUNCIL,,,,,7700002147,,ERDF grant payment,CV34 4SX,"113,049.91",Yes,
"Housing, Communities & Local Government",MHCLG,01/06/2018,ERDF Work in Progress � Resource,Decentralisation and Local Growth,WARWICKSHIRE COUNTY COUNCIL,,,,,7700002149,,ERDF grant offset,CV34 4SX,"-68,054.34",Yes,
"Housing, Communities & Local Government",MHCLG,01/06/2018,EXP � PURCHASE OF GOODS /SERVICES R & D,Chief Finance Office,SQW LTD,,Medium,,289652133,5106236648,Research,Research - Evaluation of Communities Fund,CB4 9ZR,"21,200.00",,
"Housing, Communities & Local Government",MHCLG,01/06/2018,IT - Service Contracts,Chief Finance Office,ARCUS GLOBAL LIMITED,,Medium,,,5106236692,IT Managed / Outsourced Services,Datamart hosting Support 18-19,CB4 2HY,"12,535.00",,
"Housing, Communities & Local Government",MHCLG,01/06/2018,IT - Service Contracts,Chief Finance Office,ARCUS GLOBAL LIMITED,,Medium,,,5106236693,IT Managed / Outsourced Services,MCIS/TESA hosting support 18/19,CB4 2HY,"10,430.43",,
"Housing, Communities & Local Government",MHCLG,01/06/2018,IT - Service Contracts,Chief Finance Office,BSI CYBER SECURITY & INFO RESILIENC,,Small,,,5106236701,IT Managed / Outsourced Services,Security Assurance &Cont  res  IA13545,GU14 0LX,"2,475.00",,
"Housing, Communities & Local Government",MHCLG,01/06/2018,IT - Service Contracts,Chief Finance Office,BSI CYBER SECURITY & INFO RESILIENC,,Small,,,5106236702,IT Managed / Outsourced Services,Security Assurance &Cont  res  IA13545,GU14 0LX,"4,050.00",,
"Housing, Communities & Local Government",MHCLG,01/06/2018,IT - Service Contracts,Chief Finance Office,DAISY COMMUNICATIONS LIMITED,,Large,,221263291,5106236711,IT Managed / Outsourced Services,New DCS Contract 17/18,BB9 5SR,"47,330.52",,
"Housing, Communities & Local Government",MHCLG,01/06/2018,IT - Service Contracts,Chief Finance Office,FUJITSU SERVICES LTD,,Large,,423375062,5106236691,IT Managed / Outsourced Services,New Requirements  17-18,WA3 6GD,"1,286.00",,
"Housing, Communities & Local Government",MHCLG,01/06/2018,IT - Service Contracts,Chief Finance Office,FUJITSU SERVICES LTD,,Large,,423375062,5106236699,IT Managed / Outsourced Services,"DFY17/18 Desktop Table ""D Charges""",WA3 6GD,"1,910.64",,
"Housing, Communities & Local Government",MHCLG,01/06/2018,IT - Service Contracts,Chief Finance Office,FUJITSU SERVICES LTD,,Large,,423375062,5106236705,IT Managed / Outsourced Services,"DFY17/18 Desktop Table ""D Charges""",WA3 6GD,"12,094.14",,
"Housing, Communities & Local Government",MHCLG,01/06/2018,IT - Service Contracts,Chief Finance Office,FUJITSU SERVICES LTD,,Large,,423375062,5106236706,IT Managed / Outsourced Services,"DFY17/18 Desktop Table ""D Charges""",WA3 6GD,312.32,,
"Housing, Communities & Local Government",MHCLG,01/06/2018,IT - Service Contracts,Chief Finance Office,FUJITSU SERVICES LTD,,Large,,423375062,5106236707,IT Managed / Outsourced Services,"DFY17/18 Desktop Table ""D Charges""",WA3 6GD,"1,549.08",,
"Housing, Communities & Local Government",MHCLG,01/06/2018,IT - Service Contracts,Chief Finance Office,FUJITSU SERVICES LTD,,Large,,423375062,5106236710,IT Managed / Outsourced Services,New Requirements  17-18,WA3 6GD,"2,105.60",,
"Housing, Communities & Local Government",MHCLG,01/06/2018,IT - Service Contracts,Chief Finance Office,INTERQUEST GROUP UK LIMITED,,Large,,423935241,5106236694,IT Managed / Outsourced Services,SAP Authorisations Specialist,EC4R 0AN,"10,500.00",,
"Housing, Communities & Local Government",MHCLG,01/06/2018,IT - Service Contracts,Chief Finance Office,LEIDOS,,Large,,399909910,5106236579,IT Managed / Outsourced Services,PM & PMO For E-Claims,G3 8EP,"12,054.40",,
"Housing, Communities & Local Government",MHCLG,01/06/2018,IT Maintenance,Chief Finance Office,ORACLE CORPORATION UK LTD,,Large,,291601524,5106236690,ICT Services,Oracle Support 4763012 (2540 & LDOMS),RG6 1RA,"1,091.83",,
"Housing, Communities & Local Government",MHCLG,01/06/2018,Legal Fees,Chief Finance Office,CITY COMPANY SEALS LTD,,,,,5106236675,Legal,Legal Advice,E8 3PN,498.00,,
"Housing, Communities & Local Government",MHCLG,01/06/2018,Legal Fees,Chief Finance Office,CITY COMPANY SEALS LTD,,,,,5106236676,Legal,Legal Advice,E8 3PN,498.00,,
"Housing, Communities & Local Government",MHCLG,01/06/2018,Legal Fees,Chief Finance Office,CITY COMPANY SEALS LTD,,,,,5106236677,Legal,Legal Advice,E8 3PN,498.00,,
"Housing, Communities & Local Government",MHCLG,01/06/2018,Legal Fees,Chief Finance Office,CITY COMPANY SEALS LTD,,,,,5106236678,Legal,Legal Advice,E8 3PN,498.00,,
"Housing, Communities & Local Government",MHCLG,01/06/2018,Printing,Decentralisation and Local Growth,APS GROUP,,Micro,,212228001,5106236682,Printing Services,Ministerial stationery,SK3 02P,618.06,,
"Housing, Communities & Local Government",MHCLG,01/06/2018,Printing,Decentralisation and Local Growth,APS GROUP,,Micro,,212228001,5106236685,Printing Services,Ministerial stationery,SK3 02P,537.73,,
"Housing, Communities & Local Government",MHCLG,01/06/2018,Printing,Decentralisation and Local Growth,STATIONERY OFFICE LTD,,Large,,779375633,5106236708,Printing Services,Statutory Instruments-Non Vatable,NR3 1PD,165.00,,
"Housing, Communities & Local Government",MHCLG,01/06/2018,Printing,Decentralisation and Local Growth,STATIONERY OFFICE LTD,,Large,,779375633,5106236708,Printing Services,Statutory Instruments-Vatable,NR3 1PD,130.00,,
"Housing, Communities & Local Government",MHCLG,01/06/2018,Printing,Decentralisation and Local Growth,STATIONERY OFFICE LTD,,Large,,779375633,5106236709,Printing Services,Statutory Instruments-Non Vatable,NR3 1PD,165.00,,
"Housing, Communities & Local Government",MHCLG,01/06/2018,Printing,Decentralisation and Local Growth,STATIONERY OFFICE LTD,,Large,,779375633,5106236709,Printing Services,Statutory Instruments-Vatable,NR3 1PD,130.00,,
"Housing, Communities & Local Government",MHCLG,01/06/2018,Recruitment,Corporate Services,CABINET OFFICE,,Large,,232159186,5106236647,Business Process Outsourcing Services,fast stream recruitment costs 2018,FY5 3FW,"121,440.00",,
"Housing, Communities & Local Government",MHCLG,01/06/2018,Telephone call costs,Chief Finance Office,DAISY COMMUNICATIONS LIMITED,,Large,,221263291,5106236700,IT Managed / Outsourced Services,3mth extension call charges to 30/6/17,BB9 5SR,"2,092.80",,
"Housing, Communities & Local Government",MHCLG,01/06/2018,Training,Chief Finance Office,EML LEARNING,,Micro,,218614350,5106236167,Development and Training,Civil Service Training,LS1 9PX,825.00,,
"Housing, Communities & Local Government",MHCLG,01/06/2018,Training,Chief Finance Office,EML LEARNING,,Micro,,218614350,5106236686,Development and Training,Civil Service Training,LS1 9PX,745.00,,
"Housing, Communities & Local Government",MHCLG,01/06/2018,Training,Chief Finance Office,PDP,,Micro,,219697385,5106236684,Development and Training,Civil Service Training,SW9 6DE,"2,270.50",,
"Housing, Communities & Local Government",MHCLG,01/06/2018,Training,Chief Finance Office,WISE OWL BUSINESS SOLUTIONS LTD,,Micro,,738553754,5106236703,Development and Training,Civil Service Training,SK13 2AA,"6,000.00",,
"Housing, Communities & Local Government",MHCLG,01/06/2018,Training,Corporate Services,GOVNET COMMUNICATIONS,,Medium,,737114855,5106236687,Development and Training,Civil Service Training,WC2N 4JF,395.00,,
"Housing, Communities & Local Government",MHCLG,01/06/2018,Training,Corporate Services,SUZY LAMPLUGH TRUST,,Small,,,5106236646,Development and Training,Civil Service Training,SE11 5RR,585.00,,
"Housing, Communities & Local Government",MHCLG,01/06/2018,Travel and Subsistence Account,Housing & BSP,WEST MIDS FIRE & RESCUE SERVICE,,Public Bodies,,232913731,2100283189,Business Travel,Official Travel & Subsistence,WV10 6TB,"6,237.00",,
"Housing, Communities & Local Government",MHCLG,04/06/2018,ERDF Work in Progress � Capital,Decentralisation and Local Growth,CHESTER UNIVERSITY,,Large,,,7700002158,,ERDF grant payment,CH1 4BJ,594.22,Yes,
"Housing, Communities & Local Government",MHCLG,04/06/2018,ERDF Work in Progress � Capital,Decentralisation and Local Growth,STOKE-ON-TRENT CITY COUNCIL,,,,,7700002157,,ERDF grant payment,ST4 1HH,"43,266.48",Yes,
"Housing, Communities & Local Government",MHCLG,04/06/2018,ERDF Work in Progress � Resource,Decentralisation and Local Growth,CHESTER UNIVERSITY,,Large,,,7700002158,,ERDF grant payment,CH1 4BJ,"34,069.17",Yes,
"Housing, Communities & Local Government",MHCLG,04/06/2018,ERDF Work in Progress � Resource,Decentralisation and Local Growth,EAST RIDING OF YORKSHIRE COUNCIL,,,,,7700002153,,ERDF grant payment,HU17 9BA,"35,776.41",Yes,
"Housing, Communities & Local Government",MHCLG,04/06/2018,ERDF Work in Progress � Resource,Decentralisation and Local Growth,LEEDS CITY COUNCIL,,Large,,,7700002156,,ERDF grant payment,LS2 8HD,"287,802.19",Yes,
"Housing, Communities & Local Government",MHCLG,04/06/2018,ERDF Work in Progress � Resource,Decentralisation and Local Growth,LIVERPOOL CITY REGION COMB AUTH,,,,,7700002154,,ERDF grant payment,L3 1FZ,"378,282.41",Yes,
"Housing, Communities & Local Government",MHCLG,04/06/2018,ERDF Work in Progress � Resource,Decentralisation and Local Growth,STOKE-ON-TRENT CITY COUNCIL,,,,,7700002155,,ERDF grant offset,ST4 1HH,"-3,158.90",Yes,
"Housing, Communities & Local Government",MHCLG,04/06/2018,ERDF Work in Progress � Resource,Decentralisation and Local Growth,STOKE-ON-TRENT CITY COUNCIL,,,,,7700002157,,ERDF grant payment,ST4 1HH,"16,831.75",Yes,
"Housing, Communities & Local Government",MHCLG,04/06/2018,EXP � PURCHASE OF GOODS /SERVICES R & D,Chief Finance Office,BRIGHTON & HOVE COUNCIL,,,,737655220,2100283128,,Research - The Complex Needs Evaluation - Grant Payment,BN1 1JP,"2,400.00",,
"Housing, Communities & Local Government",MHCLG,04/06/2018,EXP � PURCHASE OF GOODS /SERVICES R & D,Chief Finance Office,OXFORD CONS SOCIAL INCLUSION LTD,,Micro,,735385184,5106236737,Research,Research - Indices of Deprivation,BN1 4GQ,"1,255.00",,
"Housing, Communities & Local Government",MHCLG,04/06/2018,EXP � PURCHASE OF GOODS /SERVICES R & D,Chief Finance Office,OXFORD CONS SOCIAL INCLUSION LTD,,Micro,,735385184,5106236738,Research,Research - Indices of Deprivation,BN1 4GQ,"25,384.62",,
"Housing, Communities & Local Government",MHCLG,04/06/2018,EXP � PURCHASE OF GOODS /SERVICES R & D,Housing & BSP,BUILDING RESEARCH ESTABLISHMENT,,Large,,896495033,5106236748,Research,Cladding Sample Testing (WPS),WD25 9XX,"2,700.00",,
"Housing, Communities & Local Government",MHCLG,04/06/2018,EXP � PURCHASE OF GOODS /SERVICES R & D,Housing & BSP,BUILDING RESEARCH ESTABLISHMENT,,Large,,896495033,5106236756,Research,Cladding Sample Testing (WPS),WD25 9XX,"2,008.00",,
"Housing, Communities & Local Government",MHCLG,04/06/2018,IT - Service Contracts,Chief Finance Office,DAISY CORPORATE SERVICES LTD,,Large,,221481042,5106236752,IT Managed / Outsourced Services,New DCS Contract calls 17/18,BB9 5SR,873.82,,
"Housing, Communities & Local Government",MHCLG,04/06/2018,IT - Service Contracts,Chief Finance Office,FUJITSU SERVICES LTD,,Large,,423375062,5106236714,IT Managed / Outsourced Services,"DFY17/18 Desktop Table ""D Charges""",WA3 6GD,"12,214.41",,
"Housing, Communities & Local Government",MHCLG,04/06/2018,IT - Service Contracts,Chief Finance Office,FUJITSU SERVICES LTD,,Large,,423375062,5106236715,IT Managed / Outsourced Services,"DFY17/18 Desktop Table ""D Charges""",WA3 6GD,"1,865.73",,
"Housing, Communities & Local Government",MHCLG,04/06/2018,IT - Service Contracts,Chief Finance Office,FUJITSU SERVICES LTD,,Large,,423375062,5106236716,IT Managed / Outsourced Services,"FY 17/18 WAN Management(""W""Table Charges",WA3 6GD,"2,645.18",,
"Housing, Communities & Local Government",MHCLG,04/06/2018,IT - Service Contracts,Chief Finance Office,FUJITSU SERVICES LTD,,Large,,423375062,5106236717,IT Managed / Outsourced Services,"DFY17/18 Desktop Table ""D Charges""",WA3 6GD,"173,039.30",,
"Housing, Communities & Local Government",MHCLG,04/06/2018,Payroll Services,Corporate Services,CGI IT UK LIMITED,,Large,,239881618,5106236739,Business Process Outsourcing Services,Payroll Services & Licences,EC3M 3BY,"8,973.89",,
"Housing, Communities & Local Government",MHCLG,04/06/2018,Payroll Services,Corporate Services,CGI IT UK LIMITED,,Large,,239881618,5106236754,Business Process Outsourcing Services,Payroll Services & Licences,EC3M 3BY,246.10,,
"Housing, Communities & Local Government",MHCLG,04/06/2018,Physical Storage,Decentralisation and Local Growth,RIBA ENTERPRISES LTD,,Large,,233325724,5106236746,Advertising,Building Reg Concession Contract,NE1 1RH,"12,090.00",,
"Housing, Communities & Local Government",MHCLG,04/06/2018,Printing,Decentralisation and Local Growth,STATIONERY OFFICE LTD,,Large,,779375633,5106236168,Printing Services,Statutory Instruments-Non Vatable,NR3 1PD,165.00,,
"Housing, Communities & Local Government",MHCLG,04/06/2018,Printing,Decentralisation and Local Growth,STATIONERY OFFICE LTD,,Large,,779375633,5106236168,Printing Services,Statutory Instruments-Vatable,NR3 1PD,130.00,,
"Housing, Communities & Local Government",MHCLG,04/06/2018,Printing,Decentralisation and Local Growth,STATIONERY OFFICE LTD,,Large,,779375633,5106236169,Printing Services,Statutory Instruments-Non Vatable,NR3 1PD,165.00,,
"Housing, Communities & Local Government",MHCLG,04/06/2018,Printing,Decentralisation and Local Growth,STATIONERY OFFICE LTD,,Large,,779375633,5106236169,Printing Services,Statutory Instruments-Vatable,NR3 1PD,130.00,,
"Housing, Communities & Local Government",MHCLG,04/06/2018,Printing,Decentralisation and Local Growth,STATIONERY OFFICE LTD,,Large,,779375633,5106236170,Printing Services,Statutory Instruments-Non Vatable,NR3 1PD,165.00,,
"Housing, Communities & Local Government",MHCLG,04/06/2018,Printing,Decentralisation and Local Growth,STATIONERY OFFICE LTD,,Large,,779375633,5106236170,Printing Services,Statutory Instruments-Vatable,NR3 1PD,130.00,,
"Housing, Communities & Local Government",MHCLG,04/06/2018,Printing,Decentralisation and Local Growth,STATIONERY OFFICE LTD,,Large,,779375633,5106236719,Printing Services,Statutory Instruments-Non Vatable,NR3 1PD,340.00,,
"Housing, Communities & Local Government",MHCLG,04/06/2018,Printing,Decentralisation and Local Growth,STATIONERY OFFICE LTD,,Large,,779375633,5106236721,Printing Services,Statutory Instruments-Non Vatable,NR3 1PD,165.00,,
"Housing, Communities & Local Government",MHCLG,04/06/2018,Printing,Decentralisation and Local Growth,STATIONERY OFFICE LTD,,Large,,779375633,5106236721,Printing Services,Statutory Instruments-Vatable,NR3 1PD,130.00,,
"Housing, Communities & Local Government",MHCLG,04/06/2018,Printing,Decentralisation and Local Growth,STATIONERY OFFICE LTD,,Large,,779375633,5106236722,Printing Services,Statutory Instruments-Non Vatable,NR3 1PD,165.00,,
"Housing, Communities & Local Government",MHCLG,04/06/2018,Printing,Decentralisation and Local Growth,STATIONERY OFFICE LTD,,Large,,779375633,5106236722,Printing Services,Statutory Instruments-Vatable,NR3 1PD,130.00,,
"Housing, Communities & Local Government",MHCLG,04/06/2018,Professional services,Housing & BSP,VALUATION OFFICE AGENCY,,Public Bodies,,215253886,5106236741,Technical Services,Valuation Office Agency 0 right to Buy -Year 2017-18,W1D 5BU,"98,935.08",,
"Housing, Communities & Local Government",MHCLG,04/06/2018,Professional services,Housing & BSP,VALUATION OFFICE AGENCY,,Public Bodies,,215253886,5106236742,Technical Services,Valuation Office Agency 0 right to Buy Year 2018-19,W1D 5BU,"62,741.32",,
"Housing, Communities & Local Government",MHCLG,04/06/2018,Publications,Chief Finance Office,JONES YARRELL LEADENHALL LTD,,Large,,505670265,5106236755,Learning and Development Materials,DCLG Journals subs 2017-18,E3 3JH,281.30,,
"Housing, Communities & Local Government",MHCLG,04/06/2018,Steady State Service Provision,Chief Finance Office,VODAFONE UK(FSSD USE ONLY),,Large,,397467572,5106236713,Business Process Outsourcing Services,Managed Internet Access Line,RG14 5FF,582.58,,
"Housing, Communities & Local Government",MHCLG,04/06/2018,Steady State Service Provision,Housing & BSP,CABINET OFFICE,,Large,,232159186,5106236642,Not Addressable,Help to Buy Review,FY5 3FW,"2,000.00",,
"Housing, Communities & Local Government",MHCLG,04/06/2018,Web Services,Decentralisation and Local Growth,DEXTROUS WEB LTD,,Micro,,211267270,5106236644,ICT Services,Host & Sup for Own Your Home Website,N1 7NG,726.60,,
"Housing, Communities & Local Government",MHCLG,05/06/2018,Agency Staff,Chief Finance Office,CAPITA BUS. SERV. LTD (CON LAB),,Large,,,5106236769,Contingent Labour,interim g7 procurement manager,DL1 9WQ,"3,472.20",,
"Housing, Communities & Local Government",MHCLG,05/06/2018,Agency Staff,Chief Finance Office,CAPITA BUS. SERV. LTD (CON LAB),,Large,,,5106236770,Contingent Labour,User Research Lead - RRJ,DL1 9WQ,"1,914.08",,
"Housing, Communities & Local Government",MHCLG,05/06/2018,Agency Staff,Chief Finance Office,CAPITA BUS. SERV. LTD (CON LAB),,Large,,,5106236771,Contingent Labour,Digital Product Manager - AS,DL1 9WQ,"2,888.30",,
"Housing, Communities & Local Government",MHCLG,05/06/2018,Agency Staff,Chief Finance Office,CAPITA BUS. SERV. LTD (CON LAB),,Large,,,5106236772,Contingent Labour,programme office support - VE,DL1 9WQ,"5,756.28",,
"Housing, Communities & Local Government",MHCLG,05/06/2018,Agency Staff,Chief Finance Office,CAPITA BUS. SERV. LTD (CON LAB),,Large,,,5106236773,Contingent Labour,digital business designer (CB),DL1 9WQ,"5,742.25",,
"Housing, Communities & Local Government",MHCLG,05/06/2018,Agency Staff,Chief Finance Office,CAPITA BUS. SERV. LTD (CON LAB),,Large,,,5106236775,Contingent Labour,BST tech support and testing EO (6 month,DL1 9WQ,687.56,,
"Housing, Communities & Local Government",MHCLG,05/06/2018,Agency Staff,Chief Finance Office,CAPITA BUS. SERV. LTD (CON LAB),,Large,,,5106236777,Contingent Labour,Interim manager,DL1 9WQ,"3,826.14",,
"Housing, Communities & Local Government",MHCLG,05/06/2018,Agency Staff,Chief Finance Office,CAPITA BUS. SERV. LTD (CON LAB),,Large,,,5106236780,Contingent Labour,cloud architecture - interim ext,DL1 9WQ,"4,134.12",,
"Housing, Communities & Local Government",MHCLG,05/06/2018,Agency Staff,Decentralisation and Local Growth,CAPITA BUS. SERV. LTD (CON LAB),,Large,,,5106236778,Contingent Labour,RGF grant payment,DL1 9WQ,"1,057.75",,
"Housing, Communities & Local Government",MHCLG,05/06/2018,Agency Staff,Housing & BSP,CAPITA BUS. SERV. LTD (CON LAB),,Large,,,5106236781,Contingent Labour,Extension for interim administrative support,DL1 9WQ,"4,161.42",,
"Housing, Communities & Local Government",MHCLG,05/06/2018,Agency Staff,Housing & BSP,CAPITA BUS. SERV. LTD (CON LAB),,Large,,,5106236782,Contingent Labour,Extension for�interim administrative support,DL1 9WQ,"1,829.22",,
"Housing, Communities & Local Government",MHCLG,05/06/2018,Catering,Chief Finance Office,BOUYGUES E&S FM UK LTD (CATERING),,Large,,,2100283271,Business Support,Monthly Consolidated Costs March 2018,SE1 7EU,293.64,,
"Housing, Communities & Local Government",MHCLG,05/06/2018,Catering,Decentralisation and Local Growth,BOUYGUES E&S FM UK LTD (CATERING),,Large,,,2100283271,Business Support,Monthly Consolidated Costs March 2018,SE1 7EU,61.56,,
"Housing, Communities & Local Government",MHCLG,05/06/2018,Catering,Decentralisation and Local Growth,BOUYGUES E&S FM UK LTD (CATERING),,Large,,,2100283271,Business Support,Monthly Consolidated Costs March 2018,SE1 7EU,36.00,,
"Housing, Communities & Local Government",MHCLG,05/06/2018,Catering,Decentralisation and Local Growth,BOUYGUES E&S FM UK LTD (CATERING),,Large,,,2100283271,Business Support,Monthly Consolidated Costs March 2018,SE1 7EU,58.50,,
"Housing, Communities & Local Government",MHCLG,05/06/2018,Catering,Decentralisation and Local Growth,BOUYGUES E&S FM UK LTD (CATERING),,Large,,,2100283271,Business Support,Monthly Consolidated Costs March 2018,SE1 7EU,72.00,,
"Housing, Communities & Local Government",MHCLG,05/06/2018,Catering,Housing & BSP,BOUYGUES E&S FM UK LTD (CATERING),,Large,,,2100283271,Business Support,Monthly Consolidated Costs March 2018,SE1 7EU,28.20,,
"Housing, Communities & Local Government",MHCLG,05/06/2018,Catering,Housing & BSP,BOUYGUES E&S FM UK LTD (CATERING),,Large,,,2100283271,Business Support,Monthly Consolidated Costs March 2018,SE1 7EU,89.52,,
"Housing, Communities & Local Government",MHCLG,05/06/2018,Catering,Housing & BSP,BOUYGUES E&S FM UK LTD (CATERING),,Large,,,2100283271,Business Support,Monthly Consolidated Costs March 2018,SE1 7EU,194.64,,
"Housing, Communities & Local Government",MHCLG,05/06/2018,Catering,Housing & BSP,BOUYGUES E&S FM UK LTD (CATERING),,Large,,,2100283271,Business Support,Monthly Consolidated Costs March 2018,SE1 7EU,230.52,,
"Housing, Communities & Local Government",MHCLG,05/06/2018,Catering,Housing & BSP,BOUYGUES E&S FM UK LTD (CATERING),,Large,,,2100283271,Business Support,Monthly Consolidated Costs March 2018,SE1 7EU,127.20,,
"Housing, Communities & Local Government",MHCLG,05/06/2018,Catering,Local Government & Public Services,BOUYGUES E&S FM UK LTD (CATERING),,Large,,,2100283271,Business Support,Monthly Consolidated Costs March 2018,SE1 7EU,462.60,,
"Housing, Communities & Local Government",MHCLG,05/06/2018,Current Grants to Non Profit Bodies,Local Government & Public Services,UMMA HELP,,,,,2100283231,,Project about genocide and intolerance,B16 8UA,"164,454.00",Yes,
"Housing, Communities & Local Government",MHCLG,05/06/2018,ERDF Work in Progress � Capital,Decentralisation and Local Growth,CORNWALL DEVELOPMENT COMPANY,,Medium,,,7700002167,,ERDF grant payment,TR15 3QG,"64,775.72",Yes,
"Housing, Communities & Local Government",MHCLG,05/06/2018,ERDF Work in Progress � Resource,Decentralisation and Local Growth,ASTON UNIVERSITY,,Large,,227749751,7700002165,,ERDF grant payment,B4 7ET,"16,498.63",Yes,
"Housing, Communities & Local Government",MHCLG,05/06/2018,ERDF Work in Progress � Resource,Decentralisation and Local Growth,CORNWALL DEVELOPMENT COMPANY,,Medium,,,7700002167,,ERDF grant payment,TR15 3QG,"30,975.62",Yes,
"Housing, Communities & Local Government",MHCLG,05/06/2018,ERDF Work in Progress � Resource,Decentralisation and Local Growth,DERBY CITY COUNCIL,,Large,,,7700002163,,ERDF grant payment,DE1 2FS,"15,222.92",Yes,
"Housing, Communities & Local Government",MHCLG,05/06/2018,ERDF Work in Progress � Resource,Decentralisation and Local Growth,EAST MIDLANDS CHAMBER(DNL),,,,,7700002168,,ERDF grant payment,S41 8ND,"52,027.68",Yes,
"Housing, Communities & Local Government",MHCLG,05/06/2018,ERDF Work in Progress � Resource,Decentralisation and Local Growth,ESSEX COUNTY COUNCIL,,Large,,,7700002164,,ERDF grant payment,CM1 1LX,"127,733.18",Yes,
"Housing, Communities & Local Government",MHCLG,05/06/2018,ERDF Work in Progress � Resource,Decentralisation and Local Growth,NEWABLE TRADE(LONDON)LTD,,Medium,,,7700002162,,ERDF grant payment,EC1A 4HY,"41,304.23",Yes,
"Housing, Communities & Local Government",MHCLG,05/06/2018,ERDF Work in Progress � Resource,Decentralisation and Local Growth,NEWABLE TRADE(LONDON)LTD,,Medium,,,7700002166,,ERDF grant payment,EC1A 4HY,"47,648.12",Yes,
"Housing, Communities & Local Government",MHCLG,05/06/2018,IT - Service Contracts,Chief Finance Office,CAPITA BUS. SERV. LTD (CON LAB),,Large,,,5106236774,Contingent Labour,Digital Service Director - SP,DL1 9WQ,"5,822.50",,
"Housing, Communities & Local Government",MHCLG,05/06/2018,IT Maintenance,Chief Finance Office,NEW RICOH UK,,Large,,424537512,5106236808,ICT Services,MFD Service Charges (London) FY17/18,NN4 7YB,317.76,,
"Housing, Communities & Local Government",MHCLG,05/06/2018,IT Maintenance,Chief Finance Office,NEW RICOH UK,,Large,,424537512,5106236809,ICT Services,MFD Service Charges (Regions) FY17/18,NN4 7YB,"9,339.11",,
"Housing, Communities & Local Government",MHCLG,05/06/2018,Legal Fees,Decentralisation and Local Growth,LANDMARK CHAMBERS,,Medium,,732521732,5106236800,Legal,Legal Advice,EC4A 2HG,"1,944.00",,
"Housing, Communities & Local Government",MHCLG,05/06/2018,Printing,Decentralisation and Local Growth,APS GROUP,,Micro,,212228001,5106236798,Printing Services,Banners x 7 and delivery Brilliant CS,SK3 02P,270.36,,
"Housing, Communities & Local Government",MHCLG,05/06/2018,Printing,Decentralisation and Local Growth,STATIONERY OFFICE LTD,,Large,,779375633,5106236766,Printing Services,Statutory Instruments-Non Vatable,NR3 1PD,165.00,,
"Housing, Communities & Local Government",MHCLG,05/06/2018,Printing,Decentralisation and Local Growth,STATIONERY OFFICE LTD,,Large,,779375633,5106236766,Printing Services,Statutory Instruments-Vatable,NR3 1PD,130.00,,
"Housing, Communities & Local Government",MHCLG,05/06/2018,Professional services,Chief Finance Office,CAPITA BUS. SERV. LTD (CON LAB),,Large,,,5106236776,Contingent Labour,ext - 01/04/2018 to 02/06/2018,DL1 9WQ,"2,878.14",,
"Housing, Communities & Local Government",MHCLG,05/06/2018,Steady State Service Provision,Corporate Services,CABINET OFFICE,,Large,,232159186,5106236791,Business Process Outsourcing Services,2017 direct appointment scheme intake,FY5 3FW,"18,000.00",,
"Housing, Communities & Local Government",MHCLG,05/06/2018,Steady State Service Provision,Corporate Services,CABINET OFFICE,,Large,,232159186,5106236792,Business Process Outsourcing Services,Civil Service Jobs 2018-2019 charges,FY5 3FW,"6,311.04",,
"Housing, Communities & Local Government",MHCLG,05/06/2018,Training,Corporate Services,KORN FERRY HAY GROUP LTD,,Large,,,5106236795,Development and Training,Civil Service Training,SW1Y 6QB,272.00,,
"Housing, Communities & Local Government",MHCLG,05/06/2018,Training,Corporate Services,KPMG LLP (CSL),,Large,,,5106236761,Development and Training,Civil Service Training,E14 5GL,"3,643.00",,
"Housing, Communities & Local Government",MHCLG,05/06/2018,Training,Corporate Services,KPMG LLP (CSL),,Large,,,5106236762,Development and Training,Civil Service Training,E14 5GL,"3,122.00",,
"Housing, Communities & Local Government",MHCLG,05/06/2018,Training,Corporate Services,KPMG LLP (CSL),,Large,,,5106236763,Development and Training,Civil Service Training,E14 5GL,"3,643.00",,
"Housing, Communities & Local Government",MHCLG,05/06/2018,Training,Corporate Services,KPMG LLP (CSL),,Large,,,5106236764,Development and Training,Civil Service Training,E14 5GL,"3,122.00",,
"Housing, Communities & Local Government",MHCLG,05/06/2018,Training,Corporate Services,KPMG LLP (CSL),,Large,,,5106236765,Development and Training,Civil Service Training,E14 5GL,"3,643.00",,
"Housing, Communities & Local Government",MHCLG,05/06/2018,Training,Corporate Services,KPMG LLP (CSL),,Large,,,5106236767,Development and Training,Civil Service Training,E14 5GL,"3,122.00",,
"Housing, Communities & Local Government",MHCLG,05/06/2018,Training,Corporate Services,KPMG LLP (CSL),,Large,,,5106236768,Development and Training,Civil Service Training,E14 5GL,"1,607.00",,
"Housing, Communities & Local Government",MHCLG,06/06/2018,Agency Staff,Chief Finance Office,ANDREW PRITCHARD LTD,,Micro,,,5106236818,Contingent Labour,Business Continuity Manager,IP13 7EB,"22,000.00",,
"Housing, Communities & Local Government",MHCLG,06/06/2018,Agency Staff,Chief Finance Office,BROOK STREET UK LTD,,Large,,364940028,5106236824,Contingent Labour,Interim Admin support,AL1 4JB,589.40,,
"Housing, Communities & Local Government",MHCLG,06/06/2018,Agency Staff,Corporate Services,BROOK STREET UK LTD,,Large,,364940028,5106236794,Contingent Labour,Support Worker - Reasonable Adjustment,AL1 4JB,315.00,,
"Housing, Communities & Local Government",MHCLG,06/06/2018,Agency Staff,Housing & BSP,CAPITA BUS. SERV. LTD (CON LAB),,Large,,,5106236832,Contingent Labour,Extension for Specialist Advisor,DL1 9WQ,"3,432.10",,
"Housing, Communities & Local Government",MHCLG,06/06/2018,ERDF Work in Progress � Resource,Decentralisation and Local Growth,CHESHIRE WEST AND CHESTER COUNCIL,,Large,,,7700002171,,ERDF grant payment,CH1 2NP,"22,634.55",Yes,
"Housing, Communities & Local Government",MHCLG,06/06/2018,ERDF Work in Progress � Resource,Decentralisation and Local Growth,CORNWALL COUNCIL,,Large,,,7700002172,,ERDF grant payment,TR1 3AY,"13,544.90",Yes,
"Housing, Communities & Local Government",MHCLG,06/06/2018,ERDF Work in Progress � Resource,Decentralisation and Local Growth,CUMBRIA CHAMBER OF COMMERCE,,Small,,,7700002173,,ERDF grant payment,CA3 8DA,"131,916.31",Yes,
"Housing, Communities & Local Government",MHCLG,06/06/2018,ERDF Work in Progress � Resource,Decentralisation and Local Growth,LANCASTER UNIVERISTY,,,,,7700002169,,ERDF grant payment,LA1 4YW,"189,103.86",Yes,
"Housing, Communities & Local Government",MHCLG,06/06/2018,ERDF Work in Progress � Resource,Decentralisation and Local Growth,LIVERPOOL CITY REGION COMB AUTH,,,,,7700002170,,ERDF grant payment,L3 1FZ,"10,804.18",Yes,
"Housing, Communities & Local Government",MHCLG,06/06/2018,ERDF Work in Progress � Resource,Decentralisation and Local Growth,NORTH WEST UNI EUROP UNIT LTD,,Micro,,,7700002175,,ERDF grant payment,M1 3HZ,"141,970.43",Yes,
"Housing, Communities & Local Government",MHCLG,06/06/2018,ERDF Work in Progress � Resource,Decentralisation and Local Growth,WMMBF LIMITED,,Small,,,7700002174,,ERDF grant payment,LS1 5AB,"293,409.47",Yes,
"Housing, Communities & Local Government",MHCLG,06/06/2018,"IT - PC, Network & Hardware",Housing & BSP,SPECIALIST COMPUTER CENTRES PLC,,Large,,227720521,5106236838,ICT Hardware,Computer Hardware - Monitor,B11 2LE,320.88,,
"Housing, Communities & Local Government",MHCLG,06/06/2018,Online Database Information Retrieval,Chief Finance Office,HAYMARKET PUBLISHING SERVS LTD,,Large,,516858800,5106236836,ICT Services,ENDS Report 2018-19,TW1 3SP,"1,615.20",,
"Housing, Communities & Local Government",MHCLG,06/06/2018,Printing,Decentralisation and Local Growth,STATIONERY OFFICE LTD,,Large,,779375633,5106236839,Printing Services,Statutory Instruments-Non Vatable,NR3 1PD,165.00,,
"Housing, Communities & Local Government",MHCLG,06/06/2018,Printing,Decentralisation and Local Growth,STATIONERY OFFICE LTD,,Large,,779375633,5106236839,Printing Services,Statutory Instruments-Vatable,NR3 1PD,130.00,,
"Housing, Communities & Local Government",MHCLG,06/06/2018,Printing,Decentralisation and Local Growth,STATIONERY OFFICE LTD,,Large,,779375633,5106236840,Printing Services,Statutory Instruments-Non Vatable,NR3 1PD,165.00,,
"Housing, Communities & Local Government",MHCLG,06/06/2018,Printing,Decentralisation and Local Growth,STATIONERY OFFICE LTD,,Large,,779375633,5106236840,Printing Services,Statutory Instruments-Vatable,NR3 1PD,130.00,,
"Housing, Communities & Local Government",MHCLG,06/06/2018,Printing,Decentralisation and Local Growth,STATIONERY OFFICE LTD,,Large,,779375633,5106236841,Printing Services,Statutory Instruments-Non Vatable,NR3 1PD,165.00,,
"Housing, Communities & Local Government",MHCLG,06/06/2018,Printing,Decentralisation and Local Growth,STATIONERY OFFICE LTD,,Large,,779375633,5106236841,Printing Services,Statutory Instruments-Vatable,NR3 1PD,130.00,,
"Housing, Communities & Local Government",MHCLG,06/06/2018,Professional services,Housing & BSP,ATKINS LTD,,Large,,293650339,5106236823,Technical Services,Technical solutions,KT18 5BW,"13,247.71",,
"Housing, Communities & Local Government",MHCLG,06/06/2018,Professional services,Local Government & Public Services,ADJAYE ASSOCIATES LTD,,Large,,,5106236828,Financial,Design of Holocaust Memorial,NW1 5QT,"78,000.00",,
"Housing, Communities & Local Government",MHCLG,06/06/2018,Services provided by other Govt Orgs,Local Government & Public Services,SHARED SERVICES CONNECTED LTD,,,,210019203,2100283310,Financial,IICSA 2017-18 DCLG Contribution,NP20 9BB,"4,762,777.21",Yes,
"Housing, Communities & Local Government",MHCLG,06/06/2018,Training,Corporate Services,KPMG LLP (CSL),,Large,,,5106236835,Development and Training,Civil Service Training,E14 5GL,325.00,,
"Housing, Communities & Local Government",MHCLG,06/06/2018,Training,Decentralisation and Local Growth,GOVNET COMMUNICATIONS,,Medium,,737114855,5106236843,Development and Training,Civil Service Training,M1 6PP,395.00,,
"Housing, Communities & Local Government",MHCLG,06/06/2018,Training,Decentralisation and Local Growth,ROYAL TOWN PLANNING INSTITUTE,,,,227231818,5106236816,Development and Training,Civil Service Training,EC3R 8DL,860.00,,
"Housing, Communities & Local Government",MHCLG,06/06/2018,Travel and Subsistence Account,Decentralisation and Local Growth,DIAL A CAB,,Medium,,225338235,2100283317,Business Travel,Official Travel & Subsistence,N1 6AH,275.07,,
"Housing, Communities & Local Government",MHCLG,06/06/2018,Travel and Subsistence Account,Decentralisation and Local Growth,DIAL A CAB,,Medium,,225338235,2100283317,Business Travel,Official Travel & Subsistence,N1 6AH,113.09,,
"Housing, Communities & Local Government",MHCLG,06/06/2018,Travel and Subsistence Account,Decentralisation and Local Growth,DIAL A CAB,,Medium,,225338235,2100283317,Business Travel,Official Travel & Subsistence,N1 6AH,18.11,,
"Housing, Communities & Local Government",MHCLG,07/06/2018,Accommodation - actuals,Chief Finance Office,REDFERN TRAVEL LIMITED,,Small,,213089972,2100283346,Business Travel Accommodation,Consolidated Monthly Travel May Hotels,BD1 3AZ,294.77,,
"Housing, Communities & Local Government",MHCLG,07/06/2018,Accommodation - actuals,Corporate Services,REDFERN TRAVEL LIMITED,,Small,,213089972,2100283346,Business Travel Accommodation,Consolidated Monthly Travel May Hotels,BD1 3AZ,"2,051.22",,
"Housing, Communities & Local Government",MHCLG,07/06/2018,Accommodation - actuals,Decentralisation and Local Growth,REDFERN TRAVEL LIMITED,,Small,,213089972,2100283346,Business Travel Accommodation,Consolidated Monthly Travel May Hotels,BD1 3AZ,279.00,,
"Housing, Communities & Local Government",MHCLG,07/06/2018,Accommodation - actuals,Decentralisation and Local Growth,REDFERN TRAVEL LIMITED,,Small,,213089972,2100283346,Business Travel Accommodation,Consolidated Monthly Travel May Hotels,BD1 3AZ,347.45,,
"Housing, Communities & Local Government",MHCLG,07/06/2018,Accommodation - actuals,Decentralisation and Local Growth,REDFERN TRAVEL LIMITED,,Small,,213089972,2100283346,Business Travel Accommodation,Consolidated Monthly Travel May Hotels,BD1 3AZ,399.55,,
"Housing, Communities & Local Government",MHCLG,07/06/2018,Accommodation - actuals,Decentralisation and Local Growth,REDFERN TRAVEL LIMITED,,Small,,213089972,2100283346,Business Travel Accommodation,Consolidated Monthly Travel May Hotels,BD1 3AZ,520.00,,
"Housing, Communities & Local Government",MHCLG,07/06/2018,Accommodation - actuals,Decentralisation and Local Growth,REDFERN TRAVEL LIMITED,,Small,,213089972,2100283346,Business Travel Accommodation,Consolidated Monthly Travel May Hotels,BD1 3AZ,"2,980.80",,
"Housing, Communities & Local Government",MHCLG,07/06/2018,Accommodation - actuals,Decentralisation and Local Growth,REDFERN TRAVEL LIMITED,,Small,,213089972,2100283346,Business Travel Accommodation,Consolidated Monthly Travel May Hotels,BD1 3AZ,413.70,,
"Housing, Communities & Local Government",MHCLG,07/06/2018,Accommodation - actuals,Decentralisation and Local Growth,REDFERN TRAVEL LIMITED,,Small,,213089972,2100283346,Business Travel Accommodation,Consolidated Monthly Travel May Hotels,BD1 3AZ,284.67,,
"Housing, Communities & Local Government",MHCLG,07/06/2018,Accommodation - actuals,Decentralisation and Local Growth,REDFERN TRAVEL LIMITED,,Small,,213089972,2100283346,Business Travel Accommodation,Consolidated Monthly Travel May Hotels,BD1 3AZ,726.33,,
"Housing, Communities & Local Government",MHCLG,07/06/2018,Accommodation - actuals,Decentralisation and Local Growth,REDFERN TRAVEL LIMITED,,Small,,213089972,2100283346,Business Travel Accommodation,Consolidated Monthly Travel May Hotels,BD1 3AZ,847.00,,
"Housing, Communities & Local Government",MHCLG,07/06/2018,Accommodation - actuals,Decentralisation and Local Growth,REDFERN TRAVEL LIMITED,,Small,,213089972,2100283346,Business Travel Accommodation,Consolidated Monthly Travel May Hotels,BD1 3AZ,626.69,,
"Housing, Communities & Local Government",MHCLG,07/06/2018,Accommodation - actuals,Decentralisation and Local Growth,REDFERN TRAVEL LIMITED,,Small,,213089972,2100283346,Business Travel Accommodation,Consolidated Monthly Travel May Hotels,BD1 3AZ,"3,128.38",,
"Housing, Communities & Local Government",MHCLG,07/06/2018,Accommodation - actuals,Decentralisation and Local Growth,REDFERN TRAVEL LIMITED,,Small,,213089972,2100283346,Business Travel Accommodation,Consolidated Monthly Travel May Hotels,BD1 3AZ,301.60,,
"Housing, Communities & Local Government",MHCLG,07/06/2018,Accommodation - actuals,Decentralisation and Local Growth,REDFERN TRAVEL LIMITED,,Small,,213089972,2100283346,Business Travel Accommodation,Consolidated Monthly Travel May Hotels,BD1 3AZ,313.00,,
"Housing, Communities & Local Government",MHCLG,07/06/2018,Accommodation - actuals,Housing & BSP,REDFERN TRAVEL LIMITED,,Small,,213089972,2100283346,Business Travel Accommodation,Consolidated Monthly Travel May Hotels,BD1 3AZ,256.00,,
"Housing, Communities & Local Government",MHCLG,07/06/2018,Accommodation - actuals,Housing & BSP,REDFERN TRAVEL LIMITED,,Small,,213089972,2100283346,Business Travel Accommodation,Consolidated Monthly Travel May Hotels,BD1 3AZ,481.76,,
"Housing, Communities & Local Government",MHCLG,07/06/2018,Accommodation - actuals,Housing & BSP,REDFERN TRAVEL LIMITED,,Small,,213089972,2100283346,Business Travel Accommodation,Consolidated Monthly Travel May Hotels,BD1 3AZ,"1,611.48",,
"Housing, Communities & Local Government",MHCLG,07/06/2018,Accommodation - actuals,Local Government & Public Services,REDFERN TRAVEL LIMITED,,Small,,213089972,2100283346,Business Travel Accommodation,Consolidated Monthly Travel May Hotels,BD1 3AZ,444.00,,
"Housing, Communities & Local Government",MHCLG,07/06/2018,Accommodation - actuals,Local Government & Public Services,REDFERN TRAVEL LIMITED,,Small,,213089972,2100283346,Business Travel Accommodation,Consolidated Monthly Travel May Hotels,BD1 3AZ,306.50,,
"Housing, Communities & Local Government",MHCLG,07/06/2018,Accommodation - actuals,Local Government & Public Services,REDFERN TRAVEL LIMITED,,Small,,213089972,2100283346,Business Travel Accommodation,Consolidated Monthly Travel May Hotels,BD1 3AZ,"1,247.24",,
"Housing, Communities & Local Government",MHCLG,07/06/2018,Accommodation - actuals,Local Government & Public Services,REDFERN TRAVEL LIMITED,,Small,,213089972,2100283346,Business Travel Accommodation,Consolidated Monthly Travel May Hotels,BD1 3AZ,"2,761.00",,
"Housing, Communities & Local Government",MHCLG,07/06/2018,Accommodation - actuals,Local Government & Public Services,REDFERN TRAVEL LIMITED,,Small,,213089972,2100283346,Business Travel Accommodation,Consolidated Monthly Travel May Hotels,BD1 3AZ,285.00,,
"Housing, Communities & Local Government",MHCLG,07/06/2018,Air Travel,Chief Finance Office,REDFERN TRAVEL LIMITED,,Small,,213089972,2100283346,Air,Consolidated Monthly Travel May Air Tickets,BD1 3AZ,517.40,,
"Housing, Communities & Local Government",MHCLG,07/06/2018,Air Travel,Decentralisation and Local Growth,REDFERN TRAVEL LIMITED,,Small,,213089972,2100283346,Air,Consolidated Monthly Travel May Air Tickets,BD1 3AZ,557.06,,
"Housing, Communities & Local Government",MHCLG,07/06/2018,Air Travel,Decentralisation and Local Growth,REDFERN TRAVEL LIMITED,,Small,,213089972,2100283346,Air,Consolidated Monthly Travel May Air Tickets,BD1 3AZ,267.10,,
"Housing, Communities & Local Government",MHCLG,07/06/2018,Air Travel,Decentralisation and Local Growth,REDFERN TRAVEL LIMITED,,Small,,213089972,2100283346,Air,Consolidated Monthly Travel May Air Tickets,BD1 3AZ,484.78,,
"Housing, Communities & Local Government",MHCLG,07/06/2018,Air Travel,Decentralisation and Local Growth,REDFERN TRAVEL LIMITED,,Small,,213089972,2100283346,Air,Consolidated Monthly Travel May Air Tickets,BD1 3AZ,916.88,,
"Housing, Communities & Local Government",MHCLG,07/06/2018,Air Travel,Decentralisation and Local Growth,REDFERN TRAVEL LIMITED,,Small,,213089972,2100283346,Air,Consolidated Monthly Travel May Air Tickets,BD1 3AZ,506.72,,
"Housing, Communities & Local Government",MHCLG,07/06/2018,Air Travel,Housing & BSP,REDFERN TRAVEL LIMITED,,Small,,213089972,2100283346,Air,Consolidated Monthly Travel May Air Tickets,BD1 3AZ,418.36,,
"Housing, Communities & Local Government",MHCLG,07/06/2018,Air Travel,Local Government & Public Services,REDFERN TRAVEL LIMITED,,Small,,213089972,2100283346,Air,Consolidated Monthly Travel May Air Tickets,BD1 3AZ,324.06,,
"Housing, Communities & Local Government",MHCLG,07/06/2018,Capital Grants to People Non Profit,Decentralisation and Local Growth,DORSET TRUST NC LTD,,Medium,,,2100283341,,Coastal Communities Fund,DT2 7AA,"3,665.00",Yes,
"Housing, Communities & Local Government",MHCLG,07/06/2018,Current (non AEF) Grants to Local Authorities,Decentralisation and Local Growth,CHESHIRE EAST BOROUGH COUNCIL,,Public Bodies,,211229356,2100283344,,Supporting collaboration between 11 LEPS,CH1 9PP,"230,000.00",Yes,
"Housing, Communities & Local Government",MHCLG,07/06/2018,Current Grants to Non Profit Bodies,Decentralisation and Local Growth,DORSET TRUST NC LTD,,Medium,,,2100283342,,Coastal Communities Fund,DT2 7AA,"6,552.00",Yes,
"Housing, Communities & Local Government",MHCLG,07/06/2018,ERDF Work in Progress � Capital,Decentralisation and Local Growth, WEST YORKSHIRE COMBINED AUTHORITY,,Large,,,7700002176,,ERDF grant payment,LS1 2DE,"505,389.13",Yes,
"Housing, Communities & Local Government",MHCLG,07/06/2018,ERDF Work in Progress � Resource,Decentralisation and Local Growth, WEST YORKSHIRE COMBINED AUTHORITY,,Large,,,7700002176,,ERDF grant payment,LS1 2DE,"29,475.57",Yes,
"Housing, Communities & Local Government",MHCLG,07/06/2018,ERDF Work in Progress � Resource,Decentralisation and Local Growth, WEST YORKSHIRE COMBINED AUTHORITY,,Large,,,7700002180,,ERDF grant payment,LS1 2DE,"26,786.00",Yes,
"Housing, Communities & Local Government",MHCLG,07/06/2018,ERDF Work in Progress � Resource,Decentralisation and Local Growth,GLOUCESTERSHIRE UNIVERSITY,,,,,7700002179,,ERDF grant payment,GL50 2RH,"23,602.54",Yes,
"Housing, Communities & Local Government",MHCLG,07/06/2018,ERDF Work in Progress � Resource,Decentralisation and Local Growth,WESTMIDLANDS GROWTH CO LTD,,,,,7700002177,,ERDF grant payment,B1 2ND,"162,867.55",Yes,
"Housing, Communities & Local Government",MHCLG,07/06/2018,ERDF Work in Progress � Resource,Decentralisation and Local Growth,YTKO LIMITED,,Small,,,7700002178,,ERDF grant payment,CB6 1RA,"339,270.49",Yes,
"Housing, Communities & Local Government",MHCLG,07/06/2018,Fixed Maintenance,Chief Finance Office,DCLG GOVERNMENT PROCUREMENT CARD,,,,,1000004321,Building Operation,Duragard Asset labels,TN37 7GA,583.20,,
"Housing, Communities & Local Government",MHCLG,07/06/2018,Grant in Aid to NDPBs (non budget),Housing & BSP,LEASEHOLD ADVISORY SERVICE,,Small,,378000152,2100283270,,GiA to LEASE,WT1 7BN,"183,020.00",Yes,
"Housing, Communities & Local Government",MHCLG,07/06/2018,Grant in Aid to NDPBs (non budget),Local Government & Public Services,COMMISSION LOCAL ADMINISTRATION,,,,215271508,2100283269,,DCLG DEL 17/18 budget contribution for the CLAE,CV1 3BH,"850,000.00",Yes,
"Housing, Communities & Local Government",MHCLG,07/06/2018,Grant in Aid to NDPBs (non budget),Local Government & Public Services,VALUATION TRIBUNAL SERVICE,,,,211218366,2100283343,,GIA to VTS for NDR appeals,E1 8EU,"440,000.00",Yes,
"Housing, Communities & Local Government",MHCLG,07/06/2018,Professional services,Decentralisation and Local Growth,MAZARS LLP,,Large,,,5106236851,Financial,Contracting services,LS27 7JN,"4,260.00",,
"Housing, Communities & Local Government",MHCLG,07/06/2018,Professional services,Decentralisation and Local Growth,VALUATION OFFICE AGENCY,,Public Bodies,,215253886,5106236866,Financial,Planning Changes to support infrastructure,W1D 5BU,"1,569.92",,
"Housing, Communities & Local Government",MHCLG,07/06/2018,Professional services,Local Government & Public Services,TURNER&TOWNSEND PROJECT MAN LTD,,Large,,,5106236370,Financial,project & cost management services,LS18 4GH,"38,509.22",,
"Housing, Communities & Local Government",MHCLG,07/06/2018,Publicity,Decentralisation and Local Growth,PRESS ASSOCIATION,,Large,,217191704,5106236863,Advertising,PRESS ASSOCIATION (PA) 2017-18,DN14 7YH,"1,550.00",,
"Housing, Communities & Local Government",MHCLG,07/06/2018,"Rail, Underground and Eurostar",Chief Finance Office,REDFERN TRAVEL LIMITED,,Small,,213089972,2100283346,Rail,Consolidated Monthly Travel May Rail,BD1 3AZ,"2,172.60",,
"Housing, Communities & Local Government",MHCLG,07/06/2018,"Rail, Underground and Eurostar",Chief Finance Office,REDFERN TRAVEL LIMITED,,Small,,213089972,2100283346,Rail,Consolidated Monthly Travel May Rail,BD1 3AZ,824.85,,
"Housing, Communities & Local Government",MHCLG,07/06/2018,"Rail, Underground and Eurostar",Chief Finance Office,REDFERN TRAVEL LIMITED,,Small,,213089972,2100283346,Rail,Consolidated Monthly Travel May Rail,BD1 3AZ,449.10,,
"Housing, Communities & Local Government",MHCLG,07/06/2018,"Rail, Underground and Eurostar",Chief Finance Office,REDFERN TRAVEL LIMITED,,Small,,213089972,2100283346,Rail,Consolidated Monthly Travel May Rail,BD1 3AZ,719.10,,
"Housing, Communities & Local Government",MHCLG,07/06/2018,"Rail, Underground and Eurostar",Chief Finance Office,REDFERN TRAVEL LIMITED,,Small,,213089972,2100283346,Rail,Consolidated Monthly Travel May Rail,BD1 3AZ,"1,126.35",,
"Housing, Communities & Local Government",MHCLG,07/06/2018,"Rail, Underground and Eurostar",Chief Finance Office,REDFERN TRAVEL LIMITED,,Small,,213089972,2100283346,Rail,Consolidated Monthly Travel May Rail,BD1 3AZ,"2,590.00",,
"Housing, Communities & Local Government",MHCLG,07/06/2018,"Rail, Underground and Eurostar",Chief Finance Office,REDFERN TRAVEL LIMITED,,Small,,213089972,2100283346,Rail,Consolidated Monthly Travel May Rail,BD1 3AZ,402.40,,
"Housing, Communities & Local Government",MHCLG,07/06/2018,"Rail, Underground and Eurostar",Chief Finance Office,REDFERN TRAVEL LIMITED,,Small,,213089972,2100283346,Rail,Consolidated Monthly Travel May Rail,BD1 3AZ,868.30,,
"Housing, Communities & Local Government",MHCLG,07/06/2018,"Rail, Underground and Eurostar",Chief Finance Office,REDFERN TRAVEL LIMITED,,Small,,213089972,2100283346,Rail,Consolidated Monthly Travel May Rail,BD1 3AZ,281.50,,
"Housing, Communities & Local Government",MHCLG,07/06/2018,"Rail, Underground and Eurostar",Corporate Services,REDFERN TRAVEL LIMITED,,Small,,213089972,2100283346,Rail,Consolidated Monthly Travel May Rail,BD1 3AZ,"14,140.15",,
"Housing, Communities & Local Government",MHCLG,07/06/2018,"Rail, Underground and Eurostar",Decentralisation and Local Growth,REDFERN TRAVEL LIMITED,,Small,,213089972,2100283346,Rail,Consolidated Monthly Travel May Rail,BD1 3AZ,979.46,,
"Housing, Communities & Local Government",MHCLG,07/06/2018,"Rail, Underground and Eurostar",Decentralisation and Local Growth,REDFERN TRAVEL LIMITED,,Small,,213089972,2100283346,Rail,Consolidated Monthly Travel May Rail,BD1 3AZ,419.00,,
"Housing, Communities & Local Government",MHCLG,07/06/2018,"Rail, Underground and Eurostar",Decentralisation and Local Growth,REDFERN TRAVEL LIMITED,,Small,,213089972,2100283346,Rail,Consolidated Monthly Travel May Rail,BD1 3AZ,"2,330.53",,
"Housing, Communities & Local Government",MHCLG,07/06/2018,"Rail, Underground and Eurostar",Decentralisation and Local Growth,REDFERN TRAVEL LIMITED,,Small,,213089972,2100283346,Rail,Consolidated Monthly Travel May Rail,BD1 3AZ,878.20,,
"Housing, Communities & Local Government",MHCLG,07/06/2018,"Rail, Underground and Eurostar",Decentralisation and Local Growth,REDFERN TRAVEL LIMITED,,Small,,213089972,2100283346,Rail,Consolidated Monthly Travel May Rail,BD1 3AZ,"3,795.06",,
"Housing, Communities & Local Government",MHCLG,07/06/2018,"Rail, Underground and Eurostar",Decentralisation and Local Growth,REDFERN TRAVEL LIMITED,,Small,,213089972,2100283346,Rail,Consolidated Monthly Travel May Rail,BD1 3AZ,261.40,,
"Housing, Communities & Local Government",MHCLG,07/06/2018,"Rail, Underground and Eurostar",Decentralisation and Local Growth,REDFERN TRAVEL LIMITED,,Small,,213089972,2100283346,Rail,Consolidated Monthly Travel May Rail,BD1 3AZ,381.35,,
"Housing, Communities & Local Government",MHCLG,07/06/2018,"Rail, Underground and Eurostar",Decentralisation and Local Growth,REDFERN TRAVEL LIMITED,,Small,,213089972,2100283346,Rail,Consolidated Monthly Travel May Rail,BD1 3AZ,"1,242.30",,
"Housing, Communities & Local Government",MHCLG,07/06/2018,"Rail, Underground and Eurostar",Decentralisation and Local Growth,REDFERN TRAVEL LIMITED,,Small,,213089972,2100283346,Rail,Consolidated Monthly Travel May Rail,BD1 3AZ,"3,163.65",,
"Housing, Communities & Local Government",MHCLG,07/06/2018,"Rail, Underground and Eurostar",Decentralisation and Local Growth,REDFERN TRAVEL LIMITED,,Small,,213089972,2100283346,Rail,Consolidated Monthly Travel May Rail,BD1 3AZ,"2,564.90",,
"Housing, Communities & Local Government",MHCLG,07/06/2018,"Rail, Underground and Eurostar",Decentralisation and Local Growth,REDFERN TRAVEL LIMITED,,Small,,213089972,2100283346,Rail,Consolidated Monthly Travel May Rail,BD1 3AZ,"1,831.20",,
"Housing, Communities & Local Government",MHCLG,07/06/2018,"Rail, Underground and Eurostar",Decentralisation and Local Growth,REDFERN TRAVEL LIMITED,,Small,,213089972,2100283346,Rail,Consolidated Monthly Travel May Rail,BD1 3AZ,"6,741.05",,
"Housing, Communities & Local Government",MHCLG,07/06/2018,"Rail, Underground and Eurostar",Decentralisation and Local Growth,REDFERN TRAVEL LIMITED,,Small,,213089972,2100283346,Rail,Consolidated Monthly Travel May Rail,BD1 3AZ,"2,074.40",,
"Housing, Communities & Local Government",MHCLG,07/06/2018,"Rail, Underground and Eurostar",Decentralisation and Local Growth,REDFERN TRAVEL LIMITED,,Small,,213089972,2100283346,Rail,Consolidated Monthly Travel May Rail,BD1 3AZ,"3,429.10",,
"Housing, Communities & Local Government",MHCLG,07/06/2018,"Rail, Underground and Eurostar",Decentralisation and Local Growth,REDFERN TRAVEL LIMITED,,Small,,213089972,2100283346,Rail,Consolidated Monthly Travel May Rail,BD1 3AZ,"2,584.00",,
"Housing, Communities & Local Government",MHCLG,07/06/2018,"Rail, Underground and Eurostar",Decentralisation and Local Growth,REDFERN TRAVEL LIMITED,,Small,,213089972,2100283346,Rail,Consolidated Monthly Travel May Rail,BD1 3AZ,"2,833.35",,
"Housing, Communities & Local Government",MHCLG,07/06/2018,"Rail, Underground and Eurostar",Decentralisation and Local Growth,REDFERN TRAVEL LIMITED,,Small,,213089972,2100283346,Rail,Consolidated Monthly Travel May Rail,BD1 3AZ,"3,057.55",,
"Housing, Communities & Local Government",MHCLG,07/06/2018,"Rail, Underground and Eurostar",Decentralisation and Local Growth,REDFERN TRAVEL LIMITED,,Small,,213089972,2100283346,Rail,Consolidated Monthly Travel May Rail,BD1 3AZ,"1,786.50",,
"Housing, Communities & Local Government",MHCLG,07/06/2018,"Rail, Underground and Eurostar",Decentralisation and Local Growth,REDFERN TRAVEL LIMITED,,Small,,213089972,2100283346,Rail,Consolidated Monthly Travel May Rail,BD1 3AZ,686.85,,
"Housing, Communities & Local Government",MHCLG,07/06/2018,"Rail, Underground and Eurostar",Decentralisation and Local Growth,REDFERN TRAVEL LIMITED,,Small,,213089972,2100283346,Rail,Consolidated Monthly Travel May Rail,BD1 3AZ,524.20,,
"Housing, Communities & Local Government",MHCLG,07/06/2018,"Rail, Underground and Eurostar",Decentralisation and Local Growth,REDFERN TRAVEL LIMITED,,Small,,213089972,2100283346,Rail,Consolidated Monthly Travel May Rail,BD1 3AZ,"1,028.10",,
"Housing, Communities & Local Government",MHCLG,07/06/2018,"Rail, Underground and Eurostar",Decentralisation and Local Growth,REDFERN TRAVEL LIMITED,,Small,,213089972,2100283346,Rail,Consolidated Monthly Travel May Rail,BD1 3AZ,477.60,,
"Housing, Communities & Local Government",MHCLG,07/06/2018,"Rail, Underground and Eurostar",Decentralisation and Local Growth,REDFERN TRAVEL LIMITED,,Small,,213089972,2100283346,Rail,Consolidated Monthly Travel May Rail,BD1 3AZ,"5,223.16",,
"Housing, Communities & Local Government",MHCLG,07/06/2018,"Rail, Underground and Eurostar",Decentralisation and Local Growth,REDFERN TRAVEL LIMITED,,Small,,213089972,2100283346,Rail,Consolidated Monthly Travel May Rail,BD1 3AZ,"1,300.00",,
"Housing, Communities & Local Government",MHCLG,07/06/2018,"Rail, Underground and Eurostar",Decentralisation and Local Growth,REDFERN TRAVEL LIMITED,,Small,,213089972,2100283346,Rail,Consolidated Monthly Travel May Rail,BD1 3AZ,"1,294.15",,
"Housing, Communities & Local Government",MHCLG,07/06/2018,"Rail, Underground and Eurostar",Decentralisation and Local Growth,REDFERN TRAVEL LIMITED,,Small,,213089972,2100283346,Rail,Consolidated Monthly Travel May Rail,BD1 3AZ,"4,317.10",,
"Housing, Communities & Local Government",MHCLG,07/06/2018,"Rail, Underground and Eurostar",Decentralisation and Local Growth,REDFERN TRAVEL LIMITED,,Small,,213089972,2100283346,Rail,Consolidated Monthly Travel May Rail,BD1 3AZ,"2,528.53",,
"Housing, Communities & Local Government",MHCLG,07/06/2018,"Rail, Underground and Eurostar",Decentralisation and Local Growth,REDFERN TRAVEL LIMITED,,Small,,213089972,2100283346,Rail,Consolidated Monthly Travel May Rail,BD1 3AZ,824.46,,
"Housing, Communities & Local Government",MHCLG,07/06/2018,"Rail, Underground and Eurostar",Decentralisation and Local Growth,REDFERN TRAVEL LIMITED,,Small,,213089972,2100283346,Rail,Consolidated Monthly Travel May Rail,BD1 3AZ,729.90,,
"Housing, Communities & Local Government",MHCLG,07/06/2018,"Rail, Underground and Eurostar",Decentralisation and Local Growth,REDFERN TRAVEL LIMITED,,Small,,213089972,2100283346,Rail,Consolidated Monthly Travel May Rail,BD1 3AZ,952.60,,
"Housing, Communities & Local Government",MHCLG,07/06/2018,"Rail, Underground and Eurostar",Decentralisation and Local Growth,REDFERN TRAVEL LIMITED,,Small,,213089972,2100283346,Rail,Consolidated Monthly Travel May Rail,BD1 3AZ,"1,082.45",,
"Housing, Communities & Local Government",MHCLG,07/06/2018,"Rail, Underground and Eurostar",Decentralisation and Local Growth,REDFERN TRAVEL LIMITED,,Small,,213089972,2100283346,Rail,Consolidated Monthly Travel May Rail,BD1 3AZ,415.30,,
"Housing, Communities & Local Government",MHCLG,07/06/2018,"Rail, Underground and Eurostar",Housing & BSP,REDFERN TRAVEL LIMITED,,Small,,213089972,2100283346,Rail,Consolidated Monthly Travel May Rail,BD1 3AZ,"1,012.50",,
"Housing, Communities & Local Government",MHCLG,07/06/2018,"Rail, Underground and Eurostar",Housing & BSP,REDFERN TRAVEL LIMITED,,Small,,213089972,2100283346,Rail,Consolidated Monthly Travel May Rail,BD1 3AZ,699.00,,
"Housing, Communities & Local Government",MHCLG,07/06/2018,"Rail, Underground and Eurostar",Housing & BSP,REDFERN TRAVEL LIMITED,,Small,,213089972,2100283346,Rail,Consolidated Monthly Travel May Rail,BD1 3AZ,287.55,,
"Housing, Communities & Local Government",MHCLG,07/06/2018,"Rail, Underground and Eurostar",Housing & BSP,REDFERN TRAVEL LIMITED,,Small,,213089972,2100283346,Rail,Consolidated Monthly Travel May Rail,BD1 3AZ,743.50,,
"Housing, Communities & Local Government",MHCLG,07/06/2018,"Rail, Underground and Eurostar",Housing & BSP,REDFERN TRAVEL LIMITED,,Small,,213089972,2100283346,Rail,Consolidated Monthly Travel May Rail,BD1 3AZ,454.26,,
"Housing, Communities & Local Government",MHCLG,07/06/2018,"Rail, Underground and Eurostar",Housing & BSP,REDFERN TRAVEL LIMITED,,Small,,213089972,2100283346,Rail,Consolidated Monthly Travel May Rail,BD1 3AZ,"1,010.00",,
"Housing, Communities & Local Government",MHCLG,07/06/2018,"Rail, Underground and Eurostar",Housing & BSP,REDFERN TRAVEL LIMITED,,Small,,213089972,2100283346,Rail,Consolidated Monthly Travel May Rail,BD1 3AZ,670.00,,
"Housing, Communities & Local Government",MHCLG,07/06/2018,"Rail, Underground and Eurostar",Housing & BSP,REDFERN TRAVEL LIMITED,,Small,,213089972,2100283346,Rail,Consolidated Monthly Travel May Rail,BD1 3AZ,305.45,,
"Housing, Communities & Local Government",MHCLG,07/06/2018,"Rail, Underground and Eurostar",Housing & BSP,REDFERN TRAVEL LIMITED,,Small,,213089972,2100283346,Rail,Consolidated Monthly Travel May Rail,BD1 3AZ,"1,123.60",,
"Housing, Communities & Local Government",MHCLG,07/06/2018,"Rail, Underground and Eurostar",Housing & BSP,REDFERN TRAVEL LIMITED,,Small,,213089972,2100283346,Rail,Consolidated Monthly Travel May Rail,BD1 3AZ,"1,857.30",,
"Housing, Communities & Local Government",MHCLG,07/06/2018,"Rail, Underground and Eurostar",Local Government & Public Services,REDFERN TRAVEL LIMITED,,Small,,213089972,2100283346,Rail,Consolidated Monthly Travel May Rail,BD1 3AZ,"2,379.20",,
"Housing, Communities & Local Government",MHCLG,07/06/2018,"Rail, Underground and Eurostar",Local Government & Public Services,REDFERN TRAVEL LIMITED,,Small,,213089972,2100283346,Rail,Consolidated Monthly Travel May Rail,BD1 3AZ,904.60,,
"Housing, Communities & Local Government",MHCLG,07/06/2018,"Rail, Underground and Eurostar",Local Government & Public Services,REDFERN TRAVEL LIMITED,,Small,,213089972,2100283346,Rail,Consolidated Monthly Travel May Rail,BD1 3AZ,"1,654.70",,
"Housing, Communities & Local Government",MHCLG,07/06/2018,"Rail, Underground and Eurostar",Local Government & Public Services,REDFERN TRAVEL LIMITED,,Small,,213089972,2100283346,Rail,Consolidated Monthly Travel May Rail,BD1 3AZ,"1,344.25",,
"Housing, Communities & Local Government",MHCLG,07/06/2018,"Rail, Underground and Eurostar",Local Government & Public Services,REDFERN TRAVEL LIMITED,,Small,,213089972,2100283346,Rail,Consolidated Monthly Travel May Rail,BD1 3AZ,"1,670.90",,
"Housing, Communities & Local Government",MHCLG,07/06/2018,"Rail, Underground and Eurostar",Local Government & Public Services,REDFERN TRAVEL LIMITED,,Small,,213089972,2100283346,Rail,Consolidated Monthly Travel May Rail,BD1 3AZ,"4,122.26",,
"Housing, Communities & Local Government",MHCLG,07/06/2018,"Rail, Underground and Eurostar",Local Government & Public Services,REDFERN TRAVEL LIMITED,,Small,,213089972,2100283346,Rail,Consolidated Monthly Travel May Rail,BD1 3AZ,"5,798.40",,
"Housing, Communities & Local Government",MHCLG,07/06/2018,"Rail, Underground and Eurostar",Local Government & Public Services,REDFERN TRAVEL LIMITED,,Small,,213089972,2100283346,Rail,Consolidated Monthly Travel May Rail,BD1 3AZ,"7,028.85",,
"Housing, Communities & Local Government",MHCLG,07/06/2018,"Rail, Underground and Eurostar",Local Government & Public Services,REDFERN TRAVEL LIMITED,,Small,,213089972,2100283346,Rail,Consolidated Monthly Travel May Rail,BD1 3AZ,764.80,,
"Housing, Communities & Local Government",MHCLG,07/06/2018,"Rail, Underground and Eurostar",Local Government & Public Services,REDFERN TRAVEL LIMITED,,Small,,213089972,2100283346,Rail,Consolidated Monthly Travel May Rail,BD1 3AZ,309.50,,
"Housing, Communities & Local Government",MHCLG,07/06/2018,"Rail, Underground and Eurostar",Local Government & Public Services,REDFERN TRAVEL LIMITED,,Small,,213089972,2100283346,Rail,Consolidated Monthly Travel May Rail,BD1 3AZ,421.55,,
"Housing, Communities & Local Government",MHCLG,07/06/2018,Steady State Service Provision,Decentralisation and Local Growth,PETER BRETT ASSOCIATES LLP,,Large,,,5106236858,Not Addressable,Secondee  - NPP Framework,RG1 8DN,"5,253.47",,
"Housing, Communities & Local Government",MHCLG,07/06/2018,Training,Corporate Services,DODS PARLIAMENTARY COMM  LTD,,Large,,290673748,5106236847,Development and Training,Civil Service Training,SE1 9SG,295.00,,
"Housing, Communities & Local Government",MHCLG,07/06/2018,Travel and Subsistence Account,Decentralisation and Local Growth,REDFERN TRAVEL LIMITED,,Small,,213089972,2100283346,Business Travel,Consolidated Monthly Travel May Misc T&S,BD1 3AZ,428.05,,
"Housing, Communities & Local Government",MHCLG,07/06/2018,Travel and Subsistence Account,Decentralisation and Local Growth,REDFERN TRAVEL LIMITED,,Small,,213089972,2100283346,Business Travel,Consolidated Monthly Travel May Misc T&S,BD1 3AZ,390.93,,
"Housing, Communities & Local Government",MHCLG,07/06/2018,Travel and Subsistence Account,Housing & BSP,REDFERN TRAVEL LIMITED,,Small,,213089972,2100283346,Business Travel,Consolidated Monthly Travel May Misc T&S,BD1 3AZ,"5,848.28",,
"Housing, Communities & Local Government",MHCLG,08/06/2018,Advertising,Decentralisation and Local Growth,KINDRED AGENCY LTD,,Small,,216917045,5106236681,Advertising,Asbof fee,SW1P 2AF,4.30,,
"Housing, Communities & Local Government",MHCLG,08/06/2018,Advertising,Decentralisation and Local Growth,KINDRED AGENCY LTD,,Small,,216917045,5106236681,Advertising,NPH Post Campaign research,SW1P 2AF,"4,298.00",,
"Housing, Communities & Local Government",MHCLG,08/06/2018,Agency Staff,Chief Finance Office,CAPITA BUS. SERV. LTD (CON LAB),,Large,,,5106236886,Contingent Labour,Cyber adviser extension,DL1 9WQ,"34,201.01",,
"Housing, Communities & Local Government",MHCLG,08/06/2018,Agency Staff,Chief Finance Office,CAPITA BUS. SERV. LTD (CON LAB),,Large,,,5106236887,Contingent Labour,cloud architecture - interim ext,DL1 9WQ,"3,307.30",,
"Housing, Communities & Local Government",MHCLG,08/06/2018,Agency Staff,Chief Finance Office,CAPITA BUS. SERV. LTD (CON LAB),,Large,,,5106236889,Contingent Labour,Developing Digital Cap ext apr-sept 18,DL1 9WQ,"4,804.90",,
"Housing, Communities & Local Government",MHCLG,08/06/2018,Agency Staff,Chief Finance Office,CAPITA BUS. SERV. LTD (CON LAB),,Large,,,5106236891,Contingent Labour,Capita Business Services - Business planning,DL1 9WQ,"11,553.19",,
"Housing, Communities & Local Government",MHCLG,08/06/2018,Agency Staff,Chief Finance Office,CAPITA BUS. SERV. LTD (CON LAB),,Large,,,5106236893,Contingent Labour,Digital Product Manager - AS,DL1 9WQ,"2,475.68",,
"Housing, Communities & Local Government",MHCLG,08/06/2018,Agency Staff,Chief Finance Office,CAPITA BUS. SERV. LTD (CON LAB),,Large,,,5106236894,Contingent Labour,Portfolio Management -  Support,DL1 9WQ,"4,305.70",,
"Housing, Communities & Local Government",MHCLG,08/06/2018,Agency Staff,Chief Finance Office,CAPITA BUS. SERV. LTD (CON LAB),,Large,,,5106236895,Contingent Labour,programme office support - VE,DL1 9WQ,"1,726.88",,
"Housing, Communities & Local Government",MHCLG,08/06/2018,Agency Staff,Chief Finance Office,CAPITA BUS. SERV. LTD (CON LAB),,Large,,,5106236897,Contingent Labour,User Research Lead - RRJ,DL1 9WQ,"1,914.08",,
"Housing, Communities & Local Government",MHCLG,08/06/2018,Agency Staff,Chief Finance Office,CAPITA BUS. SERV. LTD (CON LAB),,Large,,,5106236898,Contingent Labour,interim g7 procurement manager,DL1 9WQ,"2,777.76",,
"Housing, Communities & Local Government",MHCLG,08/06/2018,Agency Staff,Chief Finance Office,CAPITA BUS. SERV. LTD (CON LAB),,Large,,,5106236900,Contingent Labour,Interim Manager,DL1 9WQ,"11,553.19",,
"Housing, Communities & Local Government",MHCLG,08/06/2018,Agency Staff,Chief Finance Office,CAPITA BUS. SERV. LTD (CON LAB),,Large,,,5106236901,Contingent Labour,BST tech support and testing EO (6 month,DL1 9WQ,916.75,,
"Housing, Communities & Local Government",MHCLG,08/06/2018,Agency Staff,Decentralisation and Local Growth,CAPITA BUS. SERV. LTD (CON LAB),,Large,,,5106236892,Contingent Labour,Interim contractor,DL1 9WQ,99.96,,
"Housing, Communities & Local Government",MHCLG,08/06/2018,Agency Staff,Decentralisation and Local Growth,CAPITA BUS. SERV. LTD (CON LAB),,Large,,,5106236892,Contingent Labour,Interim contractor,DL1 9WQ,"1,057.75",,
"Housing, Communities & Local Government",MHCLG,08/06/2018,Agency Staff,Housing & BSP,CAPITA BUS. SERV. LTD (CON LAB),,Large,,,5106236888,Contingent Labour,Extension for interim administrative support,DL1 9WQ,"1,387.14",,
"Housing, Communities & Local Government",MHCLG,08/06/2018,Conferences and Meeting Facilities,Decentralisation and Local Growth,CALDER CONFERENCES  LTD,,Small,,,2100283377,Business Travel Accommodation,Building Design conferences,LS16 6RF,"63,420.18",,
"Housing, Communities & Local Government",MHCLG,08/06/2018,Conferences and Meeting Facilities,Housing & BSP,LOCAL GOVERNMENT ASSOCIATION,,Public Bodies,,763817103,5106236882,Business Travel Accommodation,Private Rented Sector Seminar ,SW1P 3HZ,"2,520.00",,
"Housing, Communities & Local Government",MHCLG,08/06/2018,Courier Services,Chief Finance Office,NEOPOST LTD,,Large,,770080364,5106236902,Office Solutions,Service Plan Charge 2018,RM1 2AR,"1,027.19",,
"Housing, Communities & Local Government",MHCLG,08/06/2018,ERDF Work in Progress � Capital,Decentralisation and Local Growth, WEST YORKSHIRE COMBINED AUTHORITY,,Large,,,7700002184,,ERDF grant payment,LS1 2DE,"318,873.00",Yes,
"Housing, Communities & Local Government",MHCLG,08/06/2018,ERDF Work in Progress � Capital,Decentralisation and Local Growth, WEST YORKSHIRE COMBINED AUTHORITY,,Large,,,7700002185,,ERDF grant payment,LS1 2DE,"276,428.00",Yes,
"Housing, Communities & Local Government",MHCLG,08/06/2018,ERDF Work in Progress � Capital,Decentralisation and Local Growth,CHESHIRE WEST AND CHESTER COUNCIL,,Large,,,7700002186,,ERDF grant payment,CH1 2NP,"117,417.49",Yes,
"Housing, Communities & Local Government",MHCLG,08/06/2018,ERDF Work in Progress � Capital,Decentralisation and Local Growth,CORNWALL DEVELOPMENT COMPANY,,Medium,,,7700002187,,ERDF grant payment,TR15 3QG,"178,977.00",Yes,
"Housing, Communities & Local Government",MHCLG,08/06/2018,ERDF Work in Progress � Resource,Decentralisation and Local Growth, WEST YORKSHIRE COMBINED AUTHORITY,,Large,,,7700002184,,ERDF grant payment,LS1 2DE,"22,124.57",Yes,
"Housing, Communities & Local Government",MHCLG,08/06/2018,ERDF Work in Progress � Resource,Decentralisation and Local Growth, WEST YORKSHIRE COMBINED AUTHORITY,,Large,,,7700002185,,ERDF grant payment,LS1 2DE,"49,732.01",Yes,
"Housing, Communities & Local Government",MHCLG,08/06/2018,ERDF Work in Progress � Resource,Decentralisation and Local Growth,ART SERVICES GRANTS LTD T/A SPACE,,Small,,,7700002183,,ERDF grant payment,E8 3RH,"79,140.27",Yes,
"Housing, Communities & Local Government",MHCLG,08/06/2018,ERDF Work in Progress � Resource,Decentralisation and Local Growth,CAPITAL ENTERPRISE (UK) LIMITED,Yes,Small,,,7700002182,,ERDF grant payment,NE1 2SD,"261,220.01",Yes,
"Housing, Communities & Local Government",MHCLG,08/06/2018,ERDF Work in Progress � Resource,Decentralisation and Local Growth,CHESHIRE WEST AND CHESTER COUNCIL,,Large,,,7700002186,,ERDF grant payment,CH1 2NP,"14,510.65",Yes,
"Housing, Communities & Local Government",MHCLG,08/06/2018,ERDF Work in Progress � Resource,Decentralisation and Local Growth,CHESHIRE WEST AND CHESTER COUNCIL,,Large,,,7700002188,,ERDF grant payment,CH1 2NP,"10,158.36",Yes,
"Housing, Communities & Local Government",MHCLG,08/06/2018,ERDF Work in Progress � Resource,Decentralisation and Local Growth,CORNWALL DEVELOPMENT COMPANY,,Medium,,,7700002187,,ERDF grant payment,TR15 3QG,"52,234.24",Yes,
"Housing, Communities & Local Government",MHCLG,08/06/2018,ERDF Work in Progress � Resource,Decentralisation and Local Growth,SURREY UNIVERSITY,,Large,,,7700002181,,ERDF grant payment,GU2 7XH,"72,598.26",Yes,
"Housing, Communities & Local Government",MHCLG,08/06/2018,ERDF Work in Progress � Resource,Decentralisation and Local Growth,YTKO LIMITED,,Small,,,7700002189,,ERDF grant payment,CB6 1RA,"62,517.38",Yes,
"Housing, Communities & Local Government",MHCLG,08/06/2018,IT - Service Contracts,Chief Finance Office,CAPITA BUS. SERV. LTD (CON LAB),,Large,,,5106236899,Contingent Labour,Digital Service Director - SP,DL1 9WQ,"8,733.74",,
"Housing, Communities & Local Government",MHCLG,08/06/2018,IT - Service Contracts,Chief Finance Office,FUJITSU SERVICES LTD,,Large,,423375062,5106236884,IT Managed / Outsourced Services,Archive file maintenance,WA3 6GD,"1,273.20",,
"Housing, Communities & Local Government",MHCLG,08/06/2018,IT - Service Contracts,Chief Finance Office,RISUAL LIMITED,,Medium,,,5106236873,IT Managed / Outsourced Services,Database Design and Development,ST18 0WP,"2,550.00",,
"Housing, Communities & Local Government",MHCLG,08/06/2018,IT - Service Contracts,Chief Finance Office,RISUAL LIMITED,,Medium,,,5106236874,IT Managed / Outsourced Services,Database Design and Development,ST18 0WP,"8,500.00",,
"Housing, Communities & Local Government",MHCLG,08/06/2018,Physical Storage,Chief Finance Office,IRON MOUNTAIN (UK) LIMITED,,Large,,501338354,5106236815,Warehousing and Storage,Storage - off site tapes 2017-2018,EH54 7DF,541.36,,
"Housing, Communities & Local Government",MHCLG,08/06/2018,Publications,Decentralisation and Local Growth,JONES YARRELL LEADENHALL LTD,,Large,,505670265,5106236909,Learning and Development Materials,JYL Printed Publications - 17-18,E3 3JH,433.77,,
"Housing, Communities & Local Government",MHCLG,08/06/2018,Repayments of LA Grant (Cap),Decentralisation and Local Growth,PORTSMOUTH CITY COUNCIL,,Public Bodies,,211183082,2300002913,,RGF grant repayment,PO1 2AR,"-13,149.36",,
"Housing, Communities & Local Government",MHCLG,08/06/2018,Training,Chief Finance Office,WELLESLEY INFORMATION SERVICES,,Large,,940293111,5106236854,Development and Training,Civil Service Training,21279-9514,"1,835.43",,
"Housing, Communities & Local Government",MHCLG,11/06/2018,Agency Staff,Chief Finance Office,ADVICE CLOUD LIMITED,,Small,,,5106236944,IT Managed / Outsourced Services,contractor - G Cloud - DB,BN3 3JA,"5,610.00",,
"Housing, Communities & Local Government",MHCLG,11/06/2018,Agency Staff,Chief Finance Office,CAPITA BUS. SERV. LTD (CON LAB),,Large,,,5106236943,Contingent Labour,Cyber adviser extension,DL1 9WQ,"2,399.26",,
"Housing, Communities & Local Government",MHCLG,11/06/2018,Agency Staff,Housing & BSP,CAPITA BUS. SERV. LTD (CON LAB),,Large,,,5106236948,Contingent Labour,Extension for�interim administrative support,DL1 9WQ,"1,463.38",,
"Housing, Communities & Local Government",MHCLG,11/06/2018,Agency Staff,Local Government & Public Services,BROOK STREET UK LTD,,Large,,364940028,5106236937,Contingent Labour,Interim Admin support,AL1 4JB,489.37,,
"Housing, Communities & Local Government",MHCLG,11/06/2018,ERDF Work in Progress � Capital,Decentralisation and Local Growth, WEST YORKSHIRE COMBINED AUTHORITY,,Large,,,7700002195,,ERDF grant payment,LS1 2DE,"1,000,316.34",Yes,
"Housing, Communities & Local Government",MHCLG,11/06/2018,ERDF Work in Progress � Capital,Decentralisation and Local Growth, WEST YORKSHIRE COMBINED AUTHORITY,,Large,,,7700002198,,ERDF grant payment,LS1 2DE,"441,646.50",Yes,
"Housing, Communities & Local Government",MHCLG,11/06/2018,ERDF Work in Progress � Capital,Decentralisation and Local Growth,CORNWALL COUNCIL,,Large,,,7700002197,,ERDF grant payment,TR1 3AY,"528,526.36",Yes,
"Housing, Communities & Local Government",MHCLG,11/06/2018,ERDF Work in Progress � Capital,Decentralisation and Local Growth,CORNWALL COUNCIL,,Large,,,7700002199,,ERDF grant payment,TR1 3AY,"1,597,156.08",Yes,
"Housing, Communities & Local Government",MHCLG,11/06/2018,ERDF Work in Progress � Capital,Decentralisation and Local Growth,SOUTH HOLLAND DISTRICT COUNCIL,,,,,7700002190,,ERDF grant payment,PE11 2XE,"172,733.00",Yes,
"Housing, Communities & Local Government",MHCLG,11/06/2018,ERDF Work in Progress � Resource,Decentralisation and Local Growth, WEST YORKSHIRE COMBINED AUTHORITY,,Large,,,7700002195,,ERDF grant payment,LS1 2DE,"27,831.53",Yes,
"Housing, Communities & Local Government",MHCLG,11/06/2018,ERDF Work in Progress � Resource,Decentralisation and Local Growth, WEST YORKSHIRE COMBINED AUTHORITY,,Large,,,7700002198,,ERDF grant payment,LS1 2DE,"25,849.27",Yes,
"Housing, Communities & Local Government",MHCLG,11/06/2018,ERDF Work in Progress � Resource,Decentralisation and Local Growth,DURHAM UNIVERSITY,,Large,,,7700002192,,ERDF grant payment,DH1 3LE,"13,919.20",Yes,
"Housing, Communities & Local Government",MHCLG,11/06/2018,ERDF Work in Progress � Resource,Decentralisation and Local Growth,EAST MIDLANDS CHAMBER(DNL),,,,,7700002200,,ERDF grant payment,S41 8ND,"153,734.96",Yes,
"Housing, Communities & Local Government",MHCLG,11/06/2018,ERDF Work in Progress � Resource,Decentralisation and Local Growth,NEWCASTLE CITY COUNCIL,,,,,7700002194,,ERDF grant payment,NE1 8QH,"10,744.37",Yes,
"Housing, Communities & Local Government",MHCLG,11/06/2018,ERDF Work in Progress � Resource,Decentralisation and Local Growth,OXFORD INNOVATION SERVICES LTD,,Medium,,,7700002196,,ERDF grant payment,OX1 1BY,"152,247.08",Yes,
"Housing, Communities & Local Government",MHCLG,11/06/2018,ERDF Work in Progress � Resource,Decentralisation and Local Growth,OXFORD INNOVATION SERVICES LTD,,Medium,,,7700002202,,ERDF grant payment,OX1 1BY,"427,657.93",Yes,
"Housing, Communities & Local Government",MHCLG,11/06/2018,ERDF Work in Progress � Resource,Decentralisation and Local Growth,PRP ARCHITECTS LLP,,Micro,,218614801,7700002201,,ERDF grant payment,KT7 0QJ,"188,597.97",Yes,
"Housing, Communities & Local Government",MHCLG,11/06/2018,ERDF Work in Progress � Resource,Decentralisation and Local Growth,RTC NORTH,,Small,,,7700002191,,ERDF grant payment,SR5 3XB,"141,391.79",Yes,
"Housing, Communities & Local Government",MHCLG,11/06/2018,ERDF Work in Progress � Resource,Decentralisation and Local Growth,RTC NORTH,,Small,,,7700002193,,ERDF grant offset,SR5 3XB,"-3,562.72",Yes,
"Housing, Communities & Local Government",MHCLG,11/06/2018,ERDF Work in Progress � Resource,Decentralisation and Local Growth,SOUTH HOLLAND DISTRICT COUNCIL,,,,,7700002190,,ERDF grant payment,PE11 2XE,"52,739.90",Yes,
"Housing, Communities & Local Government",MHCLG,11/06/2018,"IT - PC, Network & Hardware",Chief Finance Office,DELL CORPORATION LTD,,Large,,298783333,5106236885,ICT Hardware,IT Hardware,RG12 1LF,"3,508.80",,
"Housing, Communities & Local Government",MHCLG,11/06/2018,IT - Service Contracts,Chief Finance Office,FUJITSU SERVICES LTD,,Large,,423375062,5106236945,IT Managed / Outsourced Services,New Requirements  17-18,WA3 6GD,755.50,,
"Housing, Communities & Local Government",MHCLG,11/06/2018,IT - Service Contracts,Chief Finance Office,INTERQUEST GROUP UK LIMITED,,Large,,423935241,5106236933,IT Managed / Outsourced Services,SAP specialist,EC4R 0AN,"9,900.00",,
"Housing, Communities & Local Government",MHCLG,11/06/2018,IT - Service Contracts,Chief Finance Office,INTERQUEST GROUP UK LIMITED,,Large,,423935241,5106236940,IT Managed / Outsourced Services,SAP specialist,EC4R 0AN,613.73,,
"Housing, Communities & Local Government",MHCLG,11/06/2018,IT - Software Maintenance,Chief Finance Office,INTERQUEST GROUP UK LIMITED,,Large,,423935241,5106236935,IT Managed / Outsourced Services,SAP BASIS Support Services,EC4R 0AN,"16,300.54",,
"Housing, Communities & Local Government",MHCLG,11/06/2018,Professional services,Decentralisation and Local Growth,VALUATION OFFICE AGENCY,,Public Bodies,,215253886,5106236957,Financial,Planning Changes to support infrastructure,W1D 5BU,"1,892.64",,
"Housing, Communities & Local Government",MHCLG,11/06/2018,Services provided by other Govt Orgs,Chief Finance Office,RAILWAYS PENSION TRUSTEE CO LTD,,Large,,738418532,5106236875,Financial,Pension valuation cost for Annual Report,DL3 6XR,"3,875.80",Yes,
"Housing, Communities & Local Government",MHCLG,11/06/2018,Steady State Service Provision,Housing & BSP,SERCO LTD,,Large,,216308056,5106236850,Business Process Outsourcing Services,Right to buy agent,RG27 9UY,"30,621.19",,
"Housing, Communities & Local Government",MHCLG,11/06/2018,Training,Chief Finance Office,ACT NOW TRAINING LTD,,Micro,,732511501,5106236868,Development and Training,Civil Service Training,WF12 9QE,349.00,,
"Housing, Communities & Local Government",MHCLG,11/06/2018,Training,Chief Finance Office,LSR TRAINING AND DEVELOPMENT LTD,,Micro,,,5106236954,Development and Training,Civil Service Training,YO42 4RE,756.00,,
"Housing, Communities & Local Government",MHCLG,11/06/2018,Training,Corporate Services,LEXXIC LTD,,Micro,,210121333,5106236941,Development and Training,Civil Service Training,SW9 6DE,396.00,,
"Housing, Communities & Local Government",MHCLG,12/06/2018,Agency Staff,Chief Finance Office,ALLEN LANE LTD,,Medium,Yes,,5106237016,Contingent Labour,Admin Support,,"3,360.00",,
"Housing, Communities & Local Government",MHCLG,12/06/2018,Agency Staff,Chief Finance Office,ALLEN LANE LTD,,Medium,Yes,,5106237019,Contingent Labour,Admin Support,,"2,688.00",,
"Housing, Communities & Local Government",MHCLG,12/06/2018,Agency Staff,Chief Finance Office,CAPITA BUS. SERV. LTD (CON LAB),,Large,,,5106237028,Contingent Labour,Developing Digital Cap ext apr-sept 18,DL1 9WQ,"4,804.90",,
"Housing, Communities & Local Government",MHCLG,12/06/2018,Agency Staff,Decentralisation and Local Growth,CAPITA BUS. SERV. LTD (CON LAB),,Large,,,5106237017,Contingent Labour,press officer - 4/03/2018 to 28/07/2018,DL1 9WQ,"1,245.31",,
"Housing, Communities & Local Government",MHCLG,12/06/2018,Current Grants to Non Profit Bodies,Housing & BSP,CEL GROUP,,Medium,,394794614,5106237011,Technical Services,Home Improvement Agencies 01.04.18 - 30.09.20,WA2 0YL,"78,609.92",Yes,
"Housing, Communities & Local Government",MHCLG,12/06/2018,ERDF Work in Progress � Capital,Decentralisation and Local Growth, WEST YORKSHIRE COMBINED AUTHORITY,,Large,,,7700002212,,ERDF grant payment,LS1 2DE,"482,469.57",Yes,
"Housing, Communities & Local Government",MHCLG,12/06/2018,ERDF Work in Progress � Capital,Decentralisation and Local Growth,MANCHESTER UNIVERSITY,,Large,,,7700002203,,ERDF grant payment,M13 9PL,"1,158,116.32",Yes,
"Housing, Communities & Local Government",MHCLG,12/06/2018,ERDF Work in Progress � Capital,Decentralisation and Local Growth,UNIVERSITY OF BIRMINGHAM,,Large,,,7700002209,,ERDF grant payment,B15 2TT,"327,814.56",Yes,
"Housing, Communities & Local Government",MHCLG,12/06/2018,ERDF Work in Progress � Resource,Decentralisation and Local Growth, WEST YORKSHIRE COMBINED AUTHORITY,,Large,,,7700002212,,ERDF grant payment,LS1 2DE,"28,062.20",Yes,
"Housing, Communities & Local Government",MHCLG,12/06/2018,ERDF Work in Progress � Resource,Decentralisation and Local Growth,BIRMINGHAM CITY COUNCIL,,,,,7700002206,,ERDF grant payment,B2 2AJ,"161,861.07",Yes,
"Housing, Communities & Local Government",MHCLG,12/06/2018,ERDF Work in Progress � Resource,Decentralisation and Local Growth,CORNWALL MARINE NETWORK LTD,,Small,,,7700002211,,ERDF grant payment,TR11 4SZ,"25,528.35",Yes,
"Housing, Communities & Local Government",MHCLG,12/06/2018,ERDF Work in Progress � Resource,Decentralisation and Local Growth,EXEMPLAS LIMITED,,Medium,,,7700002213,,ERDF grant payment,AL7 3AX,"88,765.00",Yes,
"Housing, Communities & Local Government",MHCLG,12/06/2018,ERDF Work in Progress � Resource,Decentralisation and Local Growth,HAMPSHIRE COUNTY COUNCIL,,,,,7700002205,,ERDF grant offset,SO23 8UJ,-404.38,Yes,
"Housing, Communities & Local Government",MHCLG,12/06/2018,ERDF Work in Progress � Resource,Decentralisation and Local Growth,HAMPSHIRE COUNTY COUNCIL,,,,,7700002210,,ERDF grant payment,SO23 8UJ,"10,405.63",Yes,
"Housing, Communities & Local Government",MHCLG,12/06/2018,ERDF Work in Progress � Resource,Decentralisation and Local Growth,LINCONSHIRE COUNTY COUNCIL,,,,,7700002207,,ERDF grant payment,LN1 1YL,"51,471.32",Yes,
"Housing, Communities & Local Government",MHCLG,12/06/2018,ERDF Work in Progress � Resource,Decentralisation and Local Growth,MANCHESTER METROPOLITAN UNIVERSITY,,,,,7700002214,,ERDF grant payment,M15 6BH,"42,723.42",Yes,
"Housing, Communities & Local Government",MHCLG,12/06/2018,ERDF Work in Progress � Resource,Decentralisation and Local Growth,UNIVERSITY OF BIRMINGHAM,,Large,,,7700002209,,ERDF grant payment,B15 2TT,"265,621.77",Yes,
"Housing, Communities & Local Government",MHCLG,12/06/2018,ERDF Work in Progress � Resource,Decentralisation and Local Growth,UNIVERSITY OF CENTRAL LANCASHIRE,,Large,,,7700002215,,ERDF grant payment,PR7 7DL,"92,934.83",Yes,
"Housing, Communities & Local Government",MHCLG,12/06/2018,ERDF Work in Progress � Resource,Decentralisation and Local Growth,WENTA,,Small,,,7700002204,,ERDF grant offset,WD24 7ND,"-1,194.52",Yes,
"Housing, Communities & Local Government",MHCLG,12/06/2018,ERDF Work in Progress � Resource,Decentralisation and Local Growth,WENTA,,Small,,,7700002208,,ERDF grant payment,WD24 7ND,"102,264.45",Yes,
"Housing, Communities & Local Government",MHCLG,12/06/2018,EXP � PURCHASE OF GOODS /SERVICES R & D,Chief Finance Office,UNIVERSITY OF YORK,,,,,5106237020,Research,Research - Social Housing Literature Review Commission,YO10 5DD,"9,998.00",,
"Housing, Communities & Local Government",MHCLG,12/06/2018,EXP � PURCHASE OF GOODS /SERVICES R & D,Housing & BSP,BUILDING RESEARCH ESTABLISHMENT,,Large,,896495033,5106236880,Research,non acm cladding materials,WD25 9XX,"4,352.40",,
"Housing, Communities & Local Government",MHCLG,12/06/2018,EXP � PURCHASE OF GOODS /SERVICES R & D,Housing & BSP,BUILDING RESEARCH ESTABLISHMENT,,Large,,896495033,5106236881,Research,non acm cladding materials,WD25 9XX,680.40,,
"Housing, Communities & Local Government",MHCLG,12/06/2018,Grant in Aid to NDPBs (non budget),Housing & BSP,HOMES ENGLAND,,Public Bodies,,215576860,2100283439,,Homes England April 2018 Grant in Aid payment,NE11 0NA,"399,713,865.00",Yes,
"Housing, Communities & Local Government",MHCLG,12/06/2018,IT - Service Contracts,Chief Finance Office,TEAMULTRA LTD,,Medium,,,5106237041,IT Managed / Outsourced Services,ServiceNow configuration,AL10 9TW,"-27,720.00",,
"Housing, Communities & Local Government",MHCLG,12/06/2018,IT - Service Contracts,Chief Finance Office,TEAMULTRA LTD,,Medium,,,5106237045,Software,ServiceNow licenses,AL10 9TW,"33,264.00",,
"Housing, Communities & Local Government",MHCLG,12/06/2018,Online Database Information Retrieval,Chief Finance Office,IDOX SOFTWARE LTD,,Large,,423692610,5106236974,ICT Services,Idox information service,G2 6JZ,"13,800.00",,
"Housing, Communities & Local Government",MHCLG,12/06/2018,Professional services,Chief Finance Office,MERCATOR IT SOLUTIONS LTD,,Medium,,,5106237021,Financial,IT Mod project costs,TN6 2TT,"20,520.00",,
"Housing, Communities & Local Government",MHCLG,12/06/2018,Publications,Decentralisation and Local Growth,THOMSON REUTERS (PROFESSIONAL) UK L,,Large,,227272184,5106237008,Learning and Development Materials,Planning Encyclopaedias,SP10 9AH,"1,625.00",,
"Housing, Communities & Local Government",MHCLG,12/06/2018,Publications,Decentralisation and Local Growth,THOMSON REUTERS (PROFESSIONAL) UK L,,Large,,227272184,5106237009,Learning and Development Materials,Planning Encyclopaedias,SP10 9AH,"1,075.00",,
"Housing, Communities & Local Government",MHCLG,12/06/2018,Software Licences,Chief Finance Office,SOFTCAT LIMITED,,Large,,397333253,5106236833,Software,MAGic Magnification  Commercial - Perpet,SL7 1TB,549.80,,
"Housing, Communities & Local Government",MHCLG,12/06/2018,Software Licences,Chief Finance Office,SOFTCAT LIMITED,,Large,,397333253,5106236833,Software,MindJet MindManager For Windows,SL7 1TB,67.46,,
"Housing, Communities & Local Government",MHCLG,12/06/2018,Software Licences,Chief Finance Office,SOFTCAT LIMITED,,Large,,397333253,5106236833,Software,Mindjet MindManager For Windows,SL7 1TB,342.10,,
"Housing, Communities & Local Government",MHCLG,12/06/2018,Software Licences,Chief Finance Office,SOFTCAT LIMITED,,Large,,397333253,5106236833,Software,ZoomText Magnifier/Reader Software,SL7 1TB,764.21,,
"Housing, Communities & Local Government",MHCLG,12/06/2018,Software Licences,Housing & BSP,BLUE CHULA LTD,,Micro,,,5106236975,Software,Helped set up online networking facility,S35 8NW,"1,750.00",,
"Housing, Communities & Local Government",MHCLG,12/06/2018,Steady State Service Provision,Decentralisation and Local Growth,GROUNDWORK UK,Yes,,,739193758,5106236849,Business Process Outsourcing Services,Grant admin costs,B1 2RR,"6,522.00",,
"Housing, Communities & Local Government",MHCLG,12/06/2018,Training,Chief Finance Office,LSR TRAINING AND DEVELOPMENT LTD,,Micro,,,5106236973,Development and Training,Civil Service Training,YO42 4RE,395.00,,
"Housing, Communities & Local Government",MHCLG,13/06/2018,Agency Staff,Chief Finance Office,BROOK STREET UK LTD,,Large,,364940028,5106236983,Contingent Labour,Interim Admin support,AL1 4JB,594.36,,
"Housing, Communities & Local Government",MHCLG,13/06/2018,Agency Staff,Decentralisation and Local Growth,CAPITA BUS. SERV. LTD (CON LAB),,Large,,,5106236982,Contingent Labour,press officer - 4/03/2018 to 28/07/2018,DL1 9WQ,"3,268.94",,
"Housing, Communities & Local Government",MHCLG,13/06/2018,ERDF Work in Progress � Capital,Decentralisation and Local Growth,COCKWELLS MOD CLASSIC BOATBUILDING,,,,,7700002217,,ERDF grant payment,TR11 5NS,"83,262.68",Yes,
"Housing, Communities & Local Government",MHCLG,13/06/2018,ERDF Work in Progress � Capital,Decentralisation and Local Growth,CRANFIELD UNIVERSITY,,,,,2300002601,,Biologocal & Thermal Renewable Enery Demonstrator,MK43 0AL,"125,789.48",Yes,
"Housing, Communities & Local Government",MHCLG,13/06/2018,ERDF Work in Progress � Capital,Decentralisation and Local Growth,CRANFIELD UNIVERSITY,,,,,2300002601,,Offshore Algae Supply Infrastructure (OASIS),MK43 0AL,"-260,508.88",Yes,
"Housing, Communities & Local Government",MHCLG,13/06/2018,ERDF Work in Progress � Capital,Decentralisation and Local Growth,FALMOUTH DEVELOPMENTS LTD,,Micro,,,7700002220,,ERDF grant payment,EX2 5WS,"667,245.41",Yes,
"Housing, Communities & Local Government",MHCLG,13/06/2018,ERDF Work in Progress � Capital,Decentralisation and Local Growth,FALMOUTH UNIVERSITY,,Large,,,7700002221,,ERDF grant payment,TR10 9FE,"347,465.12",Yes,
"Housing, Communities & Local Government",MHCLG,13/06/2018,ERDF Work in Progress � Capital,Decentralisation and Local Growth,UNIVERSITY OF PLYMOUTH,,,,,7700002218,,ERDF grant payment,PL4 8AA,"216,000.00",Yes,
"Housing, Communities & Local Government",MHCLG,13/06/2018,ERDF Work in Progress � Resource,Decentralisation and Local Growth,ASTON UNIVERSITY,,Large,,227749751,7700002216,,ERDF grant payment,B4 7ET,"59,938.47",Yes,
"Housing, Communities & Local Government",MHCLG,13/06/2018,ERDF Work in Progress � Resource,Decentralisation and Local Growth,CRANFIELD UNIVERSITY,,,,,2300002601,,Biologocal & Thermal Renewable Enery Demonstrator,MK43 0AL,"189,606.83",Yes,
"Housing, Communities & Local Government",MHCLG,13/06/2018,ERDF Work in Progress � Resource,Decentralisation and Local Growth,CRANFIELD UNIVERSITY,,,,,2300002601,,Offshore Algae Supply Infrastructure (OASIS),MK43 0AL,"-512,283.23",Yes,
"Housing, Communities & Local Government",MHCLG,13/06/2018,ERDF Work in Progress � Resource,Decentralisation and Local Growth,CRANFIELD UNIVERSITY,,,,,2300002601,,Sustainable Design Led Innovation,MK43 0AL,"47,971.97",Yes,
"Housing, Communities & Local Government",MHCLG,13/06/2018,ERDF Work in Progress � Resource,Decentralisation and Local Growth,GWE BUSINESS WEST LTD,,,,,7700002219,,ERDF grant payment,BS8 3RA,"644,338.06",Yes,
"Housing, Communities & Local Government",MHCLG,13/06/2018,ERDF Work in Progress � Resource,Decentralisation and Local Growth,UNIVERSITY OF PLYMOUTH,,,,,7700002218,,ERDF grant payment,PL4 8AA,"42,285.54",Yes,
"Housing, Communities & Local Government",MHCLG,13/06/2018,EXP � PURCHASE OF GOODS /SERVICES R & D,Local Government & Public Services,MARKET & OPINION RESEARCH INT LTD,,Large,,227257185,5106236735,Research,Year 4 2018/19 Milestone 2,E1W 1YW,"50,958.40",,
"Housing, Communities & Local Government",MHCLG,13/06/2018,"IT - PC, Network & Hardware",Corporate Services,SPECIALIST COMPUTER CENTRES PLC,,Large,,227720521,5106237052,ICT Hardware,Philips Brilliance B-line 258B6QUEB,B11 2LE,320.88,,
"Housing, Communities & Local Government",MHCLG,13/06/2018,IT - Service Contracts,Chief Finance Office,ARCUS GLOBAL LIMITED,,Medium,,,5106237059,IT Managed / Outsourced Services,MCIS/TESA hosting support 18/19,CB4 2HY,"11,089.73",,
"Housing, Communities & Local Government",MHCLG,13/06/2018,IT - Service Contracts,Chief Finance Office,ARCUS GLOBAL LIMITED,,Medium,,,5106237060,IT Managed / Outsourced Services,Datamart hosting Support 18-19,CB4 2HY,"46,160.03",,
"Housing, Communities & Local Government",MHCLG,13/06/2018,IT - Service Contracts,Chief Finance Office,ARCUS GLOBAL LIMITED,,Medium,,,5106237062,IT Managed / Outsourced Services,Datamart hosting Support 18-19,CB4 2HY,"53,913.00",,
"Housing, Communities & Local Government",MHCLG,13/06/2018,IT - Service Contracts,Chief Finance Office,ARCUS GLOBAL LIMITED,,Medium,,,5106237063,IT Managed / Outsourced Services,Datamart T&M 2018-19,CB4 2HY,"20,690.00",,
"Housing, Communities & Local Government",MHCLG,13/06/2018,IT - Service Contracts,Chief Finance Office,CAJA,,Micro,,,5106236790,IT Managed / Outsourced Services,DELTA Comms manager,ST5 5NB,"1,190.00",,
"Housing, Communities & Local Government",MHCLG,13/06/2018,IT - Service Contracts,Chief Finance Office,INTERQUEST GROUP UK LIMITED,,Large,,423935241,5106237036,IT Managed / Outsourced Services,SAP Authorisations Specialist,EC4R 0AN,"3,500.00",,
"Housing, Communities & Local Government",MHCLG,13/06/2018,IT - Service Contracts,Chief Finance Office,INTERQUEST GROUP UK LIMITED,,Large,,423935241,5106237037,IT Managed / Outsourced Services,SAP Authorisations Specialist,EC4R 0AN,"3,500.00",,
"Housing, Communities & Local Government",MHCLG,13/06/2018,IT - Service Contracts,Chief Finance Office,TEAMULTRA LTD,,Medium,,,5106237067,IT Managed / Outsourced Services,ServiceNow configuration,AL10 9TW,"2,200.00",,
"Housing, Communities & Local Government",MHCLG,13/06/2018,IT - Service Contracts,Chief Finance Office,TEAMULTRA LTD,,Medium,,,5106237071,IT Managed / Outsourced Services,ServiceNow configuration,AL10 9TW,"9,690.00",,
"Housing, Communities & Local Government",MHCLG,13/06/2018,IT - Software Maintenance,Chief Finance Office,KAIZEN ASSOCIATES LTD,,Micro,,217482430,5106237054,IT Managed / Outsourced Services,PROJ SAP Imp&Supp Services 18/19,SE1 6SW,"7,732.56",,
"Housing, Communities & Local Government",MHCLG,13/06/2018,IT - Software Maintenance,Chief Finance Office,KAIZEN ASSOCIATES LTD,,Micro,,217482430,5106237054,IT Managed / Outsourced Services,SAP Application Support 18/19,SE1 6SW,"28,313.63",,
"Housing, Communities & Local Government",MHCLG,13/06/2018,Printing,Decentralisation and Local Growth,STATIONERY OFFICE LTD,,Large,,779375633,5106237047,Printing Services,Statutory Instruments-Non Vatable,NR3 1PD,259.26,,
"Housing, Communities & Local Government",MHCLG,13/06/2018,Professional services,Decentralisation and Local Growth,VALUATION OFFICE AGENCY,,Public Bodies,,215253886,5106237055,Financial,Planning Changes to support infrastructure,W1D 5BU,792.00,,
"Housing, Communities & Local Government",MHCLG,13/06/2018,Publications,Chief Finance Office,HAYMARKET PUBLISHING SERVS LTD,,Large,,516858800,5106237044,Learning and Development Materials,Planning magazine subscription,TW1 3SP,250.00,,
"Housing, Communities & Local Government",MHCLG,13/06/2018,Publications,Decentralisation and Local Growth,KANTAR MEDIA,Yes,Large,,,5106236855,Learning and Development Materials,S015335 - Press Cutting Prov,EC2M 2QS,"1,250.00",,
"Housing, Communities & Local Government",MHCLG,13/06/2018,Steady State Service Provision,Chief Finance Office,ALLPAY LIMITED,,Medium,,738359918,5106237042,Business Process Outsourcing Services,BACS Processing Services,HR1 3SE,771.88,,
"Housing, Communities & Local Government",MHCLG,13/06/2018,Steady State Service Provision,Corporate Services,CABINET OFFICE,,Large,,232159186,5106236939,Business Process Outsourcing Services,CS HR Charges for G7 Recruitment,FY5 3FW,"1,889.62",,
"Housing, Communities & Local Government",MHCLG,13/06/2018,Vehicle hire,Decentralisation and Local Growth,GOVERNMENT CAR & DESPATCH AGENCY,,Public Bodies,,,5106237050,Vehicle Hire and Lease,Mins Car (LT118) 17-18 ADDITIONAL,SW8 5AX,929.90,,
"Housing, Communities & Local Government",MHCLG,14/06/2018,Advertising,Decentralisation and Local Growth,CARAT LTD,,Large,,211589882,5106237138,Advertising,sheffield election    (non vat),NW1 3BF,-6.63,,
"Housing, Communities & Local Government",MHCLG,14/06/2018,Advertising,Decentralisation and Local Growth,CARAT LTD,,Large,,211589882,5106237138,Advertising,sheffield election   social media 17/18,NW1 3BF,"-8,566.34",,
"Housing, Communities & Local Government",MHCLG,14/06/2018,Advertising,Decentralisation and Local Growth,CARAT LTD,,Large,,211589882,5106237139,Advertising,sheffield election    (non vat),NW1 3BF,6.63,,
"Housing, Communities & Local Government",MHCLG,14/06/2018,Advertising,Decentralisation and Local Growth,CARAT LTD,,Large,,211589882,5106237139,Advertising,sheffield election   social media 17/18,NW1 3BF,"8,566.34",,
"Housing, Communities & Local Government",MHCLG,14/06/2018,BLKD DC EU Gts (Cap) to Prvt/Sec Persons & NPISH,Local Government & Public Services,MUATH TRUST,,Small,,,7500029507,,The Bordesley Centre: A Gateway to Eastside,B11 1AR,"-53,925.87",Yes,
"Housing, Communities & Local Government",MHCLG,14/06/2018,Copyright Licences,Chief Finance Office,COPYRIGHT LICENSING AGENCY LTD,,Medium,,294556899,5106237078,Legal,CLA copyright license 18-19,EC4A 1EN,"12,951.60",,
"Housing, Communities & Local Government",MHCLG,14/06/2018,ERDF Work in Progress � Capital,Decentralisation and Local Growth,LIVERPOOL HOPE UNIVERSITY COLLEGE,,,,,2300002898,,ERDF grant repayment,LA16 9JD,"-67,482.47",Yes,
"Housing, Communities & Local Government",MHCLG,14/06/2018,ERDF Work in Progress � Capital,Decentralisation and Local Growth,NGAGE SOLUTIONS LTD,,Small,,,7700002228,,ERDF grant payment,HP14 4BF,"198,604.11",Yes,
"Housing, Communities & Local Government",MHCLG,14/06/2018,ERDF Work in Progress � Capital,Decentralisation and Local Growth,SEVERN WYE ENERGY AGENCY LTD,,Small,,,7700002234,,ERDF grant payment,GL2 8DN,"5,740.71",Yes,
"Housing, Communities & Local Government",MHCLG,14/06/2018,ERDF Work in Progress � Capital,Decentralisation and Local Growth,SWMAS LTD,,Small,,,7700002233,,ERDF grant payment,TA6 4FJ,"199,515.28",Yes,
"Housing, Communities & Local Government",MHCLG,14/06/2018,ERDF Work in Progress � Capital,Decentralisation and Local Growth,WESTCOUNTRY RIVERS TRUST,,,,,7700002222,,ERDF grant payment,PL17 8PH,"8,572.69",Yes,
"Housing, Communities & Local Government",MHCLG,14/06/2018,ERDF Work in Progress � Capital,Decentralisation and Local Growth,WORCESTERSHIRE COUNTY COUNCIL,,,,,7700002236,,ERDF grant payment,WR5 2NP,"83,266.65",Yes,
"Housing, Communities & Local Government",MHCLG,14/06/2018,ERDF Work in Progress � Resource,Decentralisation and Local Growth,ALLIA LIMITED,,Small,,,7700002232,,ERDF grant payment,CB4 2HY,"55,052.93",Yes,
"Housing, Communities & Local Government",MHCLG,14/06/2018,ERDF Work in Progress � Resource,Decentralisation and Local Growth,EAST SUSSEX COUNTY COUNCIL,,,,,7700002225,,ERDF grant payment,BN7 1UE,"8,904.29",Yes,
"Housing, Communities & Local Government",MHCLG,14/06/2018,ERDF Work in Progress � Resource,Decentralisation and Local Growth,EAST SUSSEX COUNTY COUNCIL,,,,,7700002235,,ERDF grant payment,BN7 1UE,"8,153.64",Yes,
"Housing, Communities & Local Government",MHCLG,14/06/2018,ERDF Work in Progress � Resource,Decentralisation and Local Growth,HEREFORDSHIRE COUNCIL,,,,,7700002226,,ERDF grant payment,HR1 0LE,"12,383.11",Yes,
"Housing, Communities & Local Government",MHCLG,14/06/2018,ERDF Work in Progress � Resource,Decentralisation and Local Growth,LONDON BOROUGH LEWISHAM,,,,,7700002240,,ERDF grant payment,SE6 4RU,"56,420.63",Yes,
"Housing, Communities & Local Government",MHCLG,14/06/2018,ERDF Work in Progress � Resource,Decentralisation and Local Growth,NGAGE SOLUTIONS LTD,,Small,,,7700002228,,ERDF grant payment,HP14 4BF,"54,130.27",Yes,
"Housing, Communities & Local Government",MHCLG,14/06/2018,ERDF Work in Progress � Resource,Decentralisation and Local Growth,NGAGE SOLUTIONS LTD,,Small,,,7700002230,,ERDF grant payment,HP14 4BF,"45,786.76",Yes,
"Housing, Communities & Local Government",MHCLG,14/06/2018,ERDF Work in Progress � Resource,Decentralisation and Local Growth,OXFORD INNOVATION SERVICES LTD,,Medium,,,7700002237,,ERDF grant payment,OX1 1BY,"38,019.92",Yes,
"Housing, Communities & Local Government",MHCLG,14/06/2018,ERDF Work in Progress � Resource,Decentralisation and Local Growth,OXFORD INNOVATION SERVICES LTD,,Medium,,,7700002237,,ERDF grant payment,OX1 1BY,"40,676.67",Yes,
"Housing, Communities & Local Government",MHCLG,14/06/2018,ERDF Work in Progress � Resource,Decentralisation and Local Growth,OXFORD INNOVATION SERVICES LTD,,Medium,,,7700002237,,ERDF grant payment,OX1 1BY,"48,624.77",Yes,
"Housing, Communities & Local Government",MHCLG,14/06/2018,ERDF Work in Progress � Resource,Decentralisation and Local Growth,OXFORD INNOVATION SERVICES LTD,,Medium,,,7700002237,,ERDF grant payment,OX1 1BY,"45,212.97",Yes,
"Housing, Communities & Local Government",MHCLG,14/06/2018,ERDF Work in Progress � Resource,Decentralisation and Local Growth,OXFORDSHIRE COUNTY COUNCIL,,Large,,,7700002224,,ERDF grant payment,OX1 1ND,"2,050.37",Yes,
"Housing, Communities & Local Government",MHCLG,14/06/2018,ERDF Work in Progress � Resource,Decentralisation and Local Growth,PORTSMOUTH CITY COUNCIL,,,,,7700002238,,ERDF grant payment,PO1 2AR,"24,741.80",Yes,
"Housing, Communities & Local Government",MHCLG,14/06/2018,ERDF Work in Progress � Resource,Decentralisation and Local Growth,PORTSMOUTH CITY COUNCIL,,,,,7700002239,,ERDF grant payment,PO1 2AR,"45,569.94",Yes,
"Housing, Communities & Local Government",MHCLG,14/06/2018,ERDF Work in Progress � Resource,Decentralisation and Local Growth,SEVERN WYE ENERGY AGENCY LTD,,Small,,,7700002234,,ERDF grant payment,GL2 8DN,"5,960.35",Yes,
"Housing, Communities & Local Government",MHCLG,14/06/2018,ERDF Work in Progress � Resource,Decentralisation and Local Growth,SWMAS LTD,,Small,,,7700002233,,ERDF grant payment,TA6 4FJ,"89,428.33",Yes,
"Housing, Communities & Local Government",MHCLG,14/06/2018,ERDF Work in Progress � Resource,Decentralisation and Local Growth,UNIVERSITY OF BIRMINGHAM,,Large,,,7700002223,,ERDF grant payment,B15 2TT,"41,497.15",Yes,
"Housing, Communities & Local Government",MHCLG,14/06/2018,ERDF Work in Progress � Resource,Decentralisation and Local Growth,WESTCOUNTRY RIVERS TRUST,,,,,7700002222,,ERDF grant payment,PL17 8PH,"53,472.91",Yes,
"Housing, Communities & Local Government",MHCLG,14/06/2018,ERDF Work in Progress � Resource,Decentralisation and Local Growth,WESTCOUNTRY RIVERS TRUST,,,,,7700002231,,ERDF grant offset,PL17 8PH,-941.13,Yes,
"Housing, Communities & Local Government",MHCLG,14/06/2018,ERDF Work in Progress � Resource,Decentralisation and Local Growth,WORCESTERSHIRE COUNTY COUNCIL,,,,,7700002236,,ERDF grant payment,WR5 2NP,"46,414.42",Yes,
"Housing, Communities & Local Government",MHCLG,14/06/2018,IT - Service Contracts,Chief Finance Office,LEIDOS,,Large,,399909910,5106237029,IT Managed / Outsourced Services,PM & PMO For E-Claims,G3 8EP,"10,208.60",,
"Housing, Communities & Local Government",MHCLG,14/06/2018,IT - Service Contracts,Chief Finance Office,STATIONERY OFFICE LTD,,Large,,779375633,5106237085,IT Managed / Outsourced Services,E-Claims Phase 2 & 3,NR3 1PD,"55,755.00",,
"Housing, Communities & Local Government",MHCLG,14/06/2018,IT - Software Maintenance,Chief Finance Office,LEIDOS,,Large,,399909910,5106237088,IT Managed / Outsourced Services,MCIS/TESA Application Support Extension,G3 8EP,"14,250.00",,
"Housing, Communities & Local Government",MHCLG,14/06/2018,Legal Fees,Chief Finance Office,CITY COMPANY SEALS LTD,,,,,5106237086,Legal,Legal Advice,E8 3PN,498.00,,
"Housing, Communities & Local Government",MHCLG,14/06/2018,Mobile phone costs,Chief Finance Office,GAMMA TELECOM LTD,,Large,,,5106237090,Telecoms,Running costs Non-VAT,EC4M 7RD,85.00,,
"Housing, Communities & Local Government",MHCLG,14/06/2018,Mobile phone costs,Chief Finance Office,GAMMA TELECOM LTD,,Large,,,5106237090,Telecoms,SO12178 - Contract Running Costs 18/19,EC4M 7RD,"10,327.13",,
"Housing, Communities & Local Government",MHCLG,14/06/2018,Training,Decentralisation and Local Growth,ROYAL TOWN PLANNING INSTITUTE,,,,227231818,5106237092,Development and Training,Civil Service Training,EC3R 8DL,430.00,,
"Housing, Communities & Local Government",MHCLG,14/06/2018,Vehicle hire,Decentralisation and Local Growth,GOVERNMENT CAR & DESPATCH AGENCY,,Public Bodies,,,5106237094,Vehicle Hire and Lease,Mins Car (LT206) 18-19 CONGESTION,SW8 5AX,325.50,,
"Housing, Communities & Local Government",MHCLG,14/06/2018,Vehicle hire,Decentralisation and Local Growth,GOVERNMENT CAR & DESPATCH AGENCY,,Public Bodies,,,5106237094,Vehicle Hire and Lease,Mins Car (LT206)18-19 CORE,SW8 5AX,"8,466.83",,
"Housing, Communities & Local Government",MHCLG,15/06/2018,Agency Staff,Chief Finance Office,CAPITA BUS. SERV. LTD (CON LAB),,Large,,,5106237097,Contingent Labour,Cyber adviser extension,DL1 9WQ,"2,999.08",,
"Housing, Communities & Local Government",MHCLG,15/06/2018,Agency Staff,Chief Finance Office,CAPITA BUS. SERV. LTD (CON LAB),,Large,,,5106237106,Contingent Labour,Interim manager,DL1 9WQ,"6,887.05",,
"Housing, Communities & Local Government",MHCLG,15/06/2018,Agency Staff,Chief Finance Office,CAPITA BUS. SERV. LTD (CON LAB),,Large,,,5106237107,Contingent Labour,Capita Business Services - Business planning,DL1 9WQ,"4,126.14",,
"Housing, Communities & Local Government",MHCLG,15/06/2018,Agency Staff,Chief Finance Office,CAPITA BUS. SERV. LTD (CON LAB),,Large,,,5106237108,Contingent Labour,BST tech support and testing EO (6 month,DL1 9WQ,"1,145.94",,
"Housing, Communities & Local Government",MHCLG,15/06/2018,Agency Staff,Chief Finance Office,CAPITA BUS. SERV. LTD (CON LAB),,Large,,,5106237109,Contingent Labour,Digital Product Manager - AS,DL1 9WQ,"3,300.91",,
"Housing, Communities & Local Government",MHCLG,15/06/2018,Agency Staff,Chief Finance Office,CAPITA BUS. SERV. LTD (CON LAB),,Large,,,5106237113,Contingent Labour,Portfolio Management -  Support,DL1 9WQ,"5,382.12",,
"Housing, Communities & Local Government",MHCLG,15/06/2018,Agency Staff,Decentralisation and Local Growth,CAPITA BUS. SERV. LTD (CON LAB),,Large,,,5106237099,Contingent Labour,press officer - 4/03/2018 to 28/07/2018,DL1 9WQ,"1,556.64",,
"Housing, Communities & Local Government",MHCLG,15/06/2018,Agency Staff,Housing & BSP,CAPITA BUS. SERV. LTD (CON LAB),,Large,,,5106237100,Contingent Labour,Interim Manager,DL1 9WQ,"17,766.43",,
"Housing, Communities & Local Government",MHCLG,15/06/2018,Agency Staff,Housing & BSP,CAPITA BUS. SERV. LTD (CON LAB),,Large,,,5106237105,Contingent Labour,Construction industry expert costs,DL1 9WQ,"4,290.12",,
"Housing, Communities & Local Government",MHCLG,15/06/2018,Agency Staff,Housing & BSP,CAPITA BUS. SERV. LTD (CON LAB),,Large,,,5106237110,Contingent Labour,Interim administrative support,DL1 9WQ,"1,779.90",,
"Housing, Communities & Local Government",MHCLG,15/06/2018,Current (non AEF) Grants to Local Authorities,Decentralisation and Local Growth,ASHFORD BC,,,,229467071,5000403020,,Planning Delivery Fund,TN23 1PL,"59,500.00",Yes,
"Housing, Communities & Local Government",MHCLG,15/06/2018,Current (non AEF) Grants to Local Authorities,Decentralisation and Local Growth,AYLESBURY VALE DC(HSG),,,,396710709,5000403021,,Planning Delivery Fund,HP19 8FF,"85,000.00",Yes,
"Housing, Communities & Local Government",MHCLG,15/06/2018,Current (non AEF) Grants to Local Authorities,Decentralisation and Local Growth,BATH & NE SOMERSET DC (HSG),,,,214502499,5000403022,,Planning Delivery Fund,BA1 5AW,"250,000.00",Yes,
"Housing, Communities & Local Government",MHCLG,15/06/2018,Current (non AEF) Grants to Local Authorities,Decentralisation and Local Growth,BRADFORD MBC,,,,,5000403035,,Planning Delivery Fund,BD1 1HX,"250,000.00",Yes,
"Housing, Communities & Local Government",MHCLG,15/06/2018,Current (non AEF) Grants to Local Authorities,Decentralisation and Local Growth,BROADLAND DC,,Large,,219737785,5000403023,,Planning Delivery Fund,NR7 0DU,"100,600.00",Yes,
"Housing, Communities & Local Government",MHCLG,15/06/2018,Current (non AEF) Grants to Local Authorities,Decentralisation and Local Growth,CENTRAL BEDFORDSHIRE COUNCIL,,,,232624882,5000403068,,Planning Delivery Fund,SG17 5TQ,"142,500.00",Yes,
"Housing, Communities & Local Government",MHCLG,15/06/2018,Current (non AEF) Grants to Local Authorities,Decentralisation and Local Growth,CITY OF LINCOLN COUNCIL,,,,,5000403048,,Planning Delivery Fund,LN1 1DB,"95,000.00",Yes,
"Housing, Communities & Local Government",MHCLG,15/06/2018,Current (non AEF) Grants to Local Authorities,Decentralisation and Local Growth,CORNWALL UNITARY AUTHORITY,,,,211334404,5000403069,,Planning Delivery Fund,TR1 3AY,"277,000.00",Yes,
"Housing, Communities & Local Government",MHCLG,15/06/2018,Current (non AEF) Grants to Local Authorities,Decentralisation and Local Growth,CROYDON LB,,,,212419973,5000403036,,Planning Delivery Fund,CR0 1EA,"25,700.00",Yes,
"Housing, Communities & Local Government",MHCLG,15/06/2018,Current (non AEF) Grants to Local Authorities,Decentralisation and Local Growth,DACORUM BC,,,,236448643,5000403037,,Planning Delivery Fund,HP1 1DN,"357,692.00",Yes,
"Housing, Communities & Local Government",MHCLG,15/06/2018,Current (non AEF) Grants to Local Authorities,Decentralisation and Local Growth,DERBY CITY CNCL,,,,229641378,5000403038,,Planning Delivery Fund,DE1 2FS,"60,000.00",Yes,
"Housing, Communities & Local Government",MHCLG,15/06/2018,Current (non AEF) Grants to Local Authorities,Decentralisation and Local Growth,DERBYSHIRE COUNTYCOUNCIL,,,,232152967,5000403039,,Planning Delivery Fund,DE4 3AG,"100,000.00",Yes,
"Housing, Communities & Local Government",MHCLG,15/06/2018,Current (non AEF) Grants to Local Authorities,Decentralisation and Local Growth,DEVON COUNTY CNCL,,,,213754018,5000403040,,Planning Delivery Fund,EX2 4QJ,"210,000.00",Yes,
"Housing, Communities & Local Government",MHCLG,15/06/2018,Current (non AEF) Grants to Local Authorities,Decentralisation and Local Growth,DUDLEY MBC,,,,,5000403041,,Planning Delivery Fund,DY1 1HF,"320,000.00",Yes,
"Housing, Communities & Local Government",MHCLG,15/06/2018,Current (non AEF) Grants to Local Authorities,Decentralisation and Local Growth,EALING LB,,,,,5000403042,,Planning Delivery Fund,W5 2HL,"384,500.00",Yes,
"Housing, Communities & Local Government",MHCLG,15/06/2018,Current (non AEF) Grants to Local Authorities,Decentralisation and Local Growth,EDEN DC (HSG),,,,,5000403024,,Planning Delivery Fund,CA11 7QF,"150,000.00",Yes,
"Housing, Communities & Local Government",MHCLG,15/06/2018,Current (non AEF) Grants to Local Authorities,Decentralisation and Local Growth,EPPING FOREST DC,,,,775876360,5000403043,,Planning Delivery Fund,CM16 4BZ,"340,000.00",Yes,
"Housing, Communities & Local Government",MHCLG,15/06/2018,Current (non AEF) Grants to Local Authorities,Decentralisation and Local Growth,FOREST HEATH DISTRICT COUNCIL,,,,236678116,5000403025,,Planning Delivery Fund,IP28 7EY,"250,000.00",Yes,
"Housing, Communities & Local Government",MHCLG,15/06/2018,Current (non AEF) Grants to Local Authorities,Decentralisation and Local Growth,GATESHEAD COUNCIL,,,,216116041,5000403044,,Planning Delivery Fund,NE8 1HH,"161,959.00",Yes,
"Housing, Communities & Local Government",MHCLG,15/06/2018,Current (non AEF) Grants to Local Authorities,Decentralisation and Local Growth,GREATER MANCHESTER COMBINED AUT,,,,,5000403070,,Planning Delivery Fund,M27 8US,"600,000.00",Yes,
"Housing, Communities & Local Government",MHCLG,15/06/2018,Current (non AEF) Grants to Local Authorities,Decentralisation and Local Growth,HULL CITY COUNCIL,,,,217460984,5000403047,,Planning Delivery Fund,HU1 2AA,"97,000.00",Yes,
"Housing, Communities & Local Government",MHCLG,15/06/2018,Current (non AEF) Grants to Local Authorities,Decentralisation and Local Growth,KETTERING BC,,,,211271796,5000403046,,Planning Delivery Fund,NN15 7QX,"110,000.00",Yes,
"Housing, Communities & Local Government",MHCLG,15/06/2018,Current (non AEF) Grants to Local Authorities,Decentralisation and Local Growth,KIRKLEES COUNCIL (HSG),,Large,,,5000403026,,Planning Delivery Fund,HD1 2YU,"165,000.00",Yes,
"Housing, Communities & Local Government",MHCLG,15/06/2018,Current (non AEF) Grants to Local Authorities,Decentralisation and Local Growth,LINCOLNSHIRE COUNTY COUNCIL,,,,,5000403049,,Planning Delivery Fund,LN2 1DY,"50,000.00",Yes,
"Housing, Communities & Local Government",MHCLG,15/06/2018,Current (non AEF) Grants to Local Authorities,Decentralisation and Local Growth,LIVERPOOL CITY REGION COMB AUT,,Large,,,5000403071,,Planning Delivery Fund,L3 1BP,"271,100.00",Yes,
"Housing, Communities & Local Government",MHCLG,15/06/2018,Current (non AEF) Grants to Local Authorities,Decentralisation and Local Growth,LONDON BOROUGH OF HACKNEY,,,,225221597,5000403045,,Planning Delivery Fund,E8 4RU,"190,000.00",Yes,
"Housing, Communities & Local Government",MHCLG,15/06/2018,Current (non AEF) Grants to Local Authorities,Decentralisation and Local Growth,MILTON KEYNES BC,,,,,5000403050,,Planning Delivery Fund,MK9 3WJ,"394,500.00",Yes,
"Housing, Communities & Local Government",MHCLG,15/06/2018,Current (non AEF) Grants to Local Authorities,Decentralisation and Local Growth,NORTH HERTS DC (HOUSING) (HSG),,,,233593917,5000403027,,Planning Delivery Fund,SG6 3JF,"150,000.00",Yes,
"Housing, Communities & Local Government",MHCLG,15/06/2018,Current (non AEF) Grants to Local Authorities,Decentralisation and Local Growth,NORTH KESTEVEN DC,,,,,5000403051,,Planning Delivery Fund,NG34 7EF,"133,000.00",Yes,
"Housing, Communities & Local Government",MHCLG,15/06/2018,Current (non AEF) Grants to Local Authorities,Decentralisation and Local Growth,NORTH YORKSHIRE CC (DL7 8AL),,,,,5000403052,,Planning Delivery Fund,DL7 8AL,"250,000.00",Yes,
"Housing, Communities & Local Government",MHCLG,15/06/2018,Current (non AEF) Grants to Local Authorities,Decentralisation and Local Growth,NORTHAMPTON BOROUGH COUNCIL,,,,228310017,5000403053,,Planning Delivery Fund,NN4 4FF,"125,000.00",Yes,
"Housing, Communities & Local Government",MHCLG,15/06/2018,Current (non AEF) Grants to Local Authorities,Decentralisation and Local Growth,NOTTINGHAM CITY COUNCIL,,,,214495447,5000403054,,Planning Delivery Fund,NG2 3NG,"153,000.00",Yes,
"Housing, Communities & Local Government",MHCLG,15/06/2018,Current (non AEF) Grants to Local Authorities,Decentralisation and Local Growth,PETERBOROUGH CITY CNCL,,,,,5000403055,,Planning Delivery Fund,PE1 1HG,"50,000.00",Yes,
"Housing, Communities & Local Government",MHCLG,15/06/2018,Current (non AEF) Grants to Local Authorities,Decentralisation and Local Growth,PLYMOUTH CITY CNCL,,Public Bodies,,236416095,5000403056,,Planning Delivery Fund,PL1 2AA,"200,000.00",Yes,
"Housing, Communities & Local Government",MHCLG,15/06/2018,Current (non AEF) Grants to Local Authorities,Decentralisation and Local Growth,RICHMONDSHIRE DC,,,,232245142,5000403028,,Planning Delivery Fund,DL10 4JX,"50,000.00",Yes,
"Housing, Communities & Local Government",MHCLG,15/06/2018,Current (non AEF) Grants to Local Authorities,Decentralisation and Local Growth,RUNNYMEDE BOROUGH COUNCIL,,,,232225722,5000403057,,Planning Delivery Fund,KT15 2AH,"130,000.00",Yes,
"Housing, Communities & Local Government",MHCLG,15/06/2018,Current (non AEF) Grants to Local Authorities,Decentralisation and Local Growth,RUSHMOOR BC,,,,232607606,5000403058,,Planning Delivery Fund,GU14 7JU,"125,000.00",Yes,
"Housing, Communities & Local Government",MHCLG,15/06/2018,Current (non AEF) Grants to Local Authorities,Decentralisation and Local Growth,SHEFFIELD CITY CNCL,,,,,5000403059,,Planning Delivery Fund,S1 1UJ,"458,000.00",Yes,
"Housing, Communities & Local Government",MHCLG,15/06/2018,Current (non AEF) Grants to Local Authorities,Decentralisation and Local Growth,SHEFFIELD CITY REG COMB AUTHORITY,,Medium,,,5000403073,,Planning Delivery Fund,S1 2BQ,"126,000.00",Yes,
"Housing, Communities & Local Government",MHCLG,15/06/2018,Current (non AEF) Grants to Local Authorities,Decentralisation and Local Growth,SLOUGH BOROUGH COUNCIL,,,,211027123,5000403060,,Planning Delivery Fund,SL1 3UF,"200,000.00",Yes,
"Housing, Communities & Local Government",MHCLG,15/06/2018,Current (non AEF) Grants to Local Authorities,Decentralisation and Local Growth,SOUTH CAMBRIDGESHIRE DC,,,,236369484,5000403029,,Planning Delivery Fund,CB23 6EA,"100,000.00",Yes,
"Housing, Communities & Local Government",MHCLG,15/06/2018,Current (non AEF) Grants to Local Authorities,Decentralisation and Local Growth,SOUTH KESTEVEN DC (HSG),,,,227470747,5000403030,,Planning Delivery Fund,NG31 6PZ,"95,000.00",Yes,
"Housing, Communities & Local Government",MHCLG,15/06/2018,Current (non AEF) Grants to Local Authorities,Decentralisation and Local Growth,SOUTH RIBBLE BC,,Public Bodies,,,5000403061,,Planning Delivery Fund,PR5 1DH,"150,000.00",Yes,
"Housing, Communities & Local Government",MHCLG,15/06/2018,Current (non AEF) Grants to Local Authorities,Decentralisation and Local Growth,SOUTHEND ON SEA BC,,,,217067263,5000403062,,Planning Delivery Fund,SS2 6EP,"127,000.00",Yes,
"Housing, Communities & Local Government",MHCLG,15/06/2018,Current (non AEF) Grants to Local Authorities,Decentralisation and Local Growth,SOUTHWARK LB,,,,,5000403063,,Planning Delivery Fund,SE1 2QH,"34,710.00",Yes,
"Housing, Communities & Local Government",MHCLG,15/06/2018,Current (non AEF) Grants to Local Authorities,Decentralisation and Local Growth,SURREY HEATH BC,,,,236445441,5000403064,,Planning Delivery Fund,GU15 3HD,"70,000.00",Yes,
"Housing, Communities & Local Government",MHCLG,15/06/2018,Current (non AEF) Grants to Local Authorities,Decentralisation and Local Growth,SUTTON LB,,,,,5000403065,,Planning Delivery Fund,SM1 1EA,"68,297.00",Yes,
"Housing, Communities & Local Government",MHCLG,15/06/2018,Current (non AEF) Grants to Local Authorities,Decentralisation and Local Growth,TAUNTON DEANE BC,,,,236185294,5000403031,,Planning Delivery Fund,TA1 1HE,"198,000.00",Yes,
"Housing, Communities & Local Government",MHCLG,15/06/2018,Current (non AEF) Grants to Local Authorities,Decentralisation and Local Growth,TEST VALLEY BC,,,,225442698,5000403032,,Planning Delivery Fund,SP10 3AJ,"125,000.00",Yes,
"Housing, Communities & Local Government",MHCLG,15/06/2018,Current (non AEF) Grants to Local Authorities,Decentralisation and Local Growth,TEWKESBURY BC,,,,232740399,5000403033,,Planning Delivery Fund,GL20 5TT,"225,000.00",Yes,
"Housing, Communities & Local Government",MHCLG,15/06/2018,Current (non AEF) Grants to Local Authorities,Decentralisation and Local Growth,THURROCK  BOROUGH COUNCIL,,,,,5000403066,,Planning Delivery Fund,RM17 6SL,"608,663.00",Yes,
"Housing, Communities & Local Government",MHCLG,15/06/2018,Current (non AEF) Grants to Local Authorities,Decentralisation and Local Growth,WATFORD COUNCIL,,,,215498572,5000403067,,Planning Delivery Fund,WD17 3EX,"51,000.00",Yes,
"Housing, Communities & Local Government",MHCLG,15/06/2018,Current (non AEF) Grants to Local Authorities,Decentralisation and Local Growth,WEST OF ENGLAND COMBINED AUTHORITY,,,,,5000403072,,Planning Delivery Fund,BS1 6QH,"250,000.00",Yes,
"Housing, Communities & Local Government",MHCLG,15/06/2018,Current (non AEF) Grants to Local Authorities,Decentralisation and Local Growth,WEST YORKSHIRE COMBINED AUTHORITY,,Large,,,5000403074,,Planning Delivery Fund,LS1 2DE,"160,000.00",Yes,
"Housing, Communities & Local Government",MHCLG,15/06/2018,Current (non AEF) Grants to Local Authorities,Decentralisation and Local Growth,WINDSOR & MAIDENHEAD (HSG),,,,227411998,5000403034,,Planning Delivery Fund,SL6 1RF,"385,000.00",Yes,
"Housing, Communities & Local Government",MHCLG,15/06/2018,Current (non AEF) Grants to Local Authorities,Local Government & Public Services,BARKING & DAGENHAM LB (HSG),,,,217142293,5000403075,,Improved Better Care Fund,RM10 7BY,"409,164.00",Yes,
"Housing, Communities & Local Government",MHCLG,15/06/2018,Current (non AEF) Grants to Local Authorities,Local Government & Public Services,BARKING & DAGENHAM LB (HSG),,,,217142293,5000403076,,Additional Better Care Fund element,RM10 7BY,"218,016.00",Yes,
"Housing, Communities & Local Government",MHCLG,15/06/2018,Current (non AEF) Grants to Local Authorities,Local Government & Public Services,BARKING & DAGENHAM LB (HSG),,,,217142293,5000403077,,Adult Social Care Support Grant,RM10 7BY,"47,553.00",Yes,
"Housing, Communities & Local Government",MHCLG,15/06/2018,Current (non AEF) Grants to Local Authorities,Local Government & Public Services,BARNSLEY MBC,,,,211178595,5000403147,,Improved Better Care Fund,S70 2AQ,"487,940.00",Yes,
"Housing, Communities & Local Government",MHCLG,15/06/2018,Current (non AEF) Grants to Local Authorities,Local Government & Public Services,BARNSLEY MBC,,,,211178595,5000403148,,Additional Better Care Fund element,S70 2AQ,"294,970.00",Yes,
"Housing, Communities & Local Government",MHCLG,15/06/2018,Current (non AEF) Grants to Local Authorities,Local Government & Public Services,BARNSLEY MBC,,,,211178595,5000403149,,Adult Social Care Support Grant,S70 2AQ,"64,498.00",Yes,
"Housing, Communities & Local Government",MHCLG,15/06/2018,Current (non AEF) Grants to Local Authorities,Local Government & Public Services,BATH & NE SOMERSET DC (HSG),,,,214502499,5000403078,,Improved Better Care Fund,BA1 5AW,"116,156.00",Yes,
"Housing, Communities & Local Government",MHCLG,15/06/2018,Current (non AEF) Grants to Local Authorities,Local Government & Public Services,BATH & NE SOMERSET DC (HSG),,,,214502499,5000403079,,Additional Better Care Fund element,BA1 5AW,"171,954.00",Yes,
"Housing, Communities & Local Government",MHCLG,15/06/2018,Current (non AEF) Grants to Local Authorities,Local Government & Public Services,BATH & NE SOMERSET DC (HSG),,,,214502499,5000403080,,Adult Social Care Support Grant,BA1 5AW,"38,006.00",Yes,
"Housing, Communities & Local Government",MHCLG,15/06/2018,Current (non AEF) Grants to Local Authorities,Local Government & Public Services,BEDFORD UNITARY AUTHORITY,,,,225682160,5000403499,,Improved Better Care Fund,MK40 1SJ,"57,336.00",Yes,
"Housing, Communities & Local Government",MHCLG,15/06/2018,Current (non AEF) Grants to Local Authorities,Local Government & Public Services,BEDFORD UNITARY AUTHORITY,,,,225682160,5000403500,,Additional Better Care Fund element,MK40 1SJ,"145,833.00",Yes,
"Housing, Communities & Local Government",MHCLG,15/06/2018,Current (non AEF) Grants to Local Authorities,Local Government & Public Services,BEDFORD UNITARY AUTHORITY,,,,225682160,5000403501,,Adult Social Care Support Grant,MK40 1SJ,"32,333.00",Yes,
"Housing, Communities & Local Government",MHCLG,15/06/2018,Current (non AEF) Grants to Local Authorities,Local Government & Public Services,BEXLEY LB (HSG),,,,,5000403081,,Improved Better Care Fund,DA8 1TL,"172,032.00",Yes,
"Housing, Communities & Local Government",MHCLG,15/06/2018,Current (non AEF) Grants to Local Authorities,Local Government & Public Services,BEXLEY LB (HSG),,,,,5000403082,,Additional Better Care Fund element,DA8 1TL,"219,020.00",Yes,
"Housing, Communities & Local Government",MHCLG,15/06/2018,Current (non AEF) Grants to Local Authorities,Local Government & Public Services,BEXLEY LB (HSG),,,,,5000403083,,Adult Social Care Support Grant,DA8 1TL,"48,351.00",Yes,
"Housing, Communities & Local Government",MHCLG,15/06/2018,Current (non AEF) Grants to Local Authorities,Local Government & Public Services,BIRMINGHAM CITY CNCL,,,,213780559,5000403150,,Improved Better Care Fund,B2 2AJ,"2,605,563.00",Yes,
"Housing, Communities & Local Government",MHCLG,15/06/2018,Current (non AEF) Grants to Local Authorities,Local Government & Public Services,BIRMINGHAM CITY CNCL,,,,213780559,5000403151,,Additional Better Care Fund element,B2 2AJ,"1,338,255.00",Yes,
"Housing, Communities & Local Government",MHCLG,15/06/2018,Current (non AEF) Grants to Local Authorities,Local Government & Public Services,BIRMINGHAM CITY CNCL,,,,213780559,5000403152,,Adult Social Care Support Grant,B2 2AJ,"291,670.00",Yes,
"Housing, Communities & Local Government",MHCLG,15/06/2018,Current (non AEF) Grants to Local Authorities,Local Government & Public Services,BLACKBURN WITH DARWEN BC,,,,,5000403153,,Improved Better Care Fund,BB1 7DY,"309,529.00",Yes,
"Housing, Communities & Local Government",MHCLG,15/06/2018,Current (non AEF) Grants to Local Authorities,Local Government & Public Services,BLACKBURN WITH DARWEN BC,,,,,5000403154,,Additional Better Care Fund element,BB1 7DY,"182,165.00",Yes,
"Housing, Communities & Local Government",MHCLG,15/06/2018,Current (non AEF) Grants to Local Authorities,Local Government & Public Services,BLACKBURN WITH DARWEN BC,,,,,5000403155,,Adult Social Care Support Grant,BB1 7DY,"39,812.00",Yes,
"Housing, Communities & Local Government",MHCLG,15/06/2018,Current (non AEF) Grants to Local Authorities,Local Government & Public Services,BLACKPOOL BC,,,,,5000403156,,Improved Better Care Fund,FY1 1NA,"414,415.00",Yes,
"Housing, Communities & Local Government",MHCLG,15/06/2018,Current (non AEF) Grants to Local Authorities,Local Government & Public Services,BLACKPOOL BC,,,,,5000403157,,Additional Better Care Fund element,FY1 1NA,"215,880.00",Yes,
"Housing, Communities & Local Government",MHCLG,15/06/2018,Current (non AEF) Grants to Local Authorities,Local Government & Public Services,BLACKPOOL BC,,,,,5000403158,,Adult Social Care Support Grant,FY1 1NA,"47,065.00",Yes,
"Housing, Communities & Local Government",MHCLG,15/06/2018,Current (non AEF) Grants to Local Authorities,Local Government & Public Services,BOLTON MBC,,,,,5000403159,,Improved Better Care Fund,BL1 1RU,"530,961.00",Yes,
"Housing, Communities & Local Government",MHCLG,15/06/2018,Current (non AEF) Grants to Local Authorities,Local Government & Public Services,BOLTON MBC,,,,,5000403160,,Additional Better Care Fund element,BL1 1RU,"330,922.00",Yes,
"Housing, Communities & Local Government",MHCLG,15/06/2018,Current (non AEF) Grants to Local Authorities,Local Government & Public Services,BOLTON MBC,,,,,5000403161,,Adult Social Care Support Grant,BL1 1RU,"72,398.00",Yes,
"Housing, Communities & Local Government",MHCLG,15/06/2018,Current (non AEF) Grants to Local Authorities,Local Government & Public Services,BOURNEMOUTH DC,,,,,5000403162,,Improved Better Care Fund,BH2 6EB,"228,662.00",Yes,
"Housing, Communities & Local Government",MHCLG,15/06/2018,Current (non AEF) Grants to Local Authorities,Local Government & Public Services,BOURNEMOUTH DC,,,,,5000403163,,Additional Better Care Fund element,BH2 6EB,"209,236.00",Yes,
"Housing, Communities & Local Government",MHCLG,15/06/2018,Current (non AEF) Grants to Local Authorities,Local Government & Public Services,BOURNEMOUTH DC,,,,,5000403164,,Adult Social Care Support Grant,BH2 6EB,"46,035.00",Yes,
"Housing, Communities & Local Government",MHCLG,15/06/2018,Current (non AEF) Grants to Local Authorities,Local Government & Public Services,BRACKNELL FOREST DC,,,,236184867,5000403165,,Improved Better Care Fund,RG12 1AQ,"5,202.00",Yes,
"Housing, Communities & Local Government",MHCLG,15/06/2018,Current (non AEF) Grants to Local Authorities,Local Government & Public Services,BRACKNELL FOREST DC,,,,236184867,5000403166,,Additional Better Care Fund element,RG12 1AQ,"84,691.00",Yes,
"Housing, Communities & Local Government",MHCLG,15/06/2018,Current (non AEF) Grants to Local Authorities,Local Government & Public Services,BRACKNELL FOREST DC,,,,236184867,5000403167,,Adult Social Care Support Grant,RG12 1AQ,"18,844.00",Yes,
"Housing, Communities & Local Government",MHCLG,15/06/2018,Current (non AEF) Grants to Local Authorities,Local Government & Public Services,BRADFORD MBC,,,,,5000403168,,Improved Better Care Fund,BD1 1HX,"823,289.00",Yes,
"Housing, Communities & Local Government",MHCLG,15/06/2018,Current (non AEF) Grants to Local Authorities,Local Government & Public Services,BRADFORD MBC,,,,,5000403169,,Additional Better Care Fund element,BD1 1HX,"546,275.00",Yes,
"Housing, Communities & Local Government",MHCLG,15/06/2018,Current (non AEF) Grants to Local Authorities,Local Government & Public Services,BRADFORD MBC,,,,,5000403170,,Adult Social Care Support Grant,BD1 1HX,"119,642.00",Yes,
"Housing, Communities & Local Government",MHCLG,15/06/2018,Current (non AEF) Grants to Local Authorities,Local Government & Public Services,BRENT LB (HSG),,,,,5000403084,,Improved Better Care Fund,HA9 9HD,"467,470.00",Yes,
"Housing, Communities & Local Government",MHCLG,15/06/2018,Current (non AEF) Grants to Local Authorities,Local Government & Public Services,BRENT LB (HSG),,,,,5000403085,,Additional Better Care Fund element,HA9 9HD,"319,222.00",Yes,
"Housing, Communities & Local Government",MHCLG,15/06/2018,Current (non AEF) Grants to Local Authorities,Local Government & Public Services,BRENT LB (HSG),,,,,5000403086,,Adult Social Care Support Grant,HA9 9HD,"69,947.00",Yes,
"Housing, Communities & Local Government",MHCLG,15/06/2018,Current (non AEF) Grants to Local Authorities,Local Government & Public Services,BRIGHTON & HOVE CITY COUNCIL,,Large,,228455218,5000403171,,Improved Better Care Fund,BN1 3JE,"265,696.00",Yes,
"Housing, Communities & Local Government",MHCLG,15/06/2018,Current (non AEF) Grants to Local Authorities,Local Government & Public Services,BRIGHTON & HOVE CITY COUNCIL,,Large,,228455218,5000403172,,Additional Better Care Fund element,BN1 3JE,"290,275.00",Yes,
"Housing, Communities & Local Government",MHCLG,15/06/2018,Current (non AEF) Grants to Local Authorities,Local Government & Public Services,BRIGHTON & HOVE CITY COUNCIL,,Large,,228455218,5000403173,,Adult Social Care Support Grant,BN1 3JE,"63,991.00",Yes,
"Housing, Communities & Local Government",MHCLG,15/06/2018,Current (non AEF) Grants to Local Authorities,Local Government & Public Services,BRISTOL CITY COUNCIL (HSG),,,,211103882,5000403087,,Improved Better Care Fund,BS3 9FS,"520,606.00",Yes,
"Housing, Communities & Local Government",MHCLG,15/06/2018,Current (non AEF) Grants to Local Authorities,Local Government & Public Services,BRISTOL CITY COUNCIL (HSG),,,,211103882,5000403088,,Additional Better Care Fund element,BS3 9FS,"480,101.00",Yes,
"Housing, Communities & Local Government",MHCLG,15/06/2018,Current (non AEF) Grants to Local Authorities,Local Government & Public Services,BRISTOL CITY COUNCIL (HSG),,,,211103882,5000403089,,Adult Social Care Support Grant,BS3 9FS,"105,640.00",Yes,
"Housing, Communities & Local Government",MHCLG,15/06/2018,Current (non AEF) Grants to Local Authorities,Local Government & Public Services,BROMLEY LB,,,,211331954,5000403174,,Improved Better Care Fund,BR1 3UH,"167,775.00",Yes,
"Housing, Communities & Local Government",MHCLG,15/06/2018,Current (non AEF) Grants to Local Authorities,Local Government & Public Services,BROMLEY LB,,,,211331954,5000403175,,Additional Better Care Fund element,BR1 3UH,"280,274.00",Yes,
"Housing, Communities & Local Government",MHCLG,15/06/2018,Current (non AEF) Grants to Local Authorities,Local Government & Public Services,BROMLEY LB,,,,211331954,5000403176,,Adult Social Care Support Grant,BR1 3UH,"62,000.00",Yes,
"Housing, Communities & Local Government",MHCLG,15/06/2018,Current (non AEF) Grants to Local Authorities,Local Government & Public Services,BUCKINGHAMSHIRE CC,,,,293750923,5000403177,,Additional Better Care Fund element,HP20 1UD,"304,791.00",Yes,
"Housing, Communities & Local Government",MHCLG,15/06/2018,Current (non AEF) Grants to Local Authorities,Local Government & Public Services,BUCKINGHAMSHIRE CC,,,,293750923,5000403178,,Adult Social Care Support Grant,HP20 1UD,"87,044.00",Yes,
"Housing, Communities & Local Government",MHCLG,15/06/2018,Current (non AEF) Grants to Local Authorities,Local Government & Public Services,BURY MBC,,,,,5000403179,,Improved Better Care Fund,BL9 0SW,"244,880.00",Yes,
"Housing, Communities & Local Government",MHCLG,15/06/2018,Current (non AEF) Grants to Local Authorities,Local Government & Public Services,BURY MBC,,,,,5000403180,,Additional Better Care Fund element,BL9 0SW,"193,693.00",Yes,
"Housing, Communities & Local Government",MHCLG,15/06/2018,Current (non AEF) Grants to Local Authorities,Local Government & Public Services,BURY MBC,,,,,5000403181,,Adult Social Care Support Grant,BL9 0SW,"42,535.00",Yes,
"Housing, Communities & Local Government",MHCLG,15/06/2018,Current (non AEF) Grants to Local Authorities,Local Government & Public Services,CALDERDALE MBC,,,,,5000403182,,Improved Better Care Fund,HX1 1YP,"272,032.00",Yes,
"Housing, Communities & Local Government",MHCLG,15/06/2018,Current (non AEF) Grants to Local Authorities,Local Government & Public Services,CALDERDALE MBC,,,,,5000403183,,Additional Better Care Fund element,HX1 1YP,"218,292.00",Yes,
"Housing, Communities & Local Government",MHCLG,15/06/2018,Current (non AEF) Grants to Local Authorities,Local Government & Public Services,CALDERDALE MBC,,,,,5000403184,,Adult Social Care Support Grant,HX1 1YP,"47,946.00",Yes,
"Housing, Communities & Local Government",MHCLG,15/06/2018,Current (non AEF) Grants to Local Authorities,Local Government & Public Services,CAMBRIDGESHIRE COUNTY CNCL,,,,219047347,5000403185,,Improved Better Care Fund,CB3 0AP,"340,846.00",Yes,
"Housing, Communities & Local Government",MHCLG,15/06/2018,Current (non AEF) Grants to Local Authorities,Local Government & Public Services,CAMBRIDGESHIRE COUNTY CNCL,,,,219047347,5000403186,,Additional Better Care Fund element,CB3 0AP,"547,309.00",Yes,
"Housing, Communities & Local Government",MHCLG,15/06/2018,Current (non AEF) Grants to Local Authorities,Local Government & Public Services,CAMBRIDGESHIRE COUNTY CNCL,,,,219047347,5000403187,,Adult Social Care Support Grant,CB3 0AP,"121,040.00",Yes,
"Housing, Communities & Local Government",MHCLG,15/06/2018,Current (non AEF) Grants to Local Authorities,Local Government & Public Services,CAMDEN LB,,,,211651836,5000403188,,Improved Better Care Fund,WC1H 8NG,"444,933.00",Yes,
"Housing, Communities & Local Government",MHCLG,15/06/2018,Current (non AEF) Grants to Local Authorities,Local Government & Public Services,CAMDEN LB,,,,211651836,5000403189,,Additional Better Care Fund element,WC1H 8NG,"305,581.00",Yes,
"Housing, Communities & Local Government",MHCLG,15/06/2018,Current (non AEF) Grants to Local Authorities,Local Government & Public Services,CAMDEN LB,,,,211651836,5000403190,,Adult Social Care Support Grant,WC1H 8NG,"66,964.00",Yes,
"Housing, Communities & Local Government",MHCLG,15/06/2018,Current (non AEF) Grants to Local Authorities,Local Government & Public Services,CENTRAL BEDFORDSHIRE COUNCIL,,,,232624882,5000403491,,Additional Better Care Fund element,SG17 5TQ,"163,018.00",Yes,
"Housing, Communities & Local Government",MHCLG,15/06/2018,Current (non AEF) Grants to Local Authorities,Local Government & Public Services,CENTRAL BEDFORDSHIRE COUNCIL,,,,232624882,5000403492,,Adult Social Care Support Grant,SG17 5TQ,"45,101.00",Yes,
"Housing, Communities & Local Government",MHCLG,15/06/2018,Current (non AEF) Grants to Local Authorities,Local Government & Public Services,CHESHIRE EAST COUNCIL,,Large,,,5000403493,,Improved Better Care Fund,CW11 1HZ,"157,810.00",Yes,
"Housing, Communities & Local Government",MHCLG,15/06/2018,Current (non AEF) Grants to Local Authorities,Local Government & Public Services,CHESHIRE EAST COUNCIL,,Large,,,5000403494,,Additional Better Care Fund element,CW11 1HZ,"341,023.00",Yes,
"Housing, Communities & Local Government",MHCLG,15/06/2018,Current (non AEF) Grants to Local Authorities,Local Government & Public Services,CHESHIRE EAST COUNCIL,,Large,,,5000403495,,Adult Social Care Support Grant,CW11 1HZ,"75,551.00",Yes,
"Housing, Communities & Local Government",MHCLG,15/06/2018,Current (non AEF) Grants to Local Authorities,Local Government & Public Services,CHESHIRE WEST & CHESTER UA,,Large,,215584383,5000403496,,Improved Better Care Fund,CH1 2NP,"283,018.00",Yes,
"Housing, Communities & Local Government",MHCLG,15/06/2018,Current (non AEF) Grants to Local Authorities,Local Government & Public Services,CHESHIRE WEST & CHESTER UA,,Large,,215584383,5000403497,,Additional Better Care Fund element,CH1 2NP,"346,263.00",Yes,
"Housing, Communities & Local Government",MHCLG,15/06/2018,Current (non AEF) Grants to Local Authorities,Local Government & Public Services,CHESHIRE WEST & CHESTER UA,,Large,,215584383,5000403498,,Adult Social Care Support Grant,CH1 2NP,"76,415.00",Yes,
"Housing, Communities & Local Government",MHCLG,15/06/2018,Current (non AEF) Grants to Local Authorities,Local Government & Public Services,CITY OF LONDON (HSG),,,,217471460,5000403090,,Improved Better Care Fund,EC2P 2EJ,"7,540.00",Yes,
"Housing, Communities & Local Government",MHCLG,15/06/2018,Current (non AEF) Grants to Local Authorities,Local Government & Public Services,CITY OF LONDON (HSG),,,,217471460,5000403091,,Additional Better Care Fund element,EC2P 2EJ,"11,494.00",Yes,
"Housing, Communities & Local Government",MHCLG,15/06/2018,Current (non AEF) Grants to Local Authorities,Local Government & Public Services,CITY OF LONDON (HSG),,,,217471460,5000403092,,Adult Social Care Support Grant,EC2P 2EJ,"2,541.00",Yes,
"Housing, Communities & Local Government",MHCLG,15/06/2018,Current (non AEF) Grants to Local Authorities,Local Government & Public Services,CITY OF SUNDERLAND (HSG),,,,215599312,5000403093,,Improved Better Care Fund,SR2 7DN,"711,987.00",Yes,
"Housing, Communities & Local Government",MHCLG,15/06/2018,Current (non AEF) Grants to Local Authorities,Local Government & Public Services,CITY OF SUNDERLAND (HSG),,,,215599312,5000403094,,Additional Better Care Fund element,SR2 7DN,"374,449.00",Yes,
"Housing, Communities & Local Government",MHCLG,15/06/2018,Current (non AEF) Grants to Local Authorities,Local Government & Public Services,CITY OF SUNDERLAND (HSG),,,,215599312,5000403095,,Adult Social Care Support Grant,SR2 7DN,"81,651.00",Yes,
"Housing, Communities & Local Government",MHCLG,15/06/2018,Current (non AEF) Grants to Local Authorities,Local Government & Public Services,CITY OF WAKEFIELD MDC,,,,,5000403444,,Improved Better Care Fund,WF1 2QW,"619,914.00",Yes,
"Housing, Communities & Local Government",MHCLG,15/06/2018,Current (non AEF) Grants to Local Authorities,Local Government & Public Services,CITY OF WAKEFIELD MDC,,,,,5000403445,,Additional Better Care Fund element,WF1 2QW,"392,417.00",Yes,
"Housing, Communities & Local Government",MHCLG,15/06/2018,Current (non AEF) Grants to Local Authorities,Local Government & Public Services,CITY OF WAKEFIELD MDC,,,,,5000403446,,Adult Social Care Support Grant,WF1 2QW,"85,875.00",Yes,
"Housing, Communities & Local Government",MHCLG,15/06/2018,Current (non AEF) Grants to Local Authorities,Local Government & Public Services,CORNWALL UNITARY AUTHORITY,,,,211334404,5000403505,,Improved Better Care Fund,TR1 3AY,"756,596.00",Yes,
"Housing, Communities & Local Government",MHCLG,15/06/2018,Current (non AEF) Grants to Local Authorities,Local Government & Public Services,CORNWALL UNITARY AUTHORITY,,,,211334404,5000403506,,Additional Better Care Fund element,TR1 3AY,"661,606.00",Yes,
"Housing, Communities & Local Government",MHCLG,15/06/2018,Current (non AEF) Grants to Local Authorities,Local Government & Public Services,CORNWALL UNITARY AUTHORITY,,,,211334404,5000403507,,Adult Social Care Support Grant,TR1 3AY,"145,483.00",Yes,
"Housing, Communities & Local Government",MHCLG,15/06/2018,Current (non AEF) Grants to Local Authorities,Local Government & Public Services,COVENTRY CITY CNCL,,,,210384802,5000403191,,Improved Better Care Fund,CV1 2QL,"554,543.00",Yes,
"Housing, Communities & Local Government",MHCLG,15/06/2018,Current (non AEF) Grants to Local Authorities,Local Government & Public Services,COVENTRY CITY CNCL,,,,210384802,5000403192,,Additional Better Care Fund element,CV1 2QL,"368,827.00",Yes,
"Housing, Communities & Local Government",MHCLG,15/06/2018,Current (non AEF) Grants to Local Authorities,Local Government & Public Services,COVENTRY CITY CNCL,,,,210384802,5000403193,,Adult Social Care Support Grant,CV1 2QL,"80,781.00",Yes,
"Housing, Communities & Local Government",MHCLG,15/06/2018,Current (non AEF) Grants to Local Authorities,Local Government & Public Services,CROYDON LB,,,,212419973,5000403194,,Improved Better Care Fund,CR0 1EA,"260,491.00",Yes,
"Housing, Communities & Local Government",MHCLG,15/06/2018,Current (non AEF) Grants to Local Authorities,Local Government & Public Services,CROYDON LB,,,,212419973,5000403195,,Additional Better Care Fund element,CR0 1EA,"330,608.00",Yes,
"Housing, Communities & Local Government",MHCLG,15/06/2018,Current (non AEF) Grants to Local Authorities,Local Government & Public Services,CROYDON LB,,,,212419973,5000403196,,Adult Social Care Support Grant,CR0 1EA,"72,983.00",Yes,
"Housing, Communities & Local Government",MHCLG,15/06/2018,Current (non AEF) Grants to Local Authorities,Local Government & Public Services,CUMBRIA COUNTY CNCL,,,,211316542,5000403197,,Improved Better Care Fund,CA3 8NA,"790,732.00",Yes,
"Housing, Communities & Local Government",MHCLG,15/06/2018,Current (non AEF) Grants to Local Authorities,Local Government & Public Services,CUMBRIA COUNTY CNCL,,,,211316542,5000403198,,Additional Better Care Fund element,CA3 8NA,"595,043.00",Yes,
"Housing, Communities & Local Government",MHCLG,15/06/2018,Current (non AEF) Grants to Local Authorities,Local Government & Public Services,CUMBRIA COUNTY CNCL,,,,211316542,5000403199,,Adult Social Care Support Grant,CA3 8NA,"130,579.00",Yes,
"Housing, Communities & Local Government",MHCLG,15/06/2018,Current (non AEF) Grants to Local Authorities,Local Government & Public Services,DARLINGTON BC,,,,,5000403200,,Adult Social Care Support Grant,TS19 1JA,"26,102.00",Yes,
"Housing, Communities & Local Government",MHCLG,15/06/2018,Current (non AEF) Grants to Local Authorities,Local Government & Public Services,DARLINGTON BC,,,,,5000403201,,Improved Better Care Fund,TS19 1JA,"144,214.00",Yes,
"Housing, Communities & Local Government",MHCLG,15/06/2018,Current (non AEF) Grants to Local Authorities,Local Government & Public Services,DARLINGTON BC,,,,,5000403202,,Additional Better Care Fund element,TS19 1JA,"118,793.00",Yes,
"Housing, Communities & Local Government",MHCLG,15/06/2018,Current (non AEF) Grants to Local Authorities,Local Government & Public Services,DERBY CITY CNCL,,,,229641378,5000403203,,Adult Social Care Support Grant,DE1 2FS,"59,819.00",Yes,
"Housing, Communities & Local Government",MHCLG,15/06/2018,Current (non AEF) Grants to Local Authorities,Local Government & Public Services,DERBY CITY CNCL,,,,229641378,5000403204,,Additional Better Care Fund element,DE1 2FS,"273,291.00",Yes,
"Housing, Communities & Local Government",MHCLG,15/06/2018,Current (non AEF) Grants to Local Authorities,Local Government & Public Services,DERBY CITY CNCL,,,,229641378,5000403205,,Improved Better Care Fund,DE1 2FS,"426,496.00",Yes,
"Housing, Communities & Local Government",MHCLG,15/06/2018,Current (non AEF) Grants to Local Authorities,Local Government & Public Services,DERBYSHIRE COUNTYCOUNCIL,,,,232152967,5000403206,,Additional Better Care Fund element,DE4 3AG,"861,634.00",Yes,
"Housing, Communities & Local Government",MHCLG,15/06/2018,Current (non AEF) Grants to Local Authorities,Local Government & Public Services,DERBYSHIRE COUNTYCOUNCIL,,,,232152967,5000403207,,Adult Social Care Support Grant,DE4 3AG,"188,915.00",Yes,
"Housing, Communities & Local Government",MHCLG,15/06/2018,Current (non AEF) Grants to Local Authorities,Local Government & Public Services,DERBYSHIRE COUNTYCOUNCIL,,,,232152967,5000403208,,Improved Better Care Fund,DE4 3AG,"1,213,796.00",Yes,
"Housing, Communities & Local Government",MHCLG,15/06/2018,Current (non AEF) Grants to Local Authorities,Local Government & Public Services,DEVON COUNTY CNCL,,,,213754018,5000403209,,Improved Better Care Fund,EX2 4QJ,"853,926.00",Yes,
"Housing, Communities & Local Government",MHCLG,15/06/2018,Current (non AEF) Grants to Local Authorities,Local Government & Public Services,DEVON COUNTY CNCL,,,,213754018,5000403210,,Additional Better Care Fund element,EX2 4QJ,"845,611.00",Yes,
"Housing, Communities & Local Government",MHCLG,15/06/2018,Current (non AEF) Grants to Local Authorities,Local Government & Public Services,DEVON COUNTY CNCL,,,,213754018,5000403211,,Adult Social Care Support Grant,EX2 4QJ,"186,219.00",Yes,
"Housing, Communities & Local Government",MHCLG,15/06/2018,Current (non AEF) Grants to Local Authorities,Local Government & Public Services,DONCASTER MBC,,,,,5000403212,,Improved Better Care Fund,DN1 3QA,"597,940.00",Yes,
"Housing, Communities & Local Government",MHCLG,15/06/2018,Current (non AEF) Grants to Local Authorities,Local Government & Public Services,DONCASTER MBC,,,,,5000403213,,Additional Better Care Fund element,DN1 3QA,"359,667.00",Yes,
"Housing, Communities & Local Government",MHCLG,15/06/2018,Current (non AEF) Grants to Local Authorities,Local Government & Public Services,DONCASTER MBC,,,,,5000403214,,Adult Social Care Support Grant,DN1 3QA,"78,636.00",Yes,
"Housing, Communities & Local Government",MHCLG,15/06/2018,Current (non AEF) Grants to Local Authorities,Local Government & Public Services,DORSET COUNTY CNCL,,,,225431279,5000403215,,Improved Better Care Fund,DT1 1XJ,"357,438.00",Yes,
"Housing, Communities & Local Government",MHCLG,15/06/2018,Current (non AEF) Grants to Local Authorities,Local Government & Public Services,DORSET COUNTY CNCL,,,,225431279,5000403216,,Additional Better Care Fund element,DT1 1XJ,"456,531.00",Yes,
"Housing, Communities & Local Government",MHCLG,15/06/2018,Current (non AEF) Grants to Local Authorities,Local Government & Public Services,DORSET COUNTY CNCL,,,,225431279,5000403217,,Adult Social Care Support Grant,DT1 1XJ,"100,787.00",Yes,
"Housing, Communities & Local Government",MHCLG,15/06/2018,Current (non AEF) Grants to Local Authorities,Local Government & Public Services,DUDLEY MBC,,,,,5000403218,,Improved Better Care Fund,DY1 1HF,"598,293.00",Yes,
"Housing, Communities & Local Government",MHCLG,15/06/2018,Current (non AEF) Grants to Local Authorities,Local Government & Public Services,DUDLEY MBC,,,,,5000403219,,Additional Better Care Fund element,DY1 1HF,"371,773.00",Yes,
"Housing, Communities & Local Government",MHCLG,15/06/2018,Current (non AEF) Grants to Local Authorities,Local Government & Public Services,DUDLEY MBC,,,,,5000403220,,Adult Social Care Support Grant,DY1 1HF,"81,331.00",Yes,
"Housing, Communities & Local Government",MHCLG,15/06/2018,Current (non AEF) Grants to Local Authorities,Local Government & Public Services,DURHAM COUNTY COUNCIL,,,,224004882,5000403508,,Improved Better Care Fund,DH1 5UE,"1,117,240.00",Yes,
"Housing, Communities & Local Government",MHCLG,15/06/2018,Current (non AEF) Grants to Local Authorities,Local Government & Public Services,DURHAM COUNTY COUNCIL,,,,224004882,5000403509,,Additional Better Care Fund element,DH1 5UE,"672,310.00",Yes,
"Housing, Communities & Local Government",MHCLG,15/06/2018,Current (non AEF) Grants to Local Authorities,Local Government & Public Services,DURHAM COUNTY COUNCIL,,,,224004882,5000403510,,Adult Social Care Support Grant,DH1 5UE,"146,993.00",Yes,
"Housing, Communities & Local Government",MHCLG,15/06/2018,Current (non AEF) Grants to Local Authorities,Local Government & Public Services,EALING LB,,,,,5000403221,,Improved Better Care Fund,W5 2HL,"407,639.00",Yes,
"Housing, Communities & Local Government",MHCLG,15/06/2018,Current (non AEF) Grants to Local Authorities,Local Government & Public Services,EALING LB,,,,,5000403222,,Additional Better Care Fund element,W5 2HL,"336,005.00",Yes,
"Housing, Communities & Local Government",MHCLG,15/06/2018,Current (non AEF) Grants to Local Authorities,Local Government & Public Services,EALING LB,,,,,5000403223,,Adult Social Care Support Grant,W5 2HL,"73,829.00",Yes,
"Housing, Communities & Local Government",MHCLG,15/06/2018,Current (non AEF) Grants to Local Authorities,Local Government & Public Services,EAST RIDING OF YORKS (HSG),,,,423159987,5000403096,,Improved Better Care Fund,HU17 9BA,"332,636.00",Yes,
"Housing, Communities & Local Government",MHCLG,15/06/2018,Current (non AEF) Grants to Local Authorities,Local Government & Public Services,EAST RIDING OF YORKS (HSG),,,,423159987,5000403097,,Additional Better Care Fund element,HU17 9BA,"341,833.00",Yes,
"Housing, Communities & Local Government",MHCLG,15/06/2018,Current (non AEF) Grants to Local Authorities,Local Government & Public Services,EAST RIDING OF YORKS (HSG),,,,423159987,5000403098,,Adult Social Care Support Grant,HU17 9BA,"75,307.00",Yes,
"Housing, Communities & Local Government",MHCLG,15/06/2018,Current (non AEF) Grants to Local Authorities,Local Government & Public Services,EAST SUSSEX COUNTY CNCL,,,,,5000403224,,Improved Better Care Fund,BN7 1SF,"651,131.00",Yes,
"Housing, Communities & Local Government",MHCLG,15/06/2018,Current (non AEF) Grants to Local Authorities,Local Government & Public Services,EAST SUSSEX COUNTY CNCL,,,,,5000403225,,Additional Better Care Fund element,BN7 1SF,"611,870.00",Yes,
"Housing, Communities & Local Government",MHCLG,15/06/2018,Current (non AEF) Grants to Local Authorities,Local Government & Public Services,EAST SUSSEX COUNTY CNCL,,,,,5000403226,,Adult Social Care Support Grant,BN7 1SF,"134,664.00",Yes,
"Housing, Communities & Local Government",MHCLG,15/06/2018,Current (non AEF) Grants to Local Authorities,Local Government & Public Services,ENFIELD LB,,,,,5000403227,,Improved Better Care Fund,EN1 3XF,"379,055.00",Yes,
"Housing, Communities & Local Government",MHCLG,15/06/2018,Current (non AEF) Grants to Local Authorities,Local Government & Public Services,ENFIELD LB,,,,,5000403228,,Additional Better Care Fund element,EN1 3XF,"307,876.00",Yes,
"Housing, Communities & Local Government",MHCLG,15/06/2018,Current (non AEF) Grants to Local Authorities,Local Government & Public Services,ENFIELD LB,,,,,5000403229,,Adult Social Care Support Grant,EN1 3XF,"67,635.00",Yes,
"Housing, Communities & Local Government",MHCLG,15/06/2018,Current (non AEF) Grants to Local Authorities,Local Government & Public Services,ESSEX COUNTY CNCL,,,,233572986,5000403230,,Improved Better Care Fund,CM1 1JZ,"1,315,224.00",Yes,
"Housing, Communities & Local Government",MHCLG,15/06/2018,Current (non AEF) Grants to Local Authorities,Local Government & Public Services,ESSEX COUNTY CNCL,,,,233572986,5000403231,,Additional Better Care Fund element,CM1 1JZ,"1,398,884.00",Yes,
"Housing, Communities & Local Government",MHCLG,15/06/2018,Current (non AEF) Grants to Local Authorities,Local Government & Public Services,ESSEX COUNTY CNCL,,,,233572986,5000403232,,Adult Social Care Support Grant,CM1 1JZ,"308,295.00",Yes,
"Housing, Communities & Local Government",MHCLG,15/06/2018,Current (non AEF) Grants to Local Authorities,Local Government & Public Services,GATESHEAD COUNCIL,,,,216116041,5000403233,,Improved Better Care Fund,NE8 1HH,"400,557.00",Yes,
"Housing, Communities & Local Government",MHCLG,15/06/2018,Current (non AEF) Grants to Local Authorities,Local Government & Public Services,GATESHEAD COUNCIL,,,,216116041,5000403234,,Additional Better Care Fund element,NE8 1HH,"269,434.00",Yes,
"Housing, Communities & Local Government",MHCLG,15/06/2018,Current (non AEF) Grants to Local Authorities,Local Government & Public Services,GATESHEAD COUNCIL,,,,216116041,5000403235,,Adult Social Care Support Grant,NE8 1HH,"59,023.00",Yes,
"Housing, Communities & Local Government",MHCLG,15/06/2018,Current (non AEF) Grants to Local Authorities,Local Government & Public Services,GLOUCESTERSHIRE COUNTY CNCL,,,,211272067,5000403236,,Improved Better Care Fund,GL1 2TG,"569,837.00",Yes,
"Housing, Communities & Local Government",MHCLG,15/06/2018,Current (non AEF) Grants to Local Authorities,Local Government & Public Services,GLOUCESTERSHIRE COUNTY CNCL,,,,211272067,5000403237,,Additional Better Care Fund element,GL1 2TG,"597,966.00",Yes,
"Housing, Communities & Local Government",MHCLG,15/06/2018,Current (non AEF) Grants to Local Authorities,Local Government & Public Services,GLOUCESTERSHIRE COUNTY CNCL,,,,211272067,5000403238,,Adult Social Care Support Grant,GL1 2TG,"131,765.00",Yes,
"Housing, Communities & Local Government",MHCLG,15/06/2018,Current (non AEF) Grants to Local Authorities,Local Government & Public Services,GREENWICH LB,,,,,5000403239,,Improved Better Care Fund,SE18 6HQ,"583,428.00",Yes,
"Housing, Communities & Local Government",MHCLG,15/06/2018,Current (non AEF) Grants to Local Authorities,Local Government & Public Services,GREENWICH LB,,,,,5000403240,,Additional Better Care Fund element,SE18 6HQ,"317,499.00",Yes,
"Housing, Communities & Local Government",MHCLG,15/06/2018,Current (non AEF) Grants to Local Authorities,Local Government & Public Services,GREENWICH LB,,,,,5000403241,,Adult Social Care Support Grant,SE18 6HQ,"69,282.00",Yes,
"Housing, Communities & Local Government",MHCLG,15/06/2018,Current (non AEF) Grants to Local Authorities,Local Government & Public Services,HALTON BC (HSG),,,,,5000403099,,Adult Social Care Support Grant,WA8 7QF,"33,287.00",Yes,
"Housing, Communities & Local Government",MHCLG,15/06/2018,Current (non AEF) Grants to Local Authorities,Local Government & Public Services,HAMMERSMITH & FULHAM LB,,,,216929489,5000403245,,Improved Better Care Fund,W6 9JU,"368,720.00",Yes,
"Housing, Communities & Local Government",MHCLG,15/06/2018,Current (non AEF) Grants to Local Authorities,Local Government & Public Services,HAMMERSMITH & FULHAM LB,,,,216929489,5000403246,,Additional Better Care Fund element,W6 9JU,"218,821.00",Yes,
"Housing, Communities & Local Government",MHCLG,15/06/2018,Current (non AEF) Grants to Local Authorities,Local Government & Public Services,HAMMERSMITH & FULHAM LB,,,,216929489,5000403247,,Adult Social Care Support Grant,W6 9JU,"47,830.00",Yes,
"Housing, Communities & Local Government",MHCLG,15/06/2018,Current (non AEF) Grants to Local Authorities,Local Government & Public Services,HAMPSHIRE COUNTY COUNCIL,,,,211325832,5000403248,,Improved Better Care Fund,SO23 8UB,"701,000.00",Yes,
"Housing, Communities & Local Government",MHCLG,15/06/2018,Current (non AEF) Grants to Local Authorities,Local Government & Public Services,HAMPSHIRE COUNTY COUNCIL,,,,211325832,5000403249,,Additional Better Care Fund element,SO23 8UB,"1,119,709.00",Yes,
"Housing, Communities & Local Government",MHCLG,15/06/2018,Current (non AEF) Grants to Local Authorities,Local Government & Public Services,HAMPSHIRE COUNTY COUNCIL,,,,211325832,5000403250,,Adult Social Care Support Grant,SO23 8UB,"247,620.00",Yes,
"Housing, Communities & Local Government",MHCLG,15/06/2018,Current (non AEF) Grants to Local Authorities,Local Government & Public Services,HARINGEY LB,,,,217471767,5000403251,,Improved Better Care Fund,N22 4TR,"319,378.00",Yes,
"Housing, Communities & Local Government",MHCLG,15/06/2018,Current (non AEF) Grants to Local Authorities,Local Government & Public Services,HARINGEY LB,,,,217471767,5000403252,,Additional Better Care Fund element,N22 4TR,"272,040.00",Yes,
"Housing, Communities & Local Government",MHCLG,15/06/2018,Current (non AEF) Grants to Local Authorities,Local Government & Public Services,HARINGEY LB,,,,217471767,5000403253,,Adult Social Care Support Grant,N22 4TR,"59,799.00",Yes,
"Housing, Communities & Local Government",MHCLG,15/06/2018,Current (non AEF) Grants to Local Authorities,Local Government & Public Services,HARROW LB,,,,,5000403254,,Improved Better Care Fund,HA1 2UZ,"161,322.00",Yes,
"Housing, Communities & Local Government",MHCLG,15/06/2018,Current (non AEF) Grants to Local Authorities,Local Government & Public Services,HARROW LB,,,,,5000403255,,Additional Better Care Fund element,HA1 2UZ,"228,600.00",Yes,
"Housing, Communities & Local Government",MHCLG,15/06/2018,Current (non AEF) Grants to Local Authorities,Local Government & Public Services,HARROW LB,,,,,5000403256,,Adult Social Care Support Grant,HA1 2UZ,"50,510.00",Yes,
"Housing, Communities & Local Government",MHCLG,15/06/2018,Current (non AEF) Grants to Local Authorities,Local Government & Public Services,HARTLEPOOL BOROUGH COUNCIL,,,,424291797,5000403257,,Improved Better Care Fund,TS24 8AY,"192,115.00",Yes,
"Housing, Communities & Local Government",MHCLG,15/06/2018,Current (non AEF) Grants to Local Authorities,Local Government & Public Services,HARTLEPOOL BOROUGH COUNCIL,,,,424291797,5000403258,,Additional Better Care Fund element,TS24 8AY,"119,303.00",Yes,
"Housing, Communities & Local Government",MHCLG,15/06/2018,Current (non AEF) Grants to Local Authorities,Local Government & Public Services,HARTLEPOOL BOROUGH COUNCIL,,,,424291797,5000403259,,Adult Social Care Support Grant,TS24 8AY,"26,099.00",Yes,
"Housing, Communities & Local Government",MHCLG,15/06/2018,Current (non AEF) Grants to Local Authorities,Local Government & Public Services,HAVERING LB,,,,211209770,5000403260,,Adult Social Care Support Grant,RM1 3BB,"52,378.00",Yes,
"Housing, Communities & Local Government",MHCLG,15/06/2018,Current (non AEF) Grants to Local Authorities,Local Government & Public Services,HAVERING LB,,,,211209770,5000403261,,Additional Better Care Fund element,RM1 3BB,"237,023.00",Yes,
"Housing, Communities & Local Government",MHCLG,15/06/2018,Current (non AEF) Grants to Local Authorities,Local Government & Public Services,HAVERING LB,,,,211209770,5000403262,,Improved Better Care Fund,RM1 3BB,"164,793.00",Yes,
"Housing, Communities & Local Government",MHCLG,15/06/2018,Current (non AEF) Grants to Local Authorities,Local Government & Public Services,HEREFORDSHIRE COUNCIL,,,,,5000403100,,Adult Social Care Support Grant,HR4 0XH,"45,863.00",Yes,
"Housing, Communities & Local Government",MHCLG,15/06/2018,Current (non AEF) Grants to Local Authorities,Local Government & Public Services,HEREFORDSHIRE COUNCIL,,,,,5000403101,,Additional Better Care Fund element,HR4 0XH,"207,994.00",Yes,
"Housing, Communities & Local Government",MHCLG,15/06/2018,Current (non AEF) Grants to Local Authorities,Local Government & Public Services,HEREFORDSHIRE COUNCIL,,,,,5000403102,,Improved Better Care Fund,HR4 0XH,"185,488.00",Yes,
"Housing, Communities & Local Government",MHCLG,15/06/2018,Current (non AEF) Grants to Local Authorities,Local Government & Public Services,HERTFORDSHIRE COUNTY CNCL,,,,210659897,5000403263,,Adult Social Care Support Grant,SG13 8DQ,"215,325.00",Yes,
"Housing, Communities & Local Government",MHCLG,15/06/2018,Current (non AEF) Grants to Local Authorities,Local Government & Public Services,HERTFORDSHIRE COUNTY CNCL,,,,210659897,5000403264,,Additional Better Care Fund element,SG13 8DQ,"971,331.00",Yes,
"Housing, Communities & Local Government",MHCLG,15/06/2018,Current (non AEF) Grants to Local Authorities,Local Government & Public Services,HERTFORDSHIRE COUNTY CNCL,,,,210659897,5000403265,,Improved Better Care Fund,SG13 8DQ,"393,910.00",Yes,
"Housing, Communities & Local Government",MHCLG,15/06/2018,Current (non AEF) Grants to Local Authorities,Local Government & Public Services,HILLINGDON LB,,,,211198585,5000403266,,Adult Social Care Support Grant,UB8 1UW,"54,222.00",Yes,
"Housing, Communities & Local Government",MHCLG,15/06/2018,Current (non AEF) Grants to Local Authorities,Local Government & Public Services,HILLINGDON LB,,,,211198585,5000403267,,Improved Better Care Fund,UB8 1UW,"192,521.00",Yes,
"Housing, Communities & Local Government",MHCLG,15/06/2018,Current (non AEF) Grants to Local Authorities,Local Government & Public Services,HILLINGDON LB,,,,211198585,5000403268,,Additional Better Care Fund element,UB8 1UW,"245,610.00",Yes,
"Housing, Communities & Local Government",MHCLG,15/06/2018,Current (non AEF) Grants to Local Authorities,Local Government & Public Services,HOUNSLOW LB,,Public Bodies,,210388999,5000403269,,Improved Better Care Fund,TW3 4DN,"245,095.00",Yes,
"Housing, Communities & Local Government",MHCLG,15/06/2018,Current (non AEF) Grants to Local Authorities,Local Government & Public Services,HOUNSLOW LB,,Public Bodies,,210388999,5000403270,,Additional Better Care Fund element,TW3 4DN,"236,413.00",Yes,
"Housing, Communities & Local Government",MHCLG,15/06/2018,Current (non AEF) Grants to Local Authorities,Local Government & Public Services,HOUNSLOW LB,,Public Bodies,,210388999,5000403271,,Adult Social Care Support Grant,TW3 4DN,"52,047.00",Yes,
"Housing, Communities & Local Government",MHCLG,15/06/2018,Current (non AEF) Grants to Local Authorities,Local Government & Public Services,HULL CITY COUNCIL,,,,217460984,5000403287,,Improved Better Care Fund,HU1 2AA,"698,103.00",Yes,
"Housing, Communities & Local Government",MHCLG,15/06/2018,Current (non AEF) Grants to Local Authorities,Local Government & Public Services,HULL CITY COUNCIL,,,,217460984,5000403288,,Additional Better Care Fund element,HU1 2AA,"347,438.00",Yes,
"Housing, Communities & Local Government",MHCLG,15/06/2018,Current (non AEF) Grants to Local Authorities,Local Government & Public Services,HULL CITY COUNCIL,,,,217460984,5000403289,,Adult Social Care Support Grant,HU1 2AA,"75,671.00",Yes,
"Housing, Communities & Local Government",MHCLG,15/06/2018,Current (non AEF) Grants to Local Authorities,Local Government & Public Services,ISLE OF WIGHT CNCL,,,,236431730,5000403272,,Improved Better Care Fund,PO30 1UD,"182,437.00",Yes,
"Housing, Communities & Local Government",MHCLG,15/06/2018,Current (non AEF) Grants to Local Authorities,Local Government & Public Services,ISLE OF WIGHT CNCL,,,,236431730,5000403273,,Additional Better Care Fund element,PO30 1UD,"181,250.00",Yes,
"Housing, Communities & Local Government",MHCLG,15/06/2018,Current (non AEF) Grants to Local Authorities,Local Government & Public Services,ISLE OF WIGHT CNCL,,,,236431730,5000403274,,Adult Social Care Support Grant,PO30 1UD,"39,916.00",Yes,
"Housing, Communities & Local Government",MHCLG,15/06/2018,Current (non AEF) Grants to Local Authorities,Local Government & Public Services,ISLES OF SCILLY COUNCIL,,,,214146040,5000403275,,Improved Better Care Fund,TR21 0LW,"1,693.00",Yes,
"Housing, Communities & Local Government",MHCLG,15/06/2018,Current (non AEF) Grants to Local Authorities,Local Government & Public Services,ISLES OF SCILLY COUNCIL,,,,214146040,5000403276,,Additional Better Care Fund element,TR21 0LW,"2,980.00",Yes,
"Housing, Communities & Local Government",MHCLG,15/06/2018,Current (non AEF) Grants to Local Authorities,Local Government & Public Services,ISLES OF SCILLY COUNCIL,,,,214146040,5000403277,,Adult Social Care Support Grant,TR21 0LW,659.00,Yes,
"Housing, Communities & Local Government",MHCLG,15/06/2018,Current (non AEF) Grants to Local Authorities,Local Government & Public Services,ISLINGTON LB,,,,225716729,5000403278,,Improved Better Care Fund,N1 1XR,"539,815.00",Yes,
"Housing, Communities & Local Government",MHCLG,15/06/2018,Current (non AEF) Grants to Local Authorities,Local Government & Public Services,ISLINGTON LB,,,,225716729,5000403279,,Additional Better Care Fund element,N1 1XR,"306,643.00",Yes,
"Housing, Communities & Local Government",MHCLG,15/06/2018,Current (non AEF) Grants to Local Authorities,Local Government & Public Services,ISLINGTON LB,,,,225716729,5000403280,,Adult Social Care Support Grant,N1 1XR,"66,971.00",Yes,
"Housing, Communities & Local Government",MHCLG,15/06/2018,Current (non AEF) Grants to Local Authorities,Local Government & Public Services,KENT COUNTY CNCL,,,,211334420,5000403284,,Improved Better Care Fund,ME14 1RF,"1,460,371.00",Yes,
"Housing, Communities & Local Government",MHCLG,15/06/2018,Current (non AEF) Grants to Local Authorities,Local Government & Public Services,KENT COUNTY CNCL,,,,211334420,5000403285,,Additional Better Care Fund element,ME14 1RF,"1,457,754.00",Yes,
"Housing, Communities & Local Government",MHCLG,15/06/2018,Current (non AEF) Grants to Local Authorities,Local Government & Public Services,KENT COUNTY CNCL,,,,211334420,5000403286,,Adult Social Care Support Grant,ME14 1RF,"321,051.00",Yes,
"Housing, Communities & Local Government",MHCLG,15/06/2018,Current (non AEF) Grants to Local Authorities,Local Government & Public Services,KINGSTON UPON THAMES  (HSG),,,,211379941,5000403103,,Additional Better Care Fund element,KT1 1EU,"106,527.00",Yes,
"Housing, Communities & Local Government",MHCLG,15/06/2018,Current (non AEF) Grants to Local Authorities,Local Government & Public Services,KINGSTON UPON THAMES  (HSG),,,,211379941,5000403104,,Adult Social Care Support Grant,KT1 1EU,"29,852.00",Yes,
"Housing, Communities & Local Government",MHCLG,15/06/2018,Current (non AEF) Grants to Local Authorities,Local Government & Public Services,KIRKLEES COUNCIL (HSG),,Large,,,5000403105,,Improved Better Care Fund,HD1 2YU,"591,957.00",Yes,
"Housing, Communities & Local Government",MHCLG,15/06/2018,Current (non AEF) Grants to Local Authorities,Local Government & Public Services,KIRKLEES COUNCIL (HSG),,Large,,,5000403106,,Additional Better Care Fund element,HD1 2YU,"441,468.00",Yes,
"Housing, Communities & Local Government",MHCLG,15/06/2018,Current (non AEF) Grants to Local Authorities,Local Government & Public Services,KIRKLEES COUNCIL (HSG),,Large,,,5000403107,,Adult Social Care Support Grant,HD1 2YU,"96,865.00",Yes,
"Housing, Communities & Local Government",MHCLG,15/06/2018,Current (non AEF) Grants to Local Authorities,Local Government & Public Services,KNOWSLEY MBC,,,,,5000403290,,Adult Social Care Support Grant,L36 9YZ,"50,886.00",Yes,
"Housing, Communities & Local Government",MHCLG,15/06/2018,Current (non AEF) Grants to Local Authorities,Local Government & Public Services,LANCASHIRE COUNTY CNCL,,,,233136584,5000403294,,Improved Better Care Fund,PR1 8RD,"1,887,929.00",Yes,
"Housing, Communities & Local Government",MHCLG,15/06/2018,Current (non AEF) Grants to Local Authorities,Local Government & Public Services,LANCASHIRE COUNTY CNCL,,,,233136584,5000403295,,Additional Better Care Fund element,PR1 8RD,"1,311,237.00",Yes,
"Housing, Communities & Local Government",MHCLG,15/06/2018,Current (non AEF) Grants to Local Authorities,Local Government & Public Services,LANCASHIRE COUNTY CNCL,,,,233136584,5000403296,,Adult Social Care Support Grant,PR1 8RD,"287,392.00",Yes,
"Housing, Communities & Local Government",MHCLG,15/06/2018,Current (non AEF) Grants to Local Authorities,Local Government & Public Services,LEEDS CITY CNCL,,Micro,,,5000403297,,Improved Better Care Fund,LS1 1JF,"1,051,522.00",Yes,
"Housing, Communities & Local Government",MHCLG,15/06/2018,Current (non AEF) Grants to Local Authorities,Local Government & Public Services,LEEDS CITY CNCL,,Micro,,,5000403298,,Additional Better Care Fund element,LS1 1JF,"785,821.00",Yes,
"Housing, Communities & Local Government",MHCLG,15/06/2018,Current (non AEF) Grants to Local Authorities,Local Government & Public Services,LEEDS CITY CNCL,,Micro,,,5000403299,,Adult Social Care Support Grant,LS1 1JF,"172,427.00",Yes,
"Housing, Communities & Local Government",MHCLG,15/06/2018,Current (non AEF) Grants to Local Authorities,Local Government & Public Services,LEICESTER CITY CNCL,,,,228219960,5000403108,,Improved Better Care Fund,LE1 1FZ,"653,366.00",Yes,
"Housing, Communities & Local Government",MHCLG,15/06/2018,Current (non AEF) Grants to Local Authorities,Local Government & Public Services,LEICESTER CITY CNCL,,,,228219960,5000403109,,Additional Better Care Fund element,LE1 1FZ,"375,205.00",Yes,
"Housing, Communities & Local Government",MHCLG,15/06/2018,Current (non AEF) Grants to Local Authorities,Local Government & Public Services,LEICESTER CITY CNCL,,,,228219960,5000403110,,Adult Social Care Support Grant,LE1 1FZ,"81,963.00",Yes,
"Housing, Communities & Local Government",MHCLG,15/06/2018,Current (non AEF) Grants to Local Authorities,Local Government & Public Services,LEICESTERSHIRE COUNTY CNCL,,,,423679836,5000403300,,Improved Better Care Fund,LE3 8RB,"465,168.00",Yes,
"Housing, Communities & Local Government",MHCLG,15/06/2018,Current (non AEF) Grants to Local Authorities,Local Government & Public Services,LEICESTERSHIRE COUNTY CNCL,,,,423679836,5000403301,,Additional Better Care Fund element,LE3 8RB,"569,756.00",Yes,
"Housing, Communities & Local Government",MHCLG,15/06/2018,Current (non AEF) Grants to Local Authorities,Local Government & Public Services,LEICESTERSHIRE COUNTY CNCL,,,,423679836,5000403302,,Adult Social Care Support Grant,LE3 8RB,"125,737.00",Yes,
"Housing, Communities & Local Government",MHCLG,15/06/2018,Current (non AEF) Grants to Local Authorities,Local Government & Public Services,LEWISHAM LB (HSG),,Large,,235653300,5000403111,,Improved Better Care Fund,SE6 4RU,"546,583.00",Yes,
"Housing, Communities & Local Government",MHCLG,15/06/2018,Current (non AEF) Grants to Local Authorities,Local Government & Public Services,LEWISHAM LB (HSG),,Large,,235653300,5000403112,,Additional Better Care Fund element,SE6 4RU,"325,894.00",Yes,
"Housing, Communities & Local Government",MHCLG,15/06/2018,Current (non AEF) Grants to Local Authorities,Local Government & Public Services,LEWISHAM LB (HSG),,Large,,235653300,5000403113,,Adult Social Care Support Grant,SE6 4RU,"71,241.00",Yes,
"Housing, Communities & Local Government",MHCLG,15/06/2018,Current (non AEF) Grants to Local Authorities,Local Government & Public Services,LINCOLNSHIRE COUNTY COUNCIL,,,,,5000403303,,Improved Better Care Fund,LN2 1DY,"1,187,372.00",Yes,
"Housing, Communities & Local Government",MHCLG,15/06/2018,Current (non AEF) Grants to Local Authorities,Local Government & Public Services,LINCOLNSHIRE COUNTY COUNCIL,,,,,5000403304,,Additional Better Care Fund element,LN2 1DY,"800,683.00",Yes,
"Housing, Communities & Local Government",MHCLG,15/06/2018,Current (non AEF) Grants to Local Authorities,Local Government & Public Services,LINCOLNSHIRE COUNTY COUNCIL,,,,,5000403305,,Adult Social Care Support Grant,LN2 1DY,"175,407.00",Yes,
"Housing, Communities & Local Government",MHCLG,15/06/2018,Current (non AEF) Grants to Local Authorities,Local Government & Public Services,LIVERPOOL CITY COUNCIL,,,,,5000403306,,Adult Social Care Support Grant,L2 2DH,"154,010.00",Yes,
"Housing, Communities & Local Government",MHCLG,15/06/2018,Current (non AEF) Grants to Local Authorities,Local Government & Public Services,LONDON BOROUGH OF BARNET,,,,211049507,5000403144,,Improved Better Care Fund,NN1 1NP,"228,831.00",Yes,
"Housing, Communities & Local Government",MHCLG,15/06/2018,Current (non AEF) Grants to Local Authorities,Local Government & Public Services,LONDON BOROUGH OF BARNET,,,,211049507,5000403145,,Additional Better Care Fund element,NN1 1NP,"341,059.00",Yes,
"Housing, Communities & Local Government",MHCLG,15/06/2018,Current (non AEF) Grants to Local Authorities,Local Government & Public Services,LONDON BOROUGH OF BARNET,,,,211049507,5000403146,,Adult Social Care Support Grant,NN1 1NP,"75,387.00",Yes,
"Housing, Communities & Local Government",MHCLG,15/06/2018,Current (non AEF) Grants to Local Authorities,Local Government & Public Services,LONDON BOROUGH OF HACKNEY,,,,225221597,5000403242,,Improved Better Care Fund,E8 4RU,"642,514.00",Yes,
"Housing, Communities & Local Government",MHCLG,15/06/2018,Current (non AEF) Grants to Local Authorities,Local Government & Public Services,LONDON BOROUGH OF HACKNEY,,,,225221597,5000403243,,Additional Better Care Fund element,E8 4RU,"335,620.00",Yes,
"Housing, Communities & Local Government",MHCLG,15/06/2018,Current (non AEF) Grants to Local Authorities,Local Government & Public Services,LONDON BOROUGH OF HACKNEY,,,,225221597,5000403244,,Adult Social Care Support Grant,E8 4RU,"73,174.00",Yes,
"Housing, Communities & Local Government",MHCLG,15/06/2018,Current (non AEF) Grants to Local Authorities,Local Government & Public Services,LONDON BOROUGH OF LAMBETH,,,,228216479,5000403291,,Improved Better Care Fund,SW2 1RL,"532,521.00",Yes,
"Housing, Communities & Local Government",MHCLG,15/06/2018,Current (non AEF) Grants to Local Authorities,Local Government & Public Services,LONDON BOROUGH OF LAMBETH,,,,228216479,5000403292,,Additional Better Care Fund element,SW2 1RL,"358,730.00",Yes,
"Housing, Communities & Local Government",MHCLG,15/06/2018,Current (non AEF) Grants to Local Authorities,Local Government & Public Services,LONDON BOROUGH OF LAMBETH,,,,228216479,5000403293,,Adult Social Care Support Grant,SW2 1RL,"78,586.00",Yes,
"Housing, Communities & Local Government",MHCLG,15/06/2018,Current (non AEF) Grants to Local Authorities,Local Government & Public Services,LONDON BOROUGH OF NEWHAM,,,,211381004,5000403322,,Improved Better Care Fund,E16 2QU,"668,328.00",Yes,
"Housing, Communities & Local Government",MHCLG,15/06/2018,Current (non AEF) Grants to Local Authorities,Local Government & Public Services,LONDON BOROUGH OF NEWHAM,,,,211381004,5000403323,,Additional Better Care Fund element,E16 2QU,"350,732.00",Yes,
"Housing, Communities & Local Government",MHCLG,15/06/2018,Current (non AEF) Grants to Local Authorities,Local Government & Public Services,LONDON BOROUGH OF NEWHAM,,,,211381004,5000403324,,Adult Social Care Support Grant,E16 2QU,"76,476.00",Yes,
"Housing, Communities & Local Government",MHCLG,15/06/2018,Current (non AEF) Grants to Local Authorities,Local Government & Public Services,LONDON BOROUGH OF REDBRIDGE,,,,211341417,5000403364,,Improved Better Care Fund,IG1 1NN,"323,795.00",Yes,
"Housing, Communities & Local Government",MHCLG,15/06/2018,Current (non AEF) Grants to Local Authorities,Local Government & Public Services,LONDON BOROUGH OF REDBRIDGE,,,,211341417,5000403365,,Additional Better Care Fund element,IG1 1NN,"264,550.00",Yes,
"Housing, Communities & Local Government",MHCLG,15/06/2018,Current (non AEF) Grants to Local Authorities,Local Government & Public Services,LONDON BOROUGH OF REDBRIDGE,,,,211341417,5000403366,,Adult Social Care Support Grant,IG1 1NN,"58,121.00",Yes,
"Housing, Communities & Local Government",MHCLG,15/06/2018,Current (non AEF) Grants to Local Authorities,Local Government & Public Services,LUTON BC,,,,365112155,5000403307,,Improved Better Care Fund,LU1 2BQ,"250,177.00",Yes,
"Housing, Communities & Local Government",MHCLG,15/06/2018,Current (non AEF) Grants to Local Authorities,Local Government & Public Services,LUTON BC,,,,365112155,5000403308,,Additional Better Care Fund element,LU1 2BQ,"187,065.00",Yes,
"Housing, Communities & Local Government",MHCLG,15/06/2018,Current (non AEF) Grants to Local Authorities,Local Government & Public Services,LUTON BC,,,,365112155,5000403309,,Adult Social Care Support Grant,LU1 2BQ,"41,047.00",Yes,
"Housing, Communities & Local Government",MHCLG,15/06/2018,Current (non AEF) Grants to Local Authorities,Local Government & Public Services,MANCHESTER CITY CNCL (HSG),,,,211241393,5000403114,,Improved Better Care Fund,M60 2JR,"1,230,091.00",Yes,
"Housing, Communities & Local Government",MHCLG,15/06/2018,Current (non AEF) Grants to Local Authorities,Local Government & Public Services,MANCHESTER CITY CNCL (HSG),,,,211241393,5000403115,,Additional Better Care Fund element,M60 2JR,"636,972.00",Yes,
"Housing, Communities & Local Government",MHCLG,15/06/2018,Current (non AEF) Grants to Local Authorities,Local Government & Public Services,MANCHESTER CITY CNCL (HSG),,,,211241393,5000403116,,Adult Social Care Support Grant,M60 2JR,"138,852.00",Yes,
"Housing, Communities & Local Government",MHCLG,15/06/2018,Current (non AEF) Grants to Local Authorities,Local Government & Public Services,MEDWAY TOWNS D C (HSG),,,,,5000403117,,Improved Better Care Fund,ME4 4TR,"193,768.00",Yes,
"Housing, Communities & Local Government",MHCLG,15/06/2018,Current (non AEF) Grants to Local Authorities,Local Government & Public Services,MEDWAY TOWNS D C (HSG),,,,,5000403118,,Additional Better Care Fund element,ME4 4TR,"235,511.00",Yes,
"Housing, Communities & Local Government",MHCLG,15/06/2018,Current (non AEF) Grants to Local Authorities,Local Government & Public Services,MEDWAY TOWNS D C (HSG),,,,,5000403119,,Adult Social Care Support Grant,ME4 4TR,"51,970.00",Yes,
"Housing, Communities & Local Government",MHCLG,15/06/2018,Current (non AEF) Grants to Local Authorities,Local Government & Public Services,MERTON LB,,,,,5000403310,,Improved Better Care Fund,SM4 5DX,"117,360.00",Yes,
"Housing, Communities & Local Government",MHCLG,15/06/2018,Current (non AEF) Grants to Local Authorities,Local Government & Public Services,MERTON LB,,,,,5000403311,,Additional Better Care Fund element,SM4 5DX,"176,214.00",Yes,
"Housing, Communities & Local Government",MHCLG,15/06/2018,Current (non AEF) Grants to Local Authorities,Local Government & Public Services,MERTON LB,,,,,5000403312,,Adult Social Care Support Grant,SM4 5DX,"38,952.00",Yes,
"Housing, Communities & Local Government",MHCLG,15/06/2018,Current (non AEF) Grants to Local Authorities,Local Government & Public Services,MIDDLESBROUGH BC,,Large,,,5000403313,,Improved Better Care Fund,TS1 9GA,"321,122.00",Yes,
"Housing, Communities & Local Government",MHCLG,15/06/2018,Current (non AEF) Grants to Local Authorities,Local Government & Public Services,MIDDLESBROUGH BC,,Large,,,5000403314,,Additional Better Care Fund element,TS1 9GA,"180,776.00",Yes,
"Housing, Communities & Local Government",MHCLG,15/06/2018,Current (non AEF) Grants to Local Authorities,Local Government & Public Services,MIDDLESBROUGH BC,,Large,,,5000403315,,Adult Social Care Support Grant,TS1 9GA,"39,474.00",Yes,
"Housing, Communities & Local Government",MHCLG,15/06/2018,Current (non AEF) Grants to Local Authorities,Local Government & Public Services,MILTON KEYNES BC,,,,,5000403316,,Improved Better Care Fund,MK9 3WJ,"149,950.00",Yes,
"Housing, Communities & Local Government",MHCLG,15/06/2018,Current (non AEF) Grants to Local Authorities,Local Government & Public Services,MILTON KEYNES BC,,,,,5000403317,,Additional Better Care Fund element,MK9 3WJ,"214,032.00",Yes,
"Housing, Communities & Local Government",MHCLG,15/06/2018,Current (non AEF) Grants to Local Authorities,Local Government & Public Services,MILTON KEYNES BC,,,,,5000403318,,Adult Social Care Support Grant,MK9 3WJ,"47,294.00",Yes,
"Housing, Communities & Local Government",MHCLG,15/06/2018,Current (non AEF) Grants to Local Authorities,Local Government & Public Services,NEWCASTLE UPON TYNE DC,,,,239154040,5000403319,,Improved Better Care Fund,NE99 2BN,"622,028.00",Yes,
"Housing, Communities & Local Government",MHCLG,15/06/2018,Current (non AEF) Grants to Local Authorities,Local Government & Public Services,NEWCASTLE UPON TYNE DC,,,,239154040,5000403320,,Additional Better Care Fund element,NE99 2BN,"357,811.00",Yes,
"Housing, Communities & Local Government",MHCLG,15/06/2018,Current (non AEF) Grants to Local Authorities,Local Government & Public Services,NEWCASTLE UPON TYNE DC,,,,239154040,5000403321,,Adult Social Care Support Grant,NE99 2BN,"78,165.00",Yes,
"Housing, Communities & Local Government",MHCLG,15/06/2018,Current (non AEF) Grants to Local Authorities,Local Government & Public Services,NORFOLK COUNTY COUNCIL,,,,232602789,5000403325,,Improved Better Care Fund,NR1 2DW,"1,318,975.00",Yes,
"Housing, Communities & Local Government",MHCLG,15/06/2018,Current (non AEF) Grants to Local Authorities,Local Government & Public Services,NORFOLK COUNTY COUNCIL,,,,232602789,5000403326,,Additional Better Care Fund element,NR1 2DW,"991,744.00",Yes,
"Housing, Communities & Local Government",MHCLG,15/06/2018,Current (non AEF) Grants to Local Authorities,Local Government & Public Services,NORFOLK COUNTY COUNCIL,,,,232602789,5000403327,,Adult Social Care Support Grant,NR1 2DW,"217,630.00",Yes,
"Housing, Communities & Local Government",MHCLG,15/06/2018,Current (non AEF) Grants to Local Authorities,Local Government & Public Services,NORTH EAST LINCOLN DC (HSG),,,,211242737,5000403120,,Improved Better Care Fund,DN35 8LN,"283,052.00",Yes,
"Housing, Communities & Local Government",MHCLG,15/06/2018,Current (non AEF) Grants to Local Authorities,Local Government & Public Services,NORTH EAST LINCOLN DC (HSG),,,,211242737,5000403121,,Additional Better Care Fund element,DN35 8LN,"185,453.00",Yes,
"Housing, Communities & Local Government",MHCLG,15/06/2018,Current (non AEF) Grants to Local Authorities,Local Government & Public Services,NORTH EAST LINCOLN DC (HSG),,,,211242737,5000403122,,Adult Social Care Support Grant,DN35 8LN,"40,608.00",Yes,
"Housing, Communities & Local Government",MHCLG,15/06/2018,Current (non AEF) Grants to Local Authorities,Local Government & Public Services,NORTH LINCOLNSHIRE DC (HSG),,Public Bodies,,424005502,5000403123,,Improved Better Care Fund,DN16 1AB,"239,546.00",Yes,
"Housing, Communities & Local Government",MHCLG,15/06/2018,Current (non AEF) Grants to Local Authorities,Local Government & Public Services,NORTH LINCOLNSHIRE DC (HSG),,Public Bodies,,424005502,5000403124,,Additional Better Care Fund element,DN16 1AB,"180,586.00",Yes,
"Housing, Communities & Local Government",MHCLG,15/06/2018,Current (non AEF) Grants to Local Authorities,Local Government & Public Services,NORTH LINCOLNSHIRE DC (HSG),,Public Bodies,,424005502,5000403125,,Adult Social Care Support Grant,DN16 1AB,"39,630.00",Yes,
"Housing, Communities & Local Government",MHCLG,15/06/2018,Current (non AEF) Grants to Local Authorities,Local Government & Public Services,NORTH SOMERSET COUNCIL,,Large,,,5000403328,,Improved Better Care Fund,BS23 1UJ,"191,596.00",Yes,
"Housing, Communities & Local Government",MHCLG,15/06/2018,Current (non AEF) Grants to Local Authorities,Local Government & Public Services,NORTH SOMERSET COUNCIL,,Large,,,5000403329,,Additional Better Care Fund element,BS23 1UJ,"218,196.00",Yes,
"Housing, Communities & Local Government",MHCLG,15/06/2018,Current (non AEF) Grants to Local Authorities,Local Government & Public Services,NORTH SOMERSET COUNCIL,,Large,,,5000403330,,Adult Social Care Support Grant,BS23 1UJ,"48,121.00",Yes,
"Housing, Communities & Local Government",MHCLG,15/06/2018,Current (non AEF) Grants to Local Authorities,Local Government & Public Services,NORTH TYNESIDE MBC,,,,,5000403331,,Improved Better Care Fund,NE27 0BY,"319,720.00",Yes,
"Housing, Communities & Local Government",MHCLG,15/06/2018,Current (non AEF) Grants to Local Authorities,Local Government & Public Services,NORTH TYNESIDE MBC,,,,,5000403332,,Additional Better Care Fund element,NE27 0BY,"244,647.00",Yes,
"Housing, Communities & Local Government",MHCLG,15/06/2018,Current (non AEF) Grants to Local Authorities,Local Government & Public Services,NORTH TYNESIDE MBC,,,,,5000403333,,Adult Social Care Support Grant,NE27 0BY,"53,699.00",Yes,
"Housing, Communities & Local Government",MHCLG,15/06/2018,Current (non AEF) Grants to Local Authorities,Local Government & Public Services,NORTH YORKSHIRE CC (DL7 8AL),,,,,5000403334,,Improved Better Care Fund,DL7 8AL,"438,181.00",Yes,
"Housing, Communities & Local Government",MHCLG,15/06/2018,Current (non AEF) Grants to Local Authorities,Local Government & Public Services,NORTH YORKSHIRE CC (DL7 8AL),,,,,5000403335,,Additional Better Care Fund element,DL7 8AL,"571,651.00",Yes,
"Housing, Communities & Local Government",MHCLG,15/06/2018,Current (non AEF) Grants to Local Authorities,Local Government & Public Services,NORTH YORKSHIRE CC (DL7 8AL),,,,,5000403336,,Adult Social Care Support Grant,DL7 8AL,"126,225.00",Yes,
"Housing, Communities & Local Government",MHCLG,15/06/2018,Current (non AEF) Grants to Local Authorities,Local Government & Public Services,NORTHAMPTONSHIRE COUNTY COUNCIL,,,,,5000403337,,Improved Better Care Fund,CB3 0AP,"629,581.00",Yes,
"Housing, Communities & Local Government",MHCLG,15/06/2018,Current (non AEF) Grants to Local Authorities,Local Government & Public Services,NORTHAMPTONSHIRE COUNTY COUNCIL,,,,,5000403338,,Additional Better Care Fund element,CB3 0AP,"642,384.00",Yes,
"Housing, Communities & Local Government",MHCLG,15/06/2018,Current (non AEF) Grants to Local Authorities,Local Government & Public Services,NORTHAMPTONSHIRE COUNTY COUNCIL,,,,,5000403339,,Adult Social Care Support Grant,CB3 0AP,"141,510.00",Yes,
"Housing, Communities & Local Government",MHCLG,15/06/2018,Current (non AEF) Grants to Local Authorities,Local Government & Public Services,NORTHUMBERLAND COUNTY COUNCIL,,,,210308905,5000403488,,Improved Better Care Fund,NE61 2EF,"361,549.00",Yes,
"Housing, Communities & Local Government",MHCLG,15/06/2018,Current (non AEF) Grants to Local Authorities,Local Government & Public Services,NORTHUMBERLAND COUNTY COUNCIL,,,,210308905,5000403489,,Additional Better Care Fund element,NE61 2EF,"359,803.00",Yes,
"Housing, Communities & Local Government",MHCLG,15/06/2018,Current (non AEF) Grants to Local Authorities,Local Government & Public Services,NORTHUMBERLAND COUNTY COUNCIL,,,,210308905,5000403490,,Adult Social Care Support Grant,NE61 2EF,"79,239.00",Yes,
"Housing, Communities & Local Government",MHCLG,15/06/2018,Current (non AEF) Grants to Local Authorities,Local Government & Public Services,NOTTINGHAM CITY COUNCIL,,,,214495447,5000403340,,Improved Better Care Fund,NG2 3NG,"607,745.00",Yes,
"Housing, Communities & Local Government",MHCLG,15/06/2018,Current (non AEF) Grants to Local Authorities,Local Government & Public Services,NOTTINGHAM CITY COUNCIL,,,,214495447,5000403341,,Additional Better Care Fund element,NG2 3NG,"369,163.00",Yes,
"Housing, Communities & Local Government",MHCLG,15/06/2018,Current (non AEF) Grants to Local Authorities,Local Government & Public Services,NOTTINGHAM CITY COUNCIL,,,,214495447,5000403342,,Adult Social Care Support Grant,NG2 3NG,"80,727.00",Yes,
"Housing, Communities & Local Government",MHCLG,15/06/2018,Current (non AEF) Grants to Local Authorities,Local Government & Public Services,NOTTINGHAMSHIRE COUNTY CNCL,,,,,5000403343,,Improved Better Care Fund,NG1 4BU,"963,657.00",Yes,
"Housing, Communities & Local Government",MHCLG,15/06/2018,Current (non AEF) Grants to Local Authorities,Local Government & Public Services,NOTTINGHAMSHIRE COUNTY CNCL,,,,,5000403344,,Additional Better Care Fund element,NG1 4BU,"835,469.00",Yes,
"Housing, Communities & Local Government",MHCLG,15/06/2018,Current (non AEF) Grants to Local Authorities,Local Government & Public Services,NOTTINGHAMSHIRE COUNTY CNCL,,,,,5000403345,,Adult Social Care Support Grant,NG1 4BU,"183,695.00",Yes,
"Housing, Communities & Local Government",MHCLG,15/06/2018,Current (non AEF) Grants to Local Authorities,Local Government & Public Services,OLDHAM MBC,,,,213015574,5000403346,,Improved Better Care Fund,OL1 1UH,"390,569.00",Yes,
"Housing, Communities & Local Government",MHCLG,15/06/2018,Current (non AEF) Grants to Local Authorities,Local Government & Public Services,OLDHAM MBC,,,,213015574,5000403347,,Additional Better Care Fund element,OL1 1UH,"266,768.00",Yes,
"Housing, Communities & Local Government",MHCLG,15/06/2018,Current (non AEF) Grants to Local Authorities,Local Government & Public Services,OLDHAM MBC,,,,213015574,5000403348,,Adult Social Care Support Grant,OL1 1UH,"58,454.00",Yes,
"Housing, Communities & Local Government",MHCLG,15/06/2018,Current (non AEF) Grants to Local Authorities,Local Government & Public Services,OXFORDSHIRE CC,,,,228216438,5000403349,,Improved Better Care Fund,OX1 1TH,"88,347.00",Yes,
"Housing, Communities & Local Government",MHCLG,15/06/2018,Current (non AEF) Grants to Local Authorities,Local Government & Public Services,OXFORDSHIRE CC,,,,228216438,5000403350,,Additional Better Care Fund element,OX1 1TH,"536,960.00",Yes,
"Housing, Communities & Local Government",MHCLG,15/06/2018,Current (non AEF) Grants to Local Authorities,Local Government & Public Services,OXFORDSHIRE CC,,,,228216438,5000403351,,Adult Social Care Support Grant,OX1 1TH,"119,347.00",Yes,
"Housing, Communities & Local Government",MHCLG,15/06/2018,Current (non AEF) Grants to Local Authorities,Local Government & Public Services,PETERBOROUGH CITY CNCL,,,,,5000403352,,Improved Better Care Fund,PE1 1HG,"248,793.00",Yes,
"Housing, Communities & Local Government",MHCLG,15/06/2018,Current (non AEF) Grants to Local Authorities,Local Government & Public Services,PETERBOROUGH CITY CNCL,,,,,5000403353,,Additional Better Care Fund element,PE1 1HG,"188,345.00",Yes,
"Housing, Communities & Local Government",MHCLG,15/06/2018,Current (non AEF) Grants to Local Authorities,Local Government & Public Services,PETERBOROUGH CITY CNCL,,,,,5000403354,,Adult Social Care Support Grant,PE1 1HG,"41,335.00",Yes,
"Housing, Communities & Local Government",MHCLG,15/06/2018,Current (non AEF) Grants to Local Authorities,Local Government & Public Services,PLYMOUTH CITY CNCL,,Public Bodies,,236416095,5000403355,,Improved Better Care Fund,PL1 2AA,"445,215.00",Yes,
"Housing, Communities & Local Government",MHCLG,15/06/2018,Current (non AEF) Grants to Local Authorities,Local Government & Public Services,PLYMOUTH CITY CNCL,,Public Bodies,,236416095,5000403356,,Additional Better Care Fund element,PL1 2AA,"305,197.00",Yes,
"Housing, Communities & Local Government",MHCLG,15/06/2018,Current (non AEF) Grants to Local Authorities,Local Government & Public Services,PLYMOUTH CITY CNCL,,Public Bodies,,236416095,5000403357,,Adult Social Care Support Grant,PL1 2AA,"66,878.00",Yes,
"Housing, Communities & Local Government",MHCLG,15/06/2018,Current (non AEF) Grants to Local Authorities,Local Government & Public Services,POOLE BC (HSG),,,,,5000403126,,Improved Better Care Fund,BH15 2RU,"101,215.00",Yes,
"Housing, Communities & Local Government",MHCLG,15/06/2018,Current (non AEF) Grants to Local Authorities,Local Government & Public Services,POOLE BC (HSG),,,,,5000403127,,Additional Better Care Fund element,BH15 2RU,"150,224.00",Yes,
"Housing, Communities & Local Government",MHCLG,15/06/2018,Current (non AEF) Grants to Local Authorities,Local Government & Public Services,POOLE BC (HSG),,,,,5000403128,,Adult Social Care Support Grant,BH15 2RU,"33,204.00",Yes,
"Housing, Communities & Local Government",MHCLG,15/06/2018,Current (non AEF) Grants to Local Authorities,Local Government & Public Services,PORTSMOUTH CITY COUNCIL,,Large,,211183082,5000403358,,Improved Better Care Fund,PO1 2AR,"294,011.00",Yes,
"Housing, Communities & Local Government",MHCLG,15/06/2018,Current (non AEF) Grants to Local Authorities,Local Government & Public Services,PORTSMOUTH CITY COUNCIL,,Large,,211183082,5000403359,,Additional Better Care Fund element,PO1 2AR,"211,467.00",Yes,
"Housing, Communities & Local Government",MHCLG,15/06/2018,Current (non AEF) Grants to Local Authorities,Local Government & Public Services,PORTSMOUTH CITY COUNCIL,,Large,,211183082,5000403360,,Adult Social Care Support Grant,PO1 2AR,"46,374.00",Yes,
"Housing, Communities & Local Government",MHCLG,15/06/2018,Current (non AEF) Grants to Local Authorities,Local Government & Public Services,READING BC,,,,210220399,5000403361,,Improved Better Care Fund,RG1 7TD,"27,737.00",Yes,
"Housing, Communities & Local Government",MHCLG,15/06/2018,Current (non AEF) Grants to Local Authorities,Local Government & Public Services,READING BC,,,,210220399,5000403362,,Additional Better Care Fund element,RG1 7TD,"133,509.00",Yes,
"Housing, Communities & Local Government",MHCLG,15/06/2018,Current (non AEF) Grants to Local Authorities,Local Government & Public Services,READING BC,,,,210220399,5000403363,,Adult Social Care Support Grant,RG1 7TD,"29,660.00",Yes,
"Housing, Communities & Local Government",MHCLG,15/06/2018,Current (non AEF) Grants to Local Authorities,Local Government & Public Services,REDCAR & CLEVELAND BOROUGH COUNCIL,,,,215175196,5000403367,,Improved Better Care Fund,TS10 1RT,"234,763.00",Yes,
"Housing, Communities & Local Government",MHCLG,15/06/2018,Current (non AEF) Grants to Local Authorities,Local Government & Public Services,REDCAR & CLEVELAND BOROUGH COUNCIL,,,,215175196,5000403368,,Additional Better Care Fund element,TS10 1RT,"171,016.00",Yes,
"Housing, Communities & Local Government",MHCLG,15/06/2018,Current (non AEF) Grants to Local Authorities,Local Government & Public Services,REDCAR & CLEVELAND BOROUGH COUNCIL,,,,215175196,5000403369,,Adult Social Care Support Grant,TS10 1RT,"37,511.00",Yes,
"Housing, Communities & Local Government",MHCLG,15/06/2018,Current (non AEF) Grants to Local Authorities,Local Government & Public Services,RICHMOND UPON THAMES LB,,,,228868535,5000403370,,Additional Better Care Fund element,TW1 3BZ,"35,391.00",Yes,
"Housing, Communities & Local Government",MHCLG,15/06/2018,Current (non AEF) Grants to Local Authorities,Local Government & Public Services,RICHMOND UPON THAMES LB,,,,228868535,5000403371,,Adult Social Care Support Grant,TW1 3BZ,"34,417.00",Yes,
"Housing, Communities & Local Government",MHCLG,15/06/2018,Current (non AEF) Grants to Local Authorities,Local Government & Public Services,ROCHDALE MBC,,,,,5000403372,,Improved Better Care Fund,OL16 1YG,"446,703.00",Yes,
"Housing, Communities & Local Government",MHCLG,15/06/2018,Current (non AEF) Grants to Local Authorities,Local Government & Public Services,ROCHDALE MBC,,,,,5000403373,,Additional Better Care Fund element,OL16 1YG,"264,106.00",Yes,
"Housing, Communities & Local Government",MHCLG,15/06/2018,Current (non AEF) Grants to Local Authorities,Local Government & Public Services,ROCHDALE MBC,,,,,5000403374,,Adult Social Care Support Grant,OL16 1YG,"57,725.00",Yes,
"Housing, Communities & Local Government",MHCLG,15/06/2018,Current (non AEF) Grants to Local Authorities,Local Government & Public Services,ROTHERHAM MBC,,,,211266937,5000403375,,Improved Better Care Fund,S60 1AE,"521,603.00",Yes,
"Housing, Communities & Local Government",MHCLG,15/06/2018,Current (non AEF) Grants to Local Authorities,Local Government & Public Services,ROTHERHAM MBC,,,,211266937,5000403376,,Additional Better Care Fund element,S60 1AE,"320,337.00",Yes,
"Housing, Communities & Local Government",MHCLG,15/06/2018,Current (non AEF) Grants to Local Authorities,Local Government & Public Services,ROTHERHAM MBC,,,,211266937,5000403377,,Adult Social Care Support Grant,S60 1AE,"70,065.00",Yes,
"Housing, Communities & Local Government",MHCLG,15/06/2018,Current (non AEF) Grants to Local Authorities,Local Government & Public Services,ROYAL BOROUGH OF KENSINGTON & CHELS,,,,211124466,5000403281,,Improved Better Care Fund,W8 7NX,"238,729.00",Yes,
"Housing, Communities & Local Government",MHCLG,15/06/2018,Current (non AEF) Grants to Local Authorities,Local Government & Public Services,ROYAL BOROUGH OF KENSINGTON & CHELS,,,,211124466,5000403282,,Additional Better Care Fund element,W8 7NX,"205,344.00",Yes,
"Housing, Communities & Local Government",MHCLG,15/06/2018,Current (non AEF) Grants to Local Authorities,Local Government & Public Services,ROYAL BOROUGH OF KENSINGTON & CHELS,,,,211124466,5000403283,,Adult Social Care Support Grant,W8 7NX,"45,144.00",Yes,
"Housing, Communities & Local Government",MHCLG,15/06/2018,Current (non AEF) Grants to Local Authorities,Local Government & Public Services,RUTLAND CC,,,,,5000403378,,Additional Better Care Fund element,LE15 6HP,"13,989.00",Yes,
"Housing, Communities & Local Government",MHCLG,15/06/2018,Current (non AEF) Grants to Local Authorities,Local Government & Public Services,RUTLAND CC,,,,,5000403379,,Adult Social Care Support Grant,LE15 6HP,"7,068.00",Yes,
"Housing, Communities & Local Government",MHCLG,15/06/2018,Current (non AEF) Grants to Local Authorities,Local Government & Public Services,SALFORD CITY CNCL,,,,213180073,5000403380,,Improved Better Care Fund,M27 5AW,"511,936.00",Yes,
"Housing, Communities & Local Government",MHCLG,15/06/2018,Current (non AEF) Grants to Local Authorities,Local Government & Public Services,SALFORD CITY CNCL,,,,213180073,5000403381,,Additional Better Care Fund element,M27 5AW,"313,772.00",Yes,
"Housing, Communities & Local Government",MHCLG,15/06/2018,Current (non AEF) Grants to Local Authorities,Local Government & Public Services,SALFORD CITY CNCL,,,,213180073,5000403382,,Adult Social Care Support Grant,M27 5AW,"68,625.00",Yes,
